Workbook

Sheet IDB1 2023-2024 Summary
B2: IDB Income levels | C2: Over £6.5m | D2: £1m to 6.5m | E2: £500k to £1m | F2: £100k - £500K | G2: £50k - £100k | H2: £25k -£50k | I2: Under £25k | J2: Total | M2: 2023-2024 Drainage rates outstanding | N2: 2023-2024 Special levies outstanding | O2: 2024-2025 Special levies forecast
C3: =COUNTIF('IDB1 Section A 2023-2024'!P3:P115,">=6500000") -> 2 | D3: =COUNTIFS('IDB1 Section A 2023-2024'!P3:P114,"<6499,999",'IDB1 Section A 2023-2024'!P3:P114,">1000,000") -> 30 | E3: =COUNTIFS('IDB1 Section A 2023-2024'!P3:P114,"<999,999",'IDB1 Section A 2023-2024'!P3:P114,">500,000") -> 12 | F3: =COUNTIFS('IDB1 Section A 2023-2024'!P3:P114,"<499,999",'IDB1 Section A 2023-2024'!P3:P114,">100,000") -> 36 | G3: =COUNTIFS('IDB1 Section A 2023-2024'!P3:P114,"<99,999",'IDB1 Section A 2023-2024'!P3:P114,">50,000") -> 12 | H3: =COUNTIFS('IDB1 Section A 2023-2024'!P3:P114,"<49,999",'IDB1 Section A 2023-2024'!P3:P114,">25,000") -> 11 | I3: =COUNTIF('IDB1 Section A 2023-2024'!P3:P115,"<=25,000") -> 9 | J3: =SUM(C3:I3) -> 112 | M3: ='IDB1 Section A 2023-2024'!AK116 -> 615197.21 | N3: ='IDB1 Section A 2023-2024'!AL116 -> 14344 | O3: ='Special levies 2024-2025'!F456 -> 50088942.27
B5: INCOME
C6: Drainage Rates | D6: Special Levies Actual | E6: Total Non Levy & Rates Income (Total for Cols F-N) | F6: Contributions from the EA | G6: Contributions applied from developers/other beneficiaries | H6: Government Grants | I6: PCSAs | J6: Non EA PCSA | K6: Loans | L6: Rechargeable Works | M6: Interest and Investment Income | N6: Rents and Acknowledgements | O6: Other Income | P6: TOTAL INCOME
B7: Totals | C7: ='IDB1 Section A 2023-2024'!D116 -> 23357730.01 | D7: ='IDB1 Section A 2023-2024'!E116 -> 45816451.01 | E7: =SUM(F7:O7) -> 47038812.56 | F7: ='IDB1 Section A 2023-2024'!F116 -> 4916231.46 | G7: ='IDB1 Section A 2023-2024'!G116 -> 3792548.33 | H7: ='IDB1 Section A 2023-2024'!H116 -> 19635045 | I7: ='IDB1 Section A 2023-2024'!I116 -> 3188935 | J7: ='IDB1 Section A 2023-2024'!J116 -> 975901 | K7: ='IDB1 Section A 2023-2024'!K116 -> 183000 | L7: ='IDB1 Section A 2023-2024'!L116 -> 6495223 | M7: ='IDB1 Section A 2023-2024'!M116 -> 2368587.77 | N7: ='IDB1 Section A 2023-2024'!N116 -> 289343 | O7: ='IDB1 Section A 2023-2024'!O116 -> 5193998 | P7: ='IDB1 Section A 2023-2024'!P116 -> 116212993.6
B8: % of total income | C8: =C7/P7 -> 0.2009906921 | D8: =D7/P7 -> 0.3942455108 | E8: =E7/P7 -> 0.4047637972 | F8: =F7/P7 -> 0.04230362981 | G8: =G7/P7 -> 0.03263446034 | H8: =H7/P7 -> 0.1689573979 | I8: =I7/P7 -> 0.02744043417 | J8: =J7/P7 -> 0.008397520535 | K8: =K7/P7 -> 0.001574694829 | L8: =L7/P7 -> 0.05589067797 | M8: =M7/P7 -> 0.02038143668 | N8: =N7/P7 -> 0.002489764622 | O8: =O7/P7 -> 0.04469378027
B10: EXPENDITURE
C11: New Works and Improvement Works | D11: Contributions to the Environment Agency | E11: Drains Maintenance | F11: Pumping Stations, Sluices and Water Level Control Strutures | G11: Administration | H11: PSCAs | I11: Rechargeable Works | J11: Finance Charges | K11: SSSI | L11: General biodiversity activities | M11: Other Expenditure | N11: Electricty standing charge | O11: Electricity usage | P11: Fuel costs pumping stations | Q11: Fuel cost general | R11: TOTAL EXPENDITURE
B12: Totals | C12: ='IDB1 Section A 2023-2024'!Q116 -> 26366894 | D12: ='IDB1 Section A 2023-2024'!R116 -> 7899845.6 | E12: ='IDB1 Section A 2023-2024'!S116 -> 25191374.95 | F12: ='IDB1 Section A 2023-2024'!T116 -> 9620499.07 | G12: ='IDB1 Section A 2023-2024'!U116 -> 18251434.91 | H12: ='IDB1 Section A 2023-2024'!V116 -> 3904288 | I12: ='IDB1 Section A 2023-2024'!W116 -> 4181821 | J12: ='IDB1 Section A 2023-2024'!X116 -> 2542279 | K12: ='IDB1 Section A 2023-2024'!Y116 -> 72161 | L12: ='IDB1 Section A 2023-2024'!Z116 -> 517618 | M12: ='IDB1 Section A 2023-2024'!AA116 -> 885793 | N12: ='IDB1 Section A 2023-2024'!AB116 -> 748998.5 | O12: ='IDB1 Section A 2023-2024'!AC116 -> 15386762.57 | P12: ='IDB1 Section A 2023-2024'!AD116 -> 662874 | Q12: ='IDB1 Section A 2023-2024'!AE116 -> 1880793 | R12: ='IDB1 Section A 2023-2024'!AF116 -> 118113436.6
B13: % of total expenditure | C13: =C12/R12 -> 0.2232336537 | D13: =D12/R12 -> 0.0668835471 | E13: =E12/R12 -> 0.2132811954 | F13: =F12/R12 -> 0.08145135174 | G13: =G12/R12 -> 0.1545246285 | H13: =H12/R12 -> 0.03305540938 | I13: =I12/R12 -> 0.03540512511 | J13: =J12/R12 -> 0.02152404564 | K13: =K12/R12 -> 0.0006109465788 | L13: =L12/R12 -> 0.004382380319 | M13: =M12/Q12 -> 0.4709678311 | N13: =N12/R12 -> 0.006341348805 | O13: =O12/R12 -> 0.1302710599 | P13: =P12/R12 -> 0.005612181129 | Q13: =Q12/R12 -> 0.01592361592
B15: EXCEPTIONAL ITEMS
C16: Profit/losses from disposal of fixed assets | D16: Net operating deficit for the year | E16: Developers funds not applied in year | F16: Grant income not applied in year
B17: Totals | C17: ='IDB1 Section A 2023-2024'!AG116 -> 745119 | D17: ='IDB1 Section A 2023-2024'!AH116 -> -990742.02 | E17: ='IDB1 Section A 2023-2024'!AI116 -> 15348071 | F17: ='IDB1 Section A 2023-2024'!AJ116 -> 10935760

Sheet IDB1 Section A 2023-2024
D1: INCOME | Q1: EXPENDITURE | AG1: EXCEPTIONAL ITEMS | AK1: Additional information (where given)
B2: Number | C2: IDB | D2: Drainage rates | E2: Special levies | F2: High land water contributions | G2: Contributions from developers/other beneficiaries | H2: Government grants | I2: PSCAs | J2: Non- EA PCSA | K2: Loans | L2: Rechargeable works | M2: Interest and investment income | N2: Rents and acknowledgements | O2: Other income (detail in column AN) | P2: TOTAL INCOME | Q2: New works and improvement works | R2: Total precept | S2: Watercourse maintenance | T2: Pumping stations, sluices and water level control strutures | U2: Administration | V2: PSCAs | W2: Rechargeable works | X2: Finance charges | Y2: SSSI activity | Z2: General biodiversity activities | AA2: Other expenditure (detail in column AO) | AB2: Electricity standing charge (where differentiated) | AC2: Electricity Usage | AD2: Fuel costs for Pumping stations (where differentiated) | AE2: Fuel cost general | AF2: TOTAL EXPENDITURE | AG2: Profit/losses arising from the disposal of fixed assets | AH2: Net operating surplus/deficit for the year | AI2: Developers funds not applied in year | AJ2: Grant income not applied in year | AK2: Outstanding drainage rates | AL2: Outstanding special levies | AN2: Other Income detail (Col O) | AO2: Other Expenditure Detail (Col AA)
B3: 1 | C3: Ainsty (2008) IDB | D3: 71751 | E3: 353943 | F3: 40604 | I3: 24298 | L3: 8978 | M3: 14834 | N3: 9600 | O3: 2105 | P3: =SUM(D3:O3) -> 526113 | R3: 43272 | S3: 235434 | T3: 6622 | U3: 137586 | V3: 24298 | W3: 8978 | Z3: 590 | AA3: 244 | AC3: 14374 | AE3: 15372 | AF3: =SUM(Q3:AE3) -> 486770 | AG3: 400 | AH3: 39743 | AK3: 2610 | AL3: 0
B4: 2 | C4: Airedale DC | D4: 2004 | E4: 21601 | F4: 2424 | O4: 500 | P4: =SUM(D4:O4) -> 26529 | R4: 3532 | S4: 12660 | U4: 11196 | AA4: 1 | AB4: 0 | AF4: =SUM(Q4:AE4) -> 27389 | AH4: -860 | AK4: 12
B5: 3 | C5: Alconbury and Ellington | D5: 11572 | E5: 86997 | F5: 9543 | I5: 26207 | M5: 4512 | O5: 200 | P5: 139031 | R5: 17845 | S5: 82372 | U5: 14226 | V5: 26207 | AF5: 140650 | AH5: 1619 | AK5: 339
B6: 4 | C6: Ancholme Internal Drainage Board | D6: 408684 | E6: 261531 | F6: 60580 | I6: 27063 | J6: 88587 | M6: 7715 | O6: 8222 | P6: 862382 | Q6: 48449 | R6: 95976 | S6: 329136 | T6: 110711 | U6: 97551 | V6: 27063 | X6: 79132 | Z6: 3089 | AB6: 52074 | AC6: 212333 | AD6: 10533 | AE6: 10633 | AF6: 1076680 | AH6: -214298 | AK6: 1428 | AN6: Consent Applications Fee
B7: 5 | C7: Axe Brue | D7: 259712 | E7: 1203311 | G7: 5607 | L7: 4836 | M7: 26121 | N7: 12000 | O7: 12098 | P7: 1523685 | Q7: 5769 | R7: 292689 | S7: 242127 | T7: 6196 | U7: 695223 | V7: 10029 | W7: 731 | X7: 396 | AE7: 6243 | AF7: 1259403 | AH7: 264282 | AI7: 284039 | AK7: 7554 | AN7: Telemetry System Income
B8: 6 | C8: Axeholme & North Notts | D8: 617759 | E8: 1090596 | G8: 418525 | L8: 2967 | M8: 13617 | N8: 7149 | O8: 200943 | P8: 2351556 | Q8: 993965 | R8: 60619 | S8: 347520 | T8: 157894 | U8: 722359 | V8: 0 | W8: 2961 | X8: 22452 | Y8: 486 | Z8: 466 | AA8: 593 | AC8: 496958 | AD8: 5308 | AE8: 68835 | AF8: 2880416 | AG8: 6543 | AH8: -522317 | AI8: 3701 | AK8: 27970 | AN8: Share of Consortium income, Court Costs,Reduction in Provision for Bad Debt
B9: 7 | C9: Bedfordshire and River Ivel | D9: 78755 | E9: 1056026 | F9: 245521 | G9: 94679 | I9: 2800 | J9: 17305 | M9: 63178 | O9: 46569 | P9: 1604833 | Q9: 55965 | R9: 157434 | S9: 788535 | T9: 165413 | U9: 222032 | V9: 20105 | Z9: 20146 | AB9: 0 | AC9: 14421 | AE9: 41745 | AF9: 1485796 | AG9: 39196 | AH9: 158233 | AI9: 2461058 | AK9: 9372 | AN9: Consents & Applications. Sale of Scrap. Absorption income | AO9: Bad Debts
B10: 8 | C10: Benwick | D10: 66664 | E10: 31392 | F10: 865 | M10: 2539 | N10: 1000 | O10: 162 | P10: 102622 | Q10: 120 | R10: 8847 | S10: 45427 | T10: 15963 | U10: 11289 | X10: 8804 | Z10: 371 | AA10: 3593 | AB10: 1395 | AC10: 49612 | AF10: 145421 | AH10: -42799 | AI10: 27463 | AJ10: 7415 | AK10: 189.67 | AN10: Consents Applications Fees
B11: 9 | C11: Beverley and North Holderness IDB | D11: 254869 | E11: 431827 | F11: 54960 | I11: 289210 | M11: 16734 | O11: 1826 | P11: 1049426 | R11: 208397 | S11: 400976 | T11: 0 | U11: 86800 | V11: 253207 | Z11: 1002 | AA11: 467 | AB11: 0 | AC11: 24441 | AF11: 975290 | AH11: 74136 | AK11: 2371 | AN11: Writ back of Provision, £1000 Rent | AO11: insurance
B12: 10 | C12: Black Drain DB | D12: 29461 | E12: 108212 | F12: 0 | L12: 46745 | M12: 6498 | O12: 3100 | P12: 194016 | Q12: 21362 | R12: 6859 | S12: 22388 | T12: 28867 | U12: 26275 | X12: 24925 | AC12: 58482 | AF12: 189158 | AH12: 4858 | AK12: 20
B13: 11 | C13: Black Sluice IDB | D13: 1451535 | E13: 1531381 | F13: 17072 | G13: 5000 | H13: 546016 | I13: 116516 | L13: 303783 | M13: 54680 | N13: 7366 | O13: 35448 | P13: 4068797 | Q13: 803356 | R13: 276552 | S13: 916332 | T13: 396255 | U13: 475806 | V13: 105924 | W13: 276263 | Z13: 15041 | AB13: 53603 | AC13: 680989 | AE13: 96689 | AF13: 4096810 | AH13: -10013 | AI13: 589256 | AJ13: 198328 | AK13: 3172.94 | AN13: Doncaster East, Miscellaneous Costs, Court Summons,
B14: 12 | C14: Bluntisham | D14: 7092 | E14: 13889 | F14: 1669 | L14: 0 | M14: 740 | O14: 4950 | P14: 28340 | R14: 1992 | S14: 5988 | T14: 2243 | U14: 7242 | Z14: 371 | AA14: 426 | AB14: 405 | AC14: 19373 | AF14: 38040 | AH14: -9700 | AI14: 306 | AN14: Consents, Solar Income, Sundry Income
B15: 13 | C15: Braunton Marsh DB | D15: 1058 | E15: 0 | L15: 0 | O15: 13258 | P15: 14316 | S15: 6344 | U15: 385 | Z15: 0 | AF15: 6729 | AH15: 7687 | AK15: 1520 | AL15: 14344 | AN15: Write back of Provisions
B16: 14 | C16: Broads | D16: 347490 | E16: 800361 | F16: 392488 | H16: 2562901 | I16: 51031 | J16: 19426 | L16: 1551017 | M16: 130154 | N16: 6770 | O16: 105039 | P16: 5966677 | Q16: 2562901 | R16: 185849 | S16: 332944 | T16: 471539 | U16: 175107 | V16: 70457 | W16: 1508365 | Z16: 7576 | AC16: 639965 | AE16: 66886 | AF16: 6021589 | AG16: 2338 | AH16: -52574 | AI16: 92922 | AJ16: 3087938 | AK16: 640 | AN16: Vat Refund,reinbursement for Chairman Dinner
B17: 15 | C17: Buckingham and River Ouzel | D17: 64625 | E17: 726841 | F17: 190099 | G17: 1156352 | I17: 25144 | M17: 37073 | O17: 26996 | P17: 2227130 | Q17: 31738 | R17: 121332 | S17: 470751 | T17: 24248 | U17: 150130 | V17: 25144 | Y17: 5611 | Z17: 4895 | AC17: 4015 | AE17: 27830 | AF17: 865694 | AG17: 26130 | AH17: 1387567 | AI17: 1943442 | AK17: 780 | AN17: Absorption Account Surplus, Sundry Income, Consents Fees, Net Absumption Account Surplus, Consent Fees
B18: 16 | C18: Burnt Fen | D18: 321860 | E18: 45002 | F18: 746 | L18: 60986 | M18: 9683 | O18: 4050 | P18: 442327 | R18: 83589 | S18: 177704 | T18: 105404 | U18: 28681 | Z18: 750 | AB18: 18195 | AC18: 251843 | AE18: 10167 | AF18: 676333 | AG18: -75250 | AH18: -309256 | AI18: 4984 | AK18: 4954 | AN18: Consent Application Fees £4,250, Net Absorption Accounts Surplus £22,746
B19: 17 | C19: Cawdle Fen | D19: 1059 | E19: 25645 | F19: 1637 | M19: 977 | N19: 350 | P19: 29668 | R19: 3279 | S19: 8334 | T19: 6777 | U19: 7443 | Z19: 250 | AB19: 2740 | AC19: 7435 | AF19: 36258 | AH19: -6590 | AI19: 28604 | AK19: 37
B20: 18 | C20: Churchfield and Plawfield | D20: 7778 | E20: 35935 | G20: 6964 | M20: 543 | O20: 1076 | P20: 52296 | Q20: 109 | R20: 2982 | S20: 16866 | U20: 7256 | Z20: 498 | AA20: 647 | AF20: 28358 | AH20: 23938 | AI20: 19507 | AK20: 605.96
B21: 19 | C21: Connington & Holme | D21: 32815 | E21: 7936 | F21: 3381 | M21: 192 | O21: 1851 | P21: 46175 | Q21: 219 | R21: 2207 | S21: 11841 | T21: 627 | U21: 10825 | Z21: 421 | AA21: 522 | AB21: 290 | AC21: 16857 | AF21: 43809 | AH21: 2366 | AI21: 29479 | AK21: 275.21 | AN21: Write back of Provisions, consents | AO21: Insurance, Development Contributions
B22: 20 | C22: Cowick & Snaith | D22: 17098 | E22: 81195 | L22: 22386 | M22: 1657 | O22: 0 | P22: 122336 | R22: 5276 | S22: 29461 | T22: 18395 | U22: 28778 | X22: 3800 | AA22: 0 | AC22: 20424 | AF22: 106134 | AH22: 16202 | AK22: 266 | AN22: Write back of Provisions
B23: 21 | C23: Curf and Wimblington Combined IDB | D23: 106509 | E23: 11512 | F23: 9927 | G23: 6764 | L23: 0 | M23: 1813 | N23: 16 | O23: 6086 | P23: 142627 | R23: 10633 | S23: 32623 | T23: 22908 | U23: 13886 | X23: 10988 | Z23: 605 | AA23: 3665 | AB23: 10180 | AC23: 76144 | AF23: 181632 | AH23: -39005 | AI23: 21655 | AK23: 429.32
B24: 22 | C24: Danvm Drainage Commissioners | D24: 248901 | E24: 1618941 | F24: 58549 | H24: 222946 | L24: 822809 | M24: 19423 | O24: 44874 | P24: 3036443 | Q24: 101875 | R24: 306482 | S24: 699224 | T24: 499148 | U24: 466839 | AA24: 104357 | AC24: 593971 | AE24: 55095 | AF24: 2826991 | AG24: 38400 | AH24: 247852 | AJ24: 208266 | AK24: 14843 | AN24: Write Back of Provisions, Consents,Contributions from Byall Fen, Rent
B25: 23 | C25: Dempster IDB | D25: 16292 | E25: 39186 | M25: 814 | O25: 100 | P25: 56392 | R25: 3268 | S25: 30697 | T25: 9135 | U25: 15957 | AC25: 13045 | AF25: 72102 | AH25: -15710 | AN25: Court Summons, Consent Fees,Management Fees,Other Income,Wayleaves,Miscellaneous | AO25: Plants and Machinary Purchase
B26: 24 | C26: Doncaster East | D26: 118324 | E26: 1075752 | G26: 468732 | I26: 35270 | L26: 5768 | N26: 211 | O26: 19455 | P26: 1723512 | Q26: 80845 | R26: 218880 | S26: 364265 | T26: 228200 | U26: 256547 | V26: 30670 | W26: 5768 | X26: 14385 | AA26: 18 | AC26: 324670 | AE26: 4860 | AF26: 1529108 | AH26: 194404 | AI26: 33695 | AJ26: 19363 | AK26: 259 | AN26: Consents Fee
B27: 25 | C27: Downham & Stow Bardolph | D27: 124347 | E27: 61512 | L27: 6422 | M27: 4487 | P27: 196768 | R27: 3822 | S27: 66583 | T27: 36000 | U27: 21117 | X27: 15352 | AB27: 9209 | AC27: 83040 | AE27: 3395 | AF27: 238518 | AH27: -41750 | AI27: 2262 | AK27: 16223 | AN27: Consent & Applications Fees, Admin Fees Recharged,Summon Cost Receipts, other Incomes | AO27: £18 Bad Debts
B28: 26 | C28: Earby & Salterforth | D28: 1154 | E28: 9625 | F28: 890 | P28: 11669 | R28: 210 | S28: 4234 | U28: 6872 | Z28: 500 | AF28: 11816 | AH28: -147 | AK28: 17
B29: 27 | C29: East Harling | D29: 18673 | E29: 23278 | F29: 9019 | I29: 5000 | M29: 9969 | P29: 65939 | R29: 5896 | S29: 63657 | U29: 18029 | AF29: 87582 | AH29: -21643 | AK29: 140
B30: 28 | C30: East of the Ouse, Polver and Nar IDB | D30: 65844 | E30: 320540 | F30: 32387 | L30: 22266 | M30: 19380 | O30: 200 | P30: 460617 | R30: 54937 | S30: 134742 | T30: 144844 | U30: 47436 | AB30: 17487 | AC30: 143067 | AE30: 16765 | AF30: 559278 | AH30: -98661 | AI30: 330715 | AK30: 3195
B31: 29 | C31: East Suffolk IDB | D31: 317873 | E31: 223599 | F31: 156394 | G31: 90121 | H31: 697017 | J31: 135145 | L31: 352322 | M31: 162031 | O31: 1445 | P31: 2135947 | Q31: 697017 | R31: 97162 | S31: 60276 | T31: 175475 | U31: 158487 | V31: 135145 | W31: 348091 | X31: 75134 | Z31: 9500 | AC31: 143836 | AF31: 1900123 | AH31: 235834 | AI31: 167766 | AJ31: 667221 | AK31: 791
B32: 30 | C32: Euixmoor | D32: 37266 | E32: 2992 | M32: 850 | O32: 5767 | P32: 46875 | R32: 4046 | S32: 7247 | T32: 4367 | U32: 14881 | Z32: 371 | AA32: 1213 | AB32: 311 | AC32: 21172 | AF32: 53608 | AH32: -6733 | AI32: 944 | AJ32: 2149 | AK32: 313.16
B33: 31 | C33: Feldale | D33: 10732.9 | E33: 15492.18 | F33: 615.95 | G33: 90682.33 | P33: 117523.36 | R33: 533 | S33: 1445.25 | T33: 3890.51 | U33: 7268.75 | Z33: 0 | AF33: 13137.51 | AH33: 104385.85 | AK33: 751.96 | AN33: Write Back of Provisions,Legal Fees Recoverable
B34: 32 | C34: Foss IDB (2008) | D34: 55519 | E34: 352990 | F34: 72583 | L34: 3957 | M34: 10348 | O34: 353699 | P34: 849096 | R34: 13796 | S34: 297436 | U34: 485690 | W34: 3957 | X34: 0 | Z34: 745 | AC34: 9781 | AE34: 19497 | AF34: 830902 | AG34: -6956 | AH34: 11238 | AK34: 184
B35: 33 | C35: Goole and Airmyn IDB | D35: 6499 | E35: 309948 | G35: 26692 | M35: 16467 | O35: 150 | P35: 359756 | R35: 68860 | S35: 28147 | T35: 38389 | U35: 56173 | X35: 7373 | Z35: 3000 | AB35: 3278 | AC35: 27760 | AF35: 232980 | AH35: 126776
B36: 34 | C36: Goole Fields | D36: 26127 | E36: 6791 | M36: 0 | O36: 2 | P36: 32920 | R36: 2453 | S36: 8848 | T36: 786 | U36: 10222 | X36: 0 | Z36: 500 | AB36: 1502 | AC36: 14811 | AF36: 39122 | AH36: -6202 | AN36: Consent Income
B37: 35 | C37: Haddenham Level | D37: 143877 | E37: 79588 | F37: 11217 | L37: 8327 | M37: 3456 | O37: 48358 | P37: 294823 | R37: 37773 | S37: 48978 | T37: 31094 | U37: 14005 | X37: 42964 | Z37: 493 | AA37: 3979 | AB37: 11473 | AC37: 150629 | AE37: 8628 | AF37: 350016 | AH37: -55193 | AI37: 3626 | AK37: 151.36
B38: 36 | C38: Holmewood and District DB | D38: 76469 | E38: 3162.5 | F38: 3349.51 | M38: 0 | O38: 0 | P38: 82981.01 | R38: 9882.88 | S38: 7039.5 | T38: 56935.5 | U38: 6818.35 | Z38: 0 | AA38: 0 | AF38: 80676.23 | AH38: 2304.78 | AK38: 301.6 | AN38: write back of Provisions,Consents,Recharge of Expense,Insurance Claim,Metered Discharge
B39: 37 | C39: Hundred Foot Washes IDB | D39: 28465 | E39: 176 | M39: 317 | O39: 94 | P39: 29052 | R39: 1393 | S39: 11241 | U39: 6739 | Z39: 284 | AA39: 161 | AF39: 19818 | AH39: 9234 | AJ39: 1885 | AK39: 205.02
B40: 38 | C40: Hundred of Wisbech | D40: 10439 | E40: 204823 | G40: 1485 | H40: 11705 | M40: 22742 | O40: 250 | P40: 251444 | Q40: 141510 | R40: 17780 | S40: 53778 | T40: 102701 | U40: 21500 | X40: 74628 | Z40: 371 | AA40: 194 | AF40: 412462 | AH40: -161018 | AI40: 101075 | AK40: 596.83 | AN40: Write back of Provisions
B41: 39 | C41: Kings Lynn | D41: 496267 | E41: 2294660 | F41: 96150 | G41: 221867 | H41: 176596 | I41: 208007 | L41: 27741 | M41: 414248 | N41: 2114 | O41: 2350 | P41: 3940000 | Q41: 1066447 | R41: 182195 | S41: 929487 | T41: 282110 | U41: 374966 | V41: 198026 | X41: 275296 | Z41: 8000 | AA41: 125415 | AC41: 812366 | AD41: 6932 | AE41: 104607 | AF41: 4365847 | AG41: 34030 | AH41: -391817 | AI41: 1504577 | AK41: 278 | AN41: Write back of Provisions, Consents
B42: 40 | C42: Kyle and Upper Ouse IDB | D42: 59503 | E42: 159965 | F42: 29851 | M42: 5727 | O42: 150 | P42: 255196 | R42: 10793 | S42: 168207 | U42: 46238 | X42: 2401 | AE42: 17269 | AF42: 244908 | AG42: 27000 | AH42: 37288 | AK42: 11514 | AN42: Sundry Income
B43: 41 | C43: Lakenheath | D43: 78156 | E43: 16981 | F43: 28451 | L43: 290 | M43: 2577 | N43: 51 | O43: 0 | P43: 126506 | R43: 23604 | S43: 13315 | T43: 180253 | U43: 11464 | Z43: 750 | AB43: 6277 | AC43: 184360 | AF43: 420023 | AH43: -293517 | AI43: 2169 | AK43: 1444 | AN43: Consent Fees
B44: 42 | C44: Lindsey Marsh DB | D44: 1432652 | E44: 4104093 | F44: 130763 | G44: 63656 | H44: 2492728 | I44: 93004 | L44: 377475 | M44: 75711 | N44: 1088 | O44: 1177491 | P44: 9948661 | Q44: 5760624 | R44: 450451 | S44: 1080664 | T44: 514183 | U44: 2735018 | V44: 79987 | W44: 338323 | Z44: 8156 | AA44: 300 | AC44: 1080679 | AD44: 6159 | AE44: 111455 | AF44: 12165999 | AG44: 51582 | AH44: -2165756 | AI44: 165400 | AK44: 6702
B45: 43 | C45: Littleport and Downham | D45: 748535 | E45: 256780 | F45: 91813 | G45: 3001 | L45: 10055 | M45: 12001 | O45: 650 | P45: 1122835 | R45: 158502 | S45: 420871 | T45: 176821 | U45: 41581 | Z45: 1000 | AB45: 33496 | AC45: 328719 | AE45: 52065 | AF45: 1213055 | AG45: 36972 | AH45: -127192 | AI45: 62842 | AK45: 67786 | AN45: Equipment Sale, Consortium Recharge Income, Consent and Applications, Stewart Income, Insurance Claim, Court Summons Receipt, Credit Card Income, other Income,own use of absoption | AO45: bad debts
B46: 44 | C46: Lower Medway IDB | D46: 50114 | E46: 1615435 | F46: 73432 | G46: 47636 | L46: 96905 | M46: 82240 | N46: 30027 | O46: 87290 | P46: 2083079 | R46: 335000 | S46: 396821 | T46: 300222 | U46: 319445 | Z46: 15356 | AC46: 29755 | AE46: 19736 | AF46: 1416335 | AG46: 1928 | AH46: 668672 | AI46: 0 | AK46: 7764 | AN46: Consent Fees
B47: 45 | C47: Lower Severn IDB(2005) | D47: 149488 | E47: 1618075 | F47: 177581 | L47: 70230 | M47: 16824 | O47: 7083 | P47: 2039281 | R47: 226984 | S47: 1074119 | T47: 80330 | U47: 351811 | W47: 70230 | Z47: 132475 | AB47: 7488 | AC47: 78979 | AE47: 53686 | AF47: 2076102 | AG47: 36822 | AH47: 0 | AI47: 71144 | AK47: 1900 | AN47: Sale of Assets.Consents Fees
B48: 46 | C48: Manea & Welney | D48: 161023 | E48: 63385 | F48: 854 | G48: 10905 | M48: 6720 | O48: 895 | P48: 243782 | R48: 79107 | S48: 71682 | T48: 18099 | U48: 17649 | Z48: 493 | AA48: 3940 | AB48: 2884 | AC48: 47799 | AD48: 25424 | AE48: 8933 | AF48: 276010 | AH48: -32228 | AI48: 66321 | AJ48: 7445 | AK48: 1571.05
B49: 47 | C49: March East | D49: 62892 | E49: 57838 | F49: 1753 | G49: 11382 | M49: 4091 | O49: 8418 | P49: 146374 | R49: 12658 | S49: 37141 | T49: 17830 | U49: 12938 | Z49: 742 | AA49: 2659 | AB49: 849 | AC49: 106137 | AD49: 943 | AE49: 314 | AF49: 192211 | AH49: -45837 | AI49: 73134 | AK49: 423.83 | AN49: Wayleaves, Write back of Provision, Consents | AO49: insurance
B50: 48 | C50: March 5th | D50: 3499 | E50: 28411 | F50: 1614 | M50: 800 | O50: 294 | P50: 34618 | R50: 2225 | S50: 10110 | T50: 2218 | U50: 9566 | Z50: 493 | AA50: 662 | AB50: 307 | AC50: 6962 | AF50: 32543 | AH50: 2075 | AI50: 62811 | AK50: 82.69 | AN50: Write back of Provisions,Consents, Stitches Fen Contributions,Rent | AO50: Insurance, Development Contribution Fees
B51: 49 | C51: March 6th | D51: 8883 | E51: 5983 | F51: 1699 | G51: 340 | M51: 627 | O51: 50 | P51: 17582 | Q51: 2237 | R51: 1188 | S51: 6264 | T51: 1904 | U51: 4194 | Z51: 371 | AA51: 462 | AB51: 156 | AC51: 6515 | AF51: 23291 | AH51: -5709 | AI51: 36257 | AK51: 95.83 | AN51: Write Back of Provisions,Rent | AO51: insurance
B52: 50 | C52: March 3rd | D52: 131 | E52: 1159 | F52: 2980 | G52: 947 | M52: 3911 | O52: 25506 | P52: 34634 | R52: 1992 | S52: 8600 | T52: 1743 | U52: 9830 | Z52: 493 | AA52: 781 | AB52: 282 | AC52: 15033 | AF52: 38754 | AH52: -4120 | AI52: 66575 | AK52: 0.84 | AN52: Write Back of Provisions | AO52: insurance
B53: 51 | C53: March West and White Fen | D53: 117608 | E53: 49398 | F53: 2526 | M53: 2424 | O53: 117 | P53: 172073 | R53: 16871 | S53: 51665 | T53: 34639 | U53: 17957 | Z53: 753 | AA53: 3216 | AB53: 4682 | AC53: 107378 | AF53: 237161 | AH53: -65088 | AI53: 58008 | AK53: 1038.64 | AN53: Write Back of Provisions,Consents,Rent | AO53: insurance
B54: 52 | C54: Melverley IDB | D54: 42287 | E54: 0 | F54: 6891 | M54: 121 | O54: 8722 | P54: 58021 | R54: 4121 | S54: 34916 | T54: 0 | U54: 8095 | Z54: 7099 | AC54: 0 | AF54: 54231 | AH54: 3790 | AI54: 0 | AK54: 8801 | AN54: Wayleaves,Write back of Provisions, Rent
B55: 53 | C55: Middle Fen and Mere | D55: 378653 | E55: 133524 | F55: 27262 | G55: 2464 | L55: 241223 | M55: 4701 | O55: 1000 | P55: 788827 | R55: 101112 | S55: 155005 | T55: 129808 | U55: 10655 | W55: 114176 | X55: 6094 | Z55: 1000 | AB55: 28381 | AC55: 342023 | AE55: 37456 | AF55: 925710 | AG55: 25470 | AH55: -162353 | AI55: 70153 | AK55: 53357 | AN55: Contents Fee, Vat refund
B56: 54 | C56: Middle Level Commissioners | D56: 2051805 | E56: 1094133 | F56: 424362 | G56: 12702 | H56: 1027522 | I56: 11068 | L56: 335517 | M56: 98254 | N56: 24242 | O56: 794026 | P56: 5873631 | Q56: 1348194 | R56: 17950 | S56: 542795 | T56: 435490 | U56: 1471377 | V56: 11068 | W56: 335517 | X56: 1498846 | Z56: 28771 | AA56: 99553 | AC56: 1029851 | AD56: 199392 | AE56: 73288 | AF56: 7092092 | AG56: 295750 | AH56: -922711 | AI56: 910257 | AJ56: 589522 | AK56: 23730.62 | AN56: Consent Fees
B57: 55 | C57: Mildenhall | D57: 95058 | E57: 83988 | F57: 34050 | L57: 10218 | M57: 1807 | O57: 4703 | P57: 229824 | R57: 41402 | S57: 54509 | T57: 80545 | U57: 15939 | X57: 1059 | Z57: 750 | AB57: 10202 | AC57: 144714 | AE57: 2339 | AF57: 351459 | AH57: -121635 | AI57: 33528 | AK57: 3162
B58: 56 | C58: Needham & Laddus | D58: 22157 | E58: 30234 | G58: 340 | M58: 921 | O58: 665 | P58: 54317 | R58: 6790 | S58: 31564 | T58: 0 | U58: 10522 | Z58: 493 | AA58: 189 | AC58: 0 | AF58: 49558 | AH58: 4759 | AI58: 43379 | AJ58: 6338 | AK58: 377.64 | AN58: Wayleaves, Consents Fee, Includes credit note for consultancy, originally shown in col S
B59: 57 | C59: Nightlayers | D59: 5486 | E59: 30161 | F59: 7101 | G59: 1360 | M59: 2980 | O59: 80200 | P59: 127288 | R59: 3541 | S59: 17087 | T59: 6302 | U59: 5883 | Z59: 574 | AA59: 2082 | AB59: 381 | AC59: 37565 | AD59: 34 | AE59: 11 | AF59: 73460 | AH59: 53828 | AI59: 152895 | AK59: 235.85 | AN59: Consents Fees, Write back of Provisions,
B60: 58 | C60: Nordelph | D60: 22101 | E60: 1615 | F60: 0 | M60: 276 | O60: 20 | P60: 24012 | Q60: 647 | R60: 1794 | S60: 4850 | T60: 1807 | U60: 6526 | X60: 2935 | Z60: 411 | AA60: 349 | AB60: 156 | AC60: 8308 | AF60: 27783 | AH60: -3771 | AI60: 0 | AK60: 740.86 | AN60: Sale of Land, Write back of Provisions, Consents, | AO60: Insurance, Development Contribution Fee
B61: 59 | C61: Norfolk Rivers | D61: 95297 | E61: 368473 | F61: 102710 | H61: 11943 | I61: 155865 | J61: 351882 | L61: 135397 | M61: 28832 | O61: 41435 | P61: 1291834 | Q61: 11943 | R61: 79384 | S61: 371058 | U61: 167876 | V61: 507747 | W61: 104575 | Z61: 5192 | AC61: 2709 | AE61: 4051 | AF61: 1254535 | AH61: 37299 | AI61: 210035 | AJ61: 90029 | AN61: Write Back of Provisions | AO61: Insurance
B62: 60 | C62: North East Lindsey | D62: 27112 | E62: 723634 | F62: 121841 | H62: 110000 | I62: 168948 | L62: 10752 | M62: 19677 | O62: 1296 | P62: 1183260 | Q62: 263340 | R62: 161019 | S62: 265060 | T62: 87060 | U62: 136543 | V62: 168948 | W62: 10752 | Z62: 3738 | AB62: 13850 | AC62: 42374 | AE62: 4618 | AF62: 1157302 | AH62: 25958 | AI62: 101566 | AJ62: 170140 | AK62: 1248 | AN62: Absorption Account Surplus, Sundry Income
B63: 61 | C63: North Kent Marshes | D63: 8802 | E63: 99820 | F63: 336 | G63: 48097 | H63: 9500 | I63: 0 | L63: 0 | M63: 802 | O63: 0 | P63: 167357 | Q63: 38013 | R63: 46858 | S63: 7994 | U63: 38171 | V63: 0 | W63: 0 | Z63: 0 | AC63: 0 | AF63: 131036 | AH63: 36321 | AI63: 0 | AK63: 5033
B64: 62 | C64: North Level District IDB | D64: 801196 | E64: 1086719 | G64: 60376 | H64: 1218334 | I64: 69302 | L64: 25857 | M64: 59742 | N64: 47955 | O64: 62089 | P64: 3431570 | Q64: 550031 | R64: 117185 | S64: 658013 | T64: 308671 | U64: 275566 | V64: 69302 | W64: 20375 | Y64: 2412 | Z64: 15283 | AA64: 55027 | AB64: 27248 | AC64: 390593 | AD64: 158318 | AE64: 96495 | AF64: 2744519 | AG64: 2101 | AH64: 689152 | AI64: 48375 | AJ64: 85137 | AK64: 7238
B65: 63 | C65: North Somerset Levels IDB | D65: 96022 | E65: 630280 | G65: 4029 | H65: 11783 | L65: 3048 | M65: 16229 | O65: 3906 | P65: 765297 | Q65: 65861 | R65: 117121 | S65: 172565 | T65: 8548 | U65: 304760 | W65: 6642 | X65: 413 | Z65: 12143 | AC65: 0 | AE65: 2492 | AF65: 690545 | AH65: 74754 | AI65: 496551 | AK65: 3783.85 | AN65: Misscellaneous, Contribution to pumping, Feed in Tariff from Solar Panels | AO65: Property Maintenace, Audit Bad Debt, Plant write off
B66: 64 | C66: Northwold | D66: 13478 | E66: 276 | F66: 474 | M66: 156 | P66: 14384 | R66: 5927 | S66: 4053 | U66: 3264 | AC66: 0 | AE66: 0 | AF66: 13244 | AH66: 1140
B67: 65 | C67: Old West | D67: 171942 | E67: 47061 | F67: 11477 | M67: 1777 | O67: 300 | P67: 232557 | R67: 54596 | S67: 91521 | T67: 56364 | U67: 20534 | Z67: 750 | AC67: 58960 | AE67: 26460 | AF67: 309185 | AH67: -76628 | AI67: 678 | AK67: 16255
B68: 66 | C68: Ouse and Derwent IDB | D68: 91062 | E68: 445531 | F68: 3803 | L68: 632659 | M68: 16716 | N68: 11997 | O68: 1221 | P68: =SUM(D68:O68) -> 1202989 | R68: 92369 | S68: 294427 | T68: 142777 | U68: 83264 | W68: 221267 | Z68: 737 | AA68: 164 | AC68: 445434 | AE68: 12275 | AF68: =SUM(Q68:AE68) -> 1292714 | AH68: -89725 | AK68: 502 | AN68: Consent Fees
B69: 67 | C69: Ouse and Humber | D69: 799963 | E69: 1043974 | F69: 13283 | H69: 75341 | I69: 245424 | K69: 183000 | L69: 387031 | M69: 28675 | O69: 637140 | P69: 3413831 | Q69: 95860 | R69: 105359 | S69: 396740 | T69: 255602 | U69: 1074635 | V69: 245424 | W69: 370432 | X69: 91521 | Z69: 0 | AA69: 364530 | AC69: 311682 | AE69: 72954 | AF69: 3384739 | AG69: 53400 | AH69: 82492 | AJ69: 102595 | AK69: 9506
B70: 68 | C70: Over and Willingham | D70: 14954 | E70: 24826 | F70: 4378 | L70: 10310 | M70: 478 | O70: 44 | P70: 54990 | Q70: 0 | R70: 16987 | S70: 8633 | T70: 2345 | U70: 5405 | X70: 3237 | Z70: 340 | AA70: 800 | AB70: 2639 | AC70: 37902 | AF70: 78288 | AH70: -23298 | AI70: 1694 | AK70: 2546.97 | AN70: Operational Works, Court Summons, Consents Fees,Shared Services, Misscellaneous, Consortium Fees, Private Work, Weedboat, | AO70: Plant and machinery purchase
B71: 69 | C71: Padnal and Waterden | D71: 39401 | E71: 102192 | F71: 5391 | G71: 1358 | L71: 8572 | M71: 8453 | N71: 13 | O71: 50 | P71: 165430 | Q71: 12789 | R71: 16417 | S71: 22575 | T71: 40862 | U71: 12182 | Z71: 500 | AA71: 1251 | AB71: 4083 | AC71: 26724 | AF71: 137383 | AH71: 28047 | AI71: 196631 | AK71: 414 | AN71: Write back of Provisions | AO71: insurance
B72: 70 | C72: Parrett | D72: 193882 | E72: 1035681 | G72: 2025 | H72: 13292 | J72: 355608 | L72: 7192 | M72: 25867 | O72: 6301 | P72: 1639848 | Q72: 16474 | R72: 237867 | S72: 256768 | T72: 9276 | U72: 526566 | V72: 367295 | W72: 4848 | X72: 611 | Z72: 13292 | AB72: 295 | AC72: 2170 | AE72: 5108 | AF72: 1440570 | AH72: 199278 | AI72: 428398 | AK72: 5628.41 | AN72: Consent Fee | AO72: Contribution to Drainage Charges
B73: 71 | C73: Pevensey and Cuckmere | D73: 40904 | E73: 352424 | F73: 86330 | G73: 283947 | H73: 90221 | L73: 11166 | M73: 34310 | O73: 1798 | P73: 901100 | Q73: 140349 | R73: 10000 | S73: 266415 | T73: 190170 | U73: 59629 | W73: 10016 | Z73: 1901 | AC73: 100277 | AE73: 2304 | AF73: 781061 | AG73: 16009 | AH73: 136048 | AI73: 1022267 | AK73: 268
B74: 72 | C74: Ramsey 1st (Hollow) | D74: 90797 | E74: 6467 | F74: 18972 | G74: 0 | H74: 0 | M74: 1096 | O74: 50 | P74: 117382 | Q74: 0 | R74: 6748 | S74: 27963 | T74: 13668 | U74: 8469 | X74: 13963 | Z74: 329 | AA74: 1309 | AB74: 4089 | AC74: 62619 | AD74: 887 | AE74: 296 | AF74: 140340 | AH74: -22958 | AI74: 29610 | AK74: 476.7 | AN74: Sundry Income
B75: 73 | C75: Ramsey 4th (Middlemoor) | D75: 36834 | E75: 26516 | G75: 340 | M75: 859 | O75: 9989 | P75: 74538 | Q75: 5660 | R75: 6184 | S75: 14221 | T75: 6176 | U75: 8235 | X75: 15803 | Z75: 371 | AA75: 2146 | AB75: 1988 | AC75: 33386 | AF75: 94170 | AH75: -19632 | AI75: 18851 | AK75: 422.85 | AN75: Write Back of Provisions | AO75: Insurance
B76: 74 | C76: Ramsey | D76: 5167 | E76: 33742 | F76: 2663 | G76: 23000 | M76: 1377 | P76: 65949 | R76: 1371 | S76: 5467 | T76: 7411 | U76: 15332 | X76: 291 | Z76: 268 | AB76: 328 | AC76: 4159 | AF76: 34627 | AH76: =SUM(P76-AF76+AG76) -> 31322 | AI76: 23000 | AK76: 5167 | AN76: Write back of Provisions,Recharge of Expenses, Rent, | AO76: Insurance, Rental Management Charges
B77: 75 | C77: Ramsey Upwood & Gt. Raveley | D77: 39614 | E77: 38884 | F77: 7189 | M77: 4381 | O77: 152 | P77: 90220 | R77: 5493 | S77: 20617 | T77: 6801 | U77: 8368 | Z77: 421 | AA77: 1302 | AB77: 3416 | AC77: 40710 | AF77: 87128 | AH77: 3092 | AI77: 3373 | AK77: 1089.48
B78: 76 | C78: Ransonmoor | D78: 39018 | E78: 11561 | F78: 4612 | G78: 3673 | M78: 1859 | O78: 370 | P78: 61093 | R78: 6309 | S78: 8539 | T78: 2625 | U78: 11132 | Z78: 525 | AA78: 1557 | AB78: 2627 | AC78: 43429 | AD78: 781 | AE78: 260 | AF78: 77784 | AH78: -16691 | AI78: 20745 | AJ78: 16966 | AK78: 304.14 | AN78: Wayleaves,Consent | AO78: Insurance, Write back of Provisions
B79: 77 | C79: Rawcliffe DB | D79: 16803 | E79: 89262 | H79: 86180 | L79: 23574 | M79: 2265 | O79: 120 | P79: 218204 | Q79: 45031 | R79: 9163 | S79: 19546 | T79: 25039 | U79: 34672 | AC79: 34276 | AD79: 659 | AF79: 168386 | AH79: 49818 | AK79: 26 | AN79: Rent, Write of Provisions, | AO79: Insurance, Development Contribution Fees
B80: 78 | C80: Rea IDB | D80: 12071 | F80: 2584 | O80: 1934 | P80: 16589 | R80: 1448 | S80: 9354 | U80: 3592 | Z80: 3117 | AC80: 0 | AF80: 17511 | AH80: -922 | AK80: 1173 | AN80: Compensation
B81: 79 | C81: Reedness and Swinefleet DB | D81: 58032 | E81: 41692 | M81: 2508 | O81: 35701 | P81: 137933 | R81: 8287 | S81: 64410 | T81: 4197 | U81: 21485 | X81: 1808 | Z81: 0 | AC81: 19753 | AF81: 119940 | AH81: 17993 | AN81: (VAT refund)
B82: 80 | C82: River Lugg IDB | D82: 91107 | E82: 140205 | F82: 18646 | G82: 3100 | M82: 4508 | O82: 100 | P82: 257666 | R82: 18646 | S82: 109579 | U82: 78985 | Z82: 2233 | AF82: 209443 | AH82: 48223 | AK82: 8690 | AN82: National Grid Compensation, Natural England,Goole IDB, Barker Agreement, Court Summons, Consents,
B83: 81 | C83: River Stour (Kent) IDB | D83: 71281 | E83: 635171 | F83: 68258 | G83: 101196 | H83: 22166 | I83: 197087 | L83: 3964 | M83: 28931 | N83: 9900 | O83: 1250 | P83: 1139204 | Q83: 20424 | R83: 97753 | S83: 426414 | T83: 70388 | U83: 125479 | V83: 177944 | W83: 3486 | Y83: 47740 | Z83: 21483 | AA83: 2483 | AF83: 993594 | AH83: 145610 | AI83: 101196 | AK83: 580.95 | AN83: Consents income
B84: 82 | C84: Romney Marshes Area IDB | D84: 218725 | E84: 701273 | F84: 46522 | G84: 4500 | I84: 0 | M84: 16940 | O84: 400 | P84: 988360 | R84: 377500 | S84: 253417 | T84: 13029 | U84: 249516 | Y84: 15912 | Z84: 7057 | AA84: 0 | AB84: 770 | AC84: 10077 | AE84: 4871 | AF84: 932149 | AH84: 56211 | AI84: 4223 | AK84: 2497 | AN84: Consents | AO84: mobile pump main
B85: 83 | C85: Sawtry | D85: 38650 | E85: 21588 | F85: 8481 | I85: 0 | M85: 8390 | O85: 105 | P85: 77214 | R85: 6814 | S85: 18036 | T85: 4592 | U85: 10418 | Z85: 569 | AA85: 1156 | AB85: 467 | AC85: 20946 | AF85: 62998 | AH85: 14216 | AI85: 340039 | AK85: 16.9 | AN85: Consents
B86: 84 | C86: Scunthorpe and Gainsborough WLM Board | D86: 154214 | E86: 348422 | F86: 105185 | I86: 38491 | L86: 1534 | M86: 8900 | O86: 1064 | P86: 657810 | Q86: 216266 | R86: 64399 | S86: 169433 | T86: 47962 | U86: 77687 | V86: 41986 | X86: 95350 | Z86: 3269 | AB86: 61987 | AC86: 184596 | AD86: 28901 | AE86: 2821 | AF86: 994657 | AH86: -336847 | AJ86: 295881 | AK86: 490 | AN86: Write back of Provisions, Rent | AO86: Insurance
B87: 85 | C87: Selby Area IDB | D87: 149843 | E87: 1256947 | F87: 10937 | I87: 61411 | L87: 152389 | M87: 38695 | N87: 6000 | O87: 980 | P87: 1677202 | Q87: 32198 | R87: 136931 | S87: 646866 | T87: 239123 | U87: 172277 | V87: 61411 | W87: 9342 | X87: 21130 | AC87: 169656 | AE87: 49457 | AF87: 1538391 | AG87: 41114 | AH87: 179925 | AJ87: 29371 | AK87: 28678 | AN87: Misc Income, Rent,
B88: 86 | C88: South Holderness | D88: 118744 | E88: 65215 | F88: 11233 | I88: 105493 | M88: 4607 | N88: 1281 | P88: 306573 | R88: 36970 | S88: 42373 | U88: 70631 | V88: 41361 | W88: 20460 | X88: 98 | AA88: 709 | AF88: 212602 | AH88: 93971 | AK88: 2018 | AN88: Wayleaves, Consent Fees,
B89: 87 | C89: South Holland | D89: 1340038 | E89: 1615110 | H89: 1024436 | I89: 126800 | L89: 52163 | M89: 148326 | N89: 1334 | O89: 90702 | P89: 4398909 | Q89: 1139389 | R89: 145835 | S89: 1257502 | T89: 403662 | U89: 553095 | V89: 126800 | W89: 39482 | Z89: 9820 | AC89: 514145 | AE89: 91686 | AF89: 4281416 | AG89: 7211 | AH89: 124704 | AI89: 946863 | AJ89: 203927
B90: 88 | C90: Southery & District | D90: 363772 | E90: 219856 | F90: 20993 | L90: 109168 | M90: 6471 | N90: 208 | O90: 8647 | P90: 729115 | R90: 120791 | S90: 252290 | T90: 161305 | U90: 58032 | AB90: 28496 | AC90: 302750 | AE90: 30432 | AF90: 954096 | AG90: -12700 | AH90: -237681 | AK90: 10724.5 | AN90: insurance claim, Absorption Account Surplus, Sundry Income,
B91: 89 | C91: Sow and Penk DB | D91: 11905 | E91: 117944 | G91: 7119 | M91: 2476 | O91: 100 | P91: 139544 | R91: 8635 | S91: 100267 | T91: 0 | U91: 26536 | Z91: 1500 | AA91: 2373 | AF91: 139311 | AH91: 233 | AN91: Wayleaves, Consents
B92: 90 | C92: Stoke Ferry | D92: 52596 | E92: 53057 | F92: 14593 | L92: 6258 | M92: 7924 | O92: 3300 | P92: 137728 | R92: 11346 | S92: 66228 | T92: 24463 | U92: 22597 | AB92: 6521 | AC92: 28392 | AF92: 159547 | AH92: -21819 | AI92: 5687 | AK92: 805 | AO92: county show
B93: 91 | C93: Strine IDB | D93: 24251 | E93: 0 | F93: 1172 | M93: 569 | P93: 25992 | R93: 1172 | S93: 9401 | U93: 5382 | X93: 123 | AF93: 16078 | AH93: 9914 | AK93: 2980 | AN93: Consent Fees
B94: 92 | C94: Stringside | D94: 8713 | E94: 2027 | F94: 1432 | G94: 3842 | M94: 296 | O94: 150 | P94: 16460 | R94: 2641 | S94: 10605 | U94: 4579 | AE94: 0 | AF94: 17825 | AH94: -1365 | AK94: 86
B95: 93 | C95: Sutton & Mepal | D95: 234678 | E95: 54798 | F95: 8470 | G95: 46 | I95: 2700 | L95: 5415 | M95: 6876 | O95: 36438 | P95: 349421 | R95: 118827 | S95: 63605 | T95: 44513 | U95: 20863 | V95: 2700 | Z95: 708 | AA95: 5521 | AC95: 234226 | AE95: 13022 | AF95: 503985 | AG95: 25999 | AH95: -128565 | AI95: 284763 | AK95: 1851.09 | AN95: Consents Fees
B96: 94 | C96: Swaffham | D96: 247154 | E96: 49889 | F96: 10270 | L96: 52712 | M96: 1904 | O96: 388 | P96: 362317 | R96: 62743 | S96: 88935 | T96: 50880 | U96: 25987 | Z96: 750 | AC96: 270340 | AF96: 499635 | AH96: -137318 | AI96: 6719 | AK96: 19942 | AN96: Wayleave, Write back of provisions, Consents, Insurance claim and Metered discharge | AO96: Insurance
B97: 95 | C97: Swale and Ure | D97: 191630 | E97: 245020 | F97: 145336 | G97: 1173 | H97: 50000 | I97: 194767 | M97: 14197 | O97: 850 | P97: 842973 | Q97: 71469 | R97: 20660 | S97: 407637 | T97: 11957 | U97: 176713 | V97: 195500 | Z97: 4500 | AB97: 555 | AC97: 11087 | AF97: 900078 | AH97: -57105 | AK97: 289 | AN97: Wayleaves, Consent Fees
B98: 96 | C98: Swavesey | D98: 15709 | E98: 7558 | F98: 5736 | G98: 434 | M98: 842 | O98: 4200 | P98: 34479 | R98: 1887 | S98: 11980 | T98: 1212 | U98: 6202 | Z98: 708 | AA98: 670 | AB98: 282 | AC98: 16696 | AF98: 39637 | AH98: -5158 | AK98: 16
B99: 97 | C99: Thorntree IDB | D99: 19156.86 | E99: 2962.08 | M99: 264.77 | N99: 50 | O99: 100 | P99: 22533.71 | R99: 1961.38 | S99: 4763.2 | T99: 1000 | U99: 4584.91 | X99: 105 | AA99: 190 | AB99: 109.5 | AC99: 22035.57 | AF99: 34749.56 | AH99: -12215.85 | AK99: 1443.92 | AN99: Engineering Consultation Fee | AO99: Insurance
B100: 98 | C100: Trent Valley | D100: 730919 | E100: 2217184 | G100: 81075 | I100: 48615 | M100: 39094 | N100: 1934 | O100: 309093 | P100: 3427914 | Q100: 334690 | R100: 185634 | S100: 542795 | T100: 194794 | U100: 1167344 | V100: 36767 | X100: 15230 | Z100: 1607 | AA100: 1176 | AC100: 490061 | AE100: 69336 | AF100: 3039434 | AG100: 19882 | AH100: 408362 | AI100: 84669 | AK100: 11680
B101: 99 | C101: Upper Medway IDB | D101: 48403 | E101: 544889 | F101: 123058 | G101: 0 | I101: 15641 | J101: 7948 | L101: 4544 | M101: 22976 | O101: 83961 | P101: 851420 | R101: 91800 | S101: 112175 | U101: 663347 | W101: 1340 | Z101: 1794 | AA101: 0 | AB101: 212 | AC101: 3699 | AE101: 12013 | AF101: 886380 | AG101: 0 | AH101: -34960 | AK101: 126 | AN101: Use of Absorptions, Consents and Applications,Summons Cost Receipts,
B102: 100 | C102: Upper Witham | D102: 309444 | E102: 1102402 | F102: 298812 | G102: 24510 | H102: 63925 | I102: 184490 | L102: 44621 | M102: 20997 | N102: 220 | O102: 8179 | P102: 2057600 | Q102: 365891 | R102: 166826 | S102: 747675 | T102: 112672 | U102: 217103 | V102: 184490 | W102: 44621 | X102: 29457 | Z102: 273 | AA102: 0 | AB102: 37378 | AC102: 221014 | AE102: 65034 | AF102: 2192434 | AG102: 1300 | AH102: 133534 | AI102: 49500 | AJ102: 104986 | AK102: 12359 | AN102: Consents Fees, Surface Water Development Contributions,
B103: 101 | C103: Upwell | D103: 192092 | E103: 61886 | L103: 635 | M103: 4277 | O103: 953 | P103: 259843 | Q103: 8322 | R103: 42853 | S103: 73099 | T103: 31993 | U103: 25713 | X103: 30318 | Z103: 690 | AA103: 3834 | AB103: 3311 | AC103: 66522 | AD103: 20877 | AE103: 9122 | AF103: 316654 | AG103: 0 | AH103: -56761 | AI103: 33568 | AK103: 1162.25 | AN103: Sundry Income, Consents, Misc Sales,
B104: 102 | C104: Vale of Pickering | D104: 382726 | E104: 252792 | F104: 56389 | H104: 75686 | L104: 3500 | M104: 2799 | O104: 3100 | P104: 776992 | Q104: 69577 | R104: 53955 | S104: 408623 | U104: 117810 | X104: 39706 | AE104: 41462 | AF104: 731133 | AG104: 500 | AH104: 46359 | AJ104: 6109 | AK104: 5000 | AN104: Consents, Write back of Provisions,
B105: 103 | C105: Waldersey | D105: 84126 | E105: 14453 | M105: 2470 | O105: 93173 | P105: 194222 | Q105: 5272 | R105: 2633 | S105: 34808 | T105: 7733 | U105: 15645 | Z105: 498 | AA105: 2109 | AB105: 11435 | AC105: 156277 | AF105: 236410 | AH105: -42188 | AI105: 1517 | AJ105: 0 | AK105: 6609.03 | AN105: Other Income, Court Summons, Consent Fees,
B106: 104 | C106: Warboys, Somersham and Pidley | D106: 199543 | E106: 24334 | F106: 24957 | M106: 12964 | O106: 6750 | P106: 268548 | Q106: 4415 | R106: 22984 | S106: 36204 | T106: 38912 | U106: 25531 | Z106: 708 | AA106: 5351 | AB106: 15520 | AC106: 181961 | AD106: 7617 | AE106: 5148 | AF106: 344351 | AH106: -75803 | AI106: 411386 | AJ106: 164011 | AK106: 3083.29 | AN106: joint Pumping Costs, Write back of Provisions, Rents,Consents, | AO106: Insurance
B107: 105 | C107: Waterbeach Level | D107: 107612 | E107: 159949 | F107: 20433 | L107: 90466 | M107: 8433 | N107: 3600 | O107: 350 | P107: 390843 | R107: 36453 | S107: 189527 | T107: 129058 | U107: 21276 | Z107: 750 | AB107: 12109 | AC107: 111416 | AF107: 500589 | AH107: -109746 | AI107: 43308 | AJ107: 0 | AK107: 67483 | AN107: Rent, Write back of Provisions, Consents | AO107: Insurance
B108: 106 | C108: Waveney, Lower Yare and Lothingland | D108: 371825 | E108: 233999 | F108: 244256 | G108: 213638 | H108: 4829097 | M108: 127038 | O108: 1827 | P108: 6021680 | Q108: 4829097 | R108: 91735 | S108: 127032 | T108: 118694 | U108: 133930 | X108: 1675 | Z108: 4500 | AC108: 522247 | AF108: 5828910 | AH108: 192770 | AI108: 704338 | AJ108: 3424873 | AK108: 8657 | AN108: Consent Fee
B109: 107 | C109: Welland and Deepings | D109: 820284 | E109: 2066109 | F109: 38242 | G109: 77446 | H109: 451203 | L109: 31269 | M109: 87397 | N109: 87825 | O109: 7128 | P109: 3666903 | Q109: 451203 | R109: 214895 | S109: 1550404 | T109: 156290 | U109: 458002 | W109: 14242 | Z109: 6800 | AA109: 48000 | AB109: 66867 | AC109: 430778 | AD109: 109400 | AE109: 87490 | AF109: 3594371 | AG109: 32748 | AH109: 105280 | AI109: 37446 | AJ109: 3254 | AK109: 148
B110: 108 | C110: Whittlesey and District | D110: 233607 | E110: 185725 | F110: 6029 | G110: 2540 | H110: 0 | L110: 0 | M110: 1135 | O110: 7120 | P110: 436156 | R110: 33963 | S110: 139993 | T110: 147222 | U110: 43448 | Z110: 1800 | AC110: 234083 | AF110: 600509 | AH110: -163353 | AK110: 20902 | AN110: Consents and Wayleaves | AO110: pension deficit
B111: 109 | C111: Witham 1st | D111: 706850 | E111: 557493 | F111: 210005 | G111: 72385 | H111: 37853 | I111: 107637 | L111: 17382 | M111: 21812 | N111: 2665 | O111: 3857 | P111: 1737939 | Q111: 69513 | R111: 83031 | S111: 454083 | T111: 139022 | U111: 133977 | V111: 107637 | W111: 17382 | X111: 2342 | Z111: 273 | AA111: 24447 | AB111: 69737 | AC111: 484171 | AE111: 40653 | AF111: 1626268 | AG111: 17200 | AH111: 128871 | AK111: 2599
B112: 110 | C112: Witham 4th | D112: 1423544 | E112: 1699535 | G112: 24496 | H112: 3707078 | I112: 207251 | L112: 190740 | M112: 25170 | N112: 11873 | O112: 509109 | P112: 7798796 | Q112: 3719810 | R112: 309758 | S112: 1551804 | T112: 846709 | U112: 533493 | V112: 207251 | W112: 190740 | X112: 12134 | Z112: 106122 | AB112: 50466 | AC112: 271234 | AD112: 80709 | AE112: 126945 | AF112: 8007175 | AH112: -208381 | AI112: 154726 | AJ112: 1332432 | AK112: 33024 | AN112: Sundry Income, Consents, Misc Sales
B113: 111 | C113: Witham 3rd | D113: 234242 | E113: 1029718 | F113: 515090 | H113: 9576 | I113: 344395 | L113: 79682 | M113: 34345 | N113: 504 | O113: 58225 | P113: 2305777 | Q113: 60658 | R113: 105154 | S113: 781610 | T113: 309483 | U113: 155466 | V113: 344395 | W113: 78459 | Z113: 284 | AB113: 44530 | AC113: 290605 | AE113: 70189 | AF113: 2240833 | AH113: 64944 | AI113: 10400 | AJ113: 110179 | AK113: 363 | AN113: Sundry Income, Plant Contributions,
B114: 112 | C114: Woodwalton | D114: 14745.25 | E114: 579.25 | P114: 15324.5 | R114: 1953.34 | S114: 3000 | T114: 10908.06 | U114: 3794.9 | AF114: 19656.3 | AH114: -4331.8 | AK114: 6287
C116: Totals | D116: =SUM(D3:D114) -> 23357730.01 | E116: =SUM(E3:E114) -> 45816451.01 | F116: 4916231.46 | G116: 3792548.33 | H116: 19635045 | I116: 3188935 | J116: 975901 | K116: =SUM(K3:K114) -> 183000 | L116: 6495223 | M116: 2368587.77 | N116: 289343 | O116: 5193998 | P116: 116212993.6 | Q116: 26366894 | R116: 7899845.6 | S116: 25191374.95 | T116: 9620499.07 | U116: 18251434.91 | V116: 3904288 | W116: 4181821 | X116: 2542279 | Y116: 72161 | Z116: =SUM(Z3:Z114) -> 517618 | AA116: 885793 | AB116: 748998.5 | AC116: 15386762.57 | AD116: 662874 | AE116: 1880793 | AF116: 118113436.6 | AG116: =SUM(AG3:AG114) -> 745119 | AH116: -990742.02 | AI116: 15348071 | AJ116: 10935760 | AK116: 615197.21 | AL116: 14344
X117: Total cost of all biodiversity work by boards reporting SSSI costs (Bold) | Y117: =SUMIF(Y3:Y114,">0", Z3:Z114) -> 49184 | AA117: Total cost of electricity used by boards reporting a standing charge (bold) | AB117: =SUMIF(AB3:AB114,">1", AC3:AC114) -> 6667879.57 | AC117: Total cost of diesel fuel used by boards reporting costs for diesel for pumps (bold) | AD117: =SUMIF(AD3:AD114,">1", AE3:AE114) -> 706653

Sheet IDB1 Section B 2023-2024
C2: Defra Code | D2: IDBs | E2: Policy Statement | G2: Biodiversity | M2: SSSIs | U2: Access to environmental expertise | AA2: PSCAs | AH2: Type of work being undertaken | AO2: Asset Management | BB2: Health and Safety | BF2: Guidance and Best Practice | CC2: Board Membership | CP2: Public Engagement
E3: 1 | F3: 2 | G3: 3 | H3: 4 | I3: 5 | J3: 6 | K3: 7 | L3: 8 | M3: 9 | N3: Q9 Detail: SSSI WLMPs (responsible) | O3: 10 | P3: Q10 Detail: SSSI WLMPs (contribute) | Q3: 11 | R3: 12 | S3: 13 | T3: 14 | U3: 15 | V3: 16 | W3: 17 | X3: 18 | Y3: 19 | Z3: 20 | AA3: 21 | AB3: 22a | AC3: 22b | AD3: 22c | AE3: 22d | AF3: 22e | AG3: 22f | AH3: 23a | AI3: 23b | AJ3: 23c | AK3: 23d | AL3: 23e | AM3: 23f | AN3: 23g | AO3: 24 | AP3: 25 | AQ3: 26 | AR3: 27 | AS3: 28 | AT3: 29 | AU3: 30a | AV3: 30b | AW3: 30c | AX3: 30d | AY3: 30f | AZ3: 31 | BA3: 32 | BB3: 33 | BC3: 34 | BD3: 35 | BE3: 36 | BF3: 37 | BG3: 38 | BH3: 39 | BI3: 40 | BJ3: 41 | BK3: 42 | BL3: 43 | BM3: Q43 Detail | BN3: 44 | BO3: 45 | BP3: 46 | BQ3: 47 | BR3: 48 | BS3: 49 | BT3: 50 | BU3: 51 | BV3: 52 | BW3: 53 | BX3: 54 | BY3: 55 | BZ3: 56 | CA3: 57 | CB3: 58 | CC3: 59 | CD3: 60 | CE3: 61 | CF3: 62 | CG3: 63 | CH3: 64 | CI3: 65 | CJ3: 66 | CK3: 67 | CL3: 68 | CM3: 69 | CN3: 70 | CO3: 71 | CP3: 72 | CQ3: 73 | CR3: 74 | CS3: 75 | CT3: 76 | CU3: 77 | CV3: 78 | CW3: 79 | CX3: 80 | CY3: 81 | CZ3: 82 | DA3: 83 | DB3: 84 | DC3: 85 | DD3: 86
C4: 1 | D4: Ainsty (2008) IDB | E4: Yes | F4: 2024 | G4: Yes | H4: Yes | I4: 2014 | J4: No | K4: 2023-11-13 | L4: Yes | M4: No | O4: No | Q4: 0 | R4: 0 | S4: 0 | T4: 0 | U4: No | V4: No | W4: No | X4: Yes | Y4: Yes | Z4: Yes | AA4: 1 | AB4: Yes | AC4: No | AD4: No | AE4: No | AF4: No | AG4: No | AH4: Yes | AI4: No | AJ4: No | AK4: No | AL4: No | AM4: No | AN4: No | AO4: No | AP4: Yes | AQ4: Yes | AR4: Yes | AS4: 286 | AT4: 3 | AU4: 5 | AV4: 0 | AW4: 0 | AX4: 0 | AY4: 0 | AZ4: 0 | BA4: 0.32 | BB4: Yes | BC4: No | BD4: Yes | BE4: No | BF4: Yes | BG4: No | BH4: No | BI4: No | BJ4: No | BK4: No | BL4: Yes | BM4: New Members are sent a welcome pack and a leaflet on the function and purpose of Drainage Boards. This along with a link to the Boards website which has a link to a downloadable PDF version of the Boards district map. Members are invited and attend ADA Meetings of both the Northern Branch and National Meetings and are informed and updated about IDB function and matters at Board Meetings. Members can ask the Clerk to organise a site inspection as and when required for particular items of interest in the district along with any specific training as required | BN4: Yes | BO4: Yes | BP4: No | BQ4: Yes | BR4: Yes | BS4: Yes | BT4: Yes | BU4: Yes | BV4: Yes | BW4: Yes | BX4: Yes | BY4: Yes | BZ4: Yes | CA4: Yes | CB4: Yes | CC4: 18 | CD4: 15 | CE4: 12 | CF4: 6 | CG4: 9 | CH4: 3 | CI4: Yes | CJ4: Yes | CK4: Yes | CL4: 1 | CM4: 1 | CN4: 0 | CO4: 0 | CP4: Yes | CQ4: No | CR4: No | CS4: Yes | CT4: No | CU4: Yes | CV4: No | CW4: No | CX4: No | CY4: No | CZ4: No | DA4: No | DB4: Yes | DC4: Yes | DD4: No
C5: 2 | D5: Airedale DC | E5: Yes | F5: 2024 | G5: Yes | H5: Yes | I5: 2014 | J5: No | K5: 2023-01-19 | L5: Yes | M5: No | O5: No | Q5: 0 | R5: 0 | S5: 0 | T5: 0 | U5: No | V5: No | W5: No | X5: Yes | Y5: Yes | Z5: Yes | AA5: 0 | AB5: No | AC5: No | AD5: No | AE5: No | AF5: No | AG5: No | AH5: No | AI5: Yes | AJ5: No | AK5: No | AL5: No | AM5: No | AN5: No | AO5: No | AP5: Yes | AQ5: Yes | AR5: Yes | AS5: 4.5 | AT5: 0 | AU5: 0 | AV5: 0 | AW5: 0 | AX5: 0 | AY5: 0 | AZ5: 0 | BA5: 0 | BB5: Yes | BC5: No | BD5: Yes | BE5: No | BF5: Yes | BG5: No | BH5: No | BI5: No | BJ5: No | BK5: No | BL5: Yes | BM5: New Members are sent a welcome pack and a leaflet on the function and purpose of Drainage Boards. This along with a link to the Boards website which has a link to a downloadable PDF version of the Boards district map. Members are invited and attend ADA Meetings of both the Northern Branch and National Meetings and are informed and updated about IDB function and matters at Board Meetings. Members can ask the Clerk to organise a site inspection as and when required for particular items of interest in the district along with any specific training as required. | BN5: Yes | BO5: Yes | BP5: No | BQ5: Yes | BR5: Yes | BS5: Yes | BT5: Yes | BU5: Yes | BV5: Yes | BW5: Yes | BX5: Yes | BY5: Yes | BZ5: Yes | CA5: Yes | CB5: Yes | CC5: 27 | CD5: 14 | CE5: 4 | CF5: 7 | CG5: 2.33 | CH5: 3 | CI5: Yes | CJ5: Yes | CK5: Yes | CL5: 0 | CM5: 0 | CN5: 0 | CO5: 0 | CP5: Yes | CQ5: No | CR5: No | CS5: Yes | CT5: No | CU5: Yes | CV5: No | CW5: No | CX5: No | CY5: No | CZ5: No | DA5: No | DB5: Yes | DC5: Yes | DD5: No
C6: 3 | D6: Alconbury and Ellington | E6: Yes | F6: 2018 | G6: Yes | H6: Yes | I6: 2023 | J6: Yes | K6: 2024-01-30 | L6: Yes | M6: No | O6: No | Q6: 0 | R6: 0 | S6: 0 | T6: 0 | U6: No | V6: No | W6: No | X6: Yes | Y6: No | Z6: No | AA6: 1 | AB6: Yes | AC6: No | AD6: No | AE6: No | AF6: No | AG6: No | AH6: Yes | AI6: Yes | AJ6: Yes | AK6: Yes | AL6: Yes | AM6: Yes | AN6: Yes | AO6: No | AP6: Yes | AQ6: Yes | AR6: Yes | AS6: 63 | AT6: 0 | AU6: 0 | AV6: 0 | AW6: 0 | AX6: 0 | AY6: 0 | AZ6: 0 | BA6: 0 | BB6: Yes | BC6: Yes | BD6: Yes | BE6: No | BF6: Yes | BG6: Yes | BH6: Yes | BI6: Yes | BJ6: Yes | BK6: Yes | BL6: Yes | BM6: Members were invited to attend the ADA conference 2023 and ADA Conference and ADA Floodex, in 2023 | BN6: Yes | BO6: Yes | BP6: Yes | BQ6: Yes | BR6: Yes | BS6: Yes | BT6: Yes | BU6: Yes | BV6: Yes | BW6: No | BX6: Yes | BY6: Yes | BZ6: Yes | CA6: Yes | CB6: Yes | CC6: 25 | CD6: 13 | CE6: 9 | CF6: 2 | CG6: 5.3 | CH6: 1.3 | CI6: Yes | CJ6: Yes | CK6: Yes | CL6: 0 | CM6: 0 | CN6: 0 | CO6: 0 | CP6: Yes | CQ6: No | CR6: Yes | CS6: Yes | CT6: Yes | CU6: Yes | CV6: No | CW6: No | CX6: yes | CY6: yes | CZ6: yes | DA6: Yes | DB6: Yes | DC6: Yes | DD6: Yes
C7: 4 | D7: Ancholme Internal Drainage Board | E7: Yes | F7: 2023 | G7: Yes | H7: Yes | I7: 2020 | J7: Yes | K7: 2025-01-01 | L7: Yes | M7: No | O7: No | Q7: 0 | R7: 0 | S7: 0 | T7: 0 | U7: No | V7: No | W7: No | X7: Yes | Y7: No | Z7: No | AA7: 3 | AB7: Yes | AC7: Yes | AD7: No | AE7: Yes | AF7: No | AG7: No | AH7: Yes | AI7: Yes | AJ7: Yes | AK7: Yes | AL7: Yes | AM7: Yes | AN7: Yes | AO7: No | AP7: Yes | AQ7: Yes | AR7: Yes | AS7: 191 | AT7: 16 | AU7: 33 | AV7: 0 | AW7: 0 | AX7: 1 | AY7: 0 | AZ7: 0 | BA7: 15.3 | BB7: Yes | BC7: No | BD7: Yes | BE7: No | BF7: Yes | BG7: No | BH7: No | BI7: No | BJ7: No | BK7: No | BL7: No | BN7: Yes | BO7: Yes | BP7: Yes | BQ7: Yes | BR7: Yes | BS7: Yes | BT7: Yes | BU7: Yes | BV7: No | BW7: No | BX7: Yes | BY7: Yes | BZ7: Yes | CA7: Yes | CB7: Yes | CC7: 28 | CD7: 11 | CE7: 17 | CF7: 6 | CG7: 9 | CH7: 4 | CI7: Yes | CJ7: Yes | CK7: Yes | CL7: 0 | CM7: 0 | CN7: 0 | CO7: 0 | CP7: Yes | CQ7: Yes | CR7: Yes | CS7: Yes | CT7: Yes | CU7: Yes | CV7: No | CW7: No | CX7: No | CY7: No | CZ7: yes | DA7: Yes | DB7: No | DC7: No | DD7: No
C8: 5 | D8: Axe Brue | E8: Yes | F8: 2023 | G8: Yes | H8: Yes | I8: 2010 | J8: No | K8: 2024-01-29 | L8: Yes | M8: Yes | N8: North Drain, South Drain | O8: No | Q8: 2970 | R8: 0 | S8: 2970 | T8: 0 | U8: Yes | V8: No | W8: Yes | X8: Yes | Y8: Yes | Z8: No | AA8: 0 | AB8: No | AC8: No | AD8: No | AE8: No | AF8: No | AG8: No | AH8: No | AI8: No | AJ8: No | AK8: No | AL8: No | AM8: No | AN8: No | AO8: No | AP8: No | AQ8: Yes | AR8: Yes | AS8: 612.3 | AT8: 0 | AU8: 0 | AV8: 0 | AW8: 0 | AX8: 0 | AY8: 0 | AZ8: 0 | BA8: 0 | BB8: Yes | BC8: Yes | BD8: Yes | BE8: No | BF8: Yes | BG8: Yes | BH8: Yes | BI8: Yes | BJ8: Yes | BK8: No | BL8: No | BN8: Yes | BO8: Yes | BP8: Yes | BQ8: Yes | BR8: Yes | BS8: Yes | BT8: Yes | BU8: Yes | BV8: Yes | BW8: No | BX8: Yes | BY8: Yes | BZ8: Yes | CA8: Yes | CB8: Yes | CC8: 25 | CD8: 13 | CE8: 12 | CF8: 13 | CG8: 6.5 | CH8: 6.75 | CI8: Yes | CJ8: Yes | CK8: Yes | CL8: 2 | CM8: 0 | CN8: 0 | CO8: 0 | CP8: No | CQ8: No | CR8: Yes | CS8: Yes | CT8: Yes | CU8: Yes | CV8: No | CW8: yes | CX8: No | CY8: No | CZ8: yes | DA8: Yes | DB8: No | DC8: Yes | DD8: No
C9: 6 | D9: Axeholme & North Notts | E9: Yes | F9: 2019 | G9: Yes | H9: Yes | I9: 2012 | J9: No | K9: All | L9: Yes | M9: No | O9: No | Q9: 0 | R9: 0 | S9: 0 | T9: 0 | U9: No | V9: No | W9: Yes | X9: Yes | Y9: No | Z9: No | AA9: 0 | AB9: No | AC9: No | AD9: No | AE9: No | AF9: No | AG9: No | AH9: No | AI9: No | AJ9: No | AK9: No | AL9: No | AM9: No | AN9: No | AO9: No | AP9: Yes | AQ9: Yes | AR9: Yes | AS9: 461.3 | AT9: 20 | AU9: 43 | AV9: 3 | AW9: 0 | AX9: 2 | AY9: 0 | AZ9: 0 | BA9: 34.49 | BB9: Yes | BC9: No | BD9: Yes | BE9: No | BF9: No | BG9: Yes | BH9: Yes | BI9: Yes | BJ9: Yes | BK9: No | BL9: Yes | BM9: All new members are provided with ADA Good Governance Guide and referred to ADA website for training modules. | BN9: Yes | BO9: Yes | BP9: Yes | BQ9: Yes | BR9: Yes | BS9: Yes | BT9: Yes | BU9: Yes | BV9: No | BW9: Yes | BX9: Yes | BY9: Yes | BZ9: Yes | CA9: Yes | CB9: Yes | CC9: 25 | CD9: 13 | CE9: 10 | CF9: 10 | CG9: 7 | CH9: 6.2 | CI9: Yes | CJ9: Yes | CK9: Yes | CL9: 1 | CM9: 0 | CN9: 0 | CO9: 0 | CP9: No | CQ9: No | CR9: Yes | CS9: Yes | CT9: No | CU9: Yes | CV9: No | CW9: No | CX9: No | CY9: yes | CZ9: yes | DA9: Yes | DB9: Yes | DC9: Yes | DD9: No
C10: 7 | D10: Bedfordshire and River Ivel | E10: Yes | F10: 2018 | G10: Yes | H10: Yes | I10: 2023 | J10: Yes | K10: 2024-02-05 | L10: Yes | M10: Yes | N10: Flitwick moor, Fancot t woods and Meadow | O10: No | Q10: 73.8 | R10: 0 | S10: 0 | T10: 0 | U10: Yes | V10: No | W10: No | X10: Yes | Y10: No | Z10: No | AA10: 2 | AB10: Yes | AC10: No | AD10: Yes | AE10: No | AF10: No | AG10: No | AH10: Yes | AI10: Yes | AJ10: Yes | AK10: Yes | AL10: Yes | AM10: Yes | AN10: Yes | AO10: No | AP10: Yes | AQ10: Yes | AR10: Yes | AS10: 636 | AT10: 2 | AU10: 2 | AV10: 0 | AW10: 0 | AX10: 0 | AY10: 0 | AZ10: 0 | BA10: 0.7 | BB10: Yes | BC10: Yes | BD10: Yes | BE10: No | BF10: Yes | BG10: Yes | BH10: Yes | BI10: Yes | BJ10: Yes | BK10: Yes | BL10: Yes | BM10: Members were invited to attend the ADA conference 2023 and ADA Conference and ADA Floodex, in 2023 | BN10: Yes | BO10: Yes | BP10: Yes | BQ10: Yes | BR10: Yes | BS10: Yes | BT10: Yes | BU10: Yes | BV10: Yes | BW10: No | BX10: Yes | BY10: Yes | BZ10: Yes | CA10: Yes | CB10: Yes | CC10: 25 | CD10: 13 | CE10: 6 | CF10: 13 | CG10: 4.3 | CH10: 8.3 | CI10: Yes | CJ10: Yes | CK10: Yes | CL10: 2 | CM10: 0 | CN10: 0 | CO10: 0 | CP10: Yes | CQ10: No | CR10: Yes | CS10: Yes | CT10: Yes | CU10: Yes | CV10: No | CW10: No | CX10: yes | CY10: yes | CZ10: yes | DA10: Yes | DB10: Yes | DC10: Yes | DD10: Yes
C11: 8 | D11: Benwick | E11: Yes | F11: 2019 | G11: Yes | H11: Yes | I11: 2022 | J11: No | K11: 2024-04-11 | L11: Yes | M11: No | O11: No | Q11: 0 | R11: 0 | S11: 0 | T11: 0 | U11: No | V11: No | W11: No | X11: Yes | Y11: No | Z11: No | AA11: 0 | AB11: No | AC11: No | AD11: No | AE11: No | AF11: No | AG11: No | AH11: No | AI11: No | AJ11: No | AK11: No | AL11: No | AM11: No | AN11: No | AO11: No | AP11: No | AQ11: Yes | AR11: Yes | AS11: 29.7 | AT11: 6 | AU11: 6 | AV11: 0 | AW11: 0 | AX11: 0 | AY11: 0 | AZ11: 0 | BA11: 3.27 | BB11: Yes | BC11: Yes | BD11: Yes | BE11: No | BF11: Yes | BG11: Yes | BH11: Yes | BI11: Yes | BJ11: No | BK11: No | BL11: No | BN11: Yes | BO11: Yes | BP11: Yes | BQ11: Yes | BR11: Yes | BS11: Yes | BT11: Yes | BU11: Yes | BV11: Yes | BW11: No | BX11: Yes | BY11: Yes | BZ11: Yes | CA11: Yes | CB11: Yes | CC11: 14 | CD11: 5 | CE11: 10 | CF11: 4 | CG11: 8 | CH11: 2 | CI11: Yes | CJ11: Yes | CK11: Yes | CL11: 0 | CM11: 0 | CN11: 0 | CO11: 0 | CP11: Yes | CQ11: No | CR11: No | CS11: Yes | CT11: No | CU11: Yes | CV11: No | CW11: No | CX11: No | CY11: No | CZ11: yes | DA11: No | DB11: No | DC11: No | DD11: No
C12: 9 | D12: Beverley and North Holderness IDB | E12: Yes | F12: 2024 | G12: Yes | H12: Yes | I12: 2014 | J12: No | K12: 2022-11-09 | L12: Yes | M12: No | O12: No | Q12: 0 | R12: 0 | S12: 0 | T12: 0 | U12: No | V12: No | W12: No | X12: Yes | Y12: Yes | Z12: Yes | AA12: 1 | AB12: Yes | AC12: No | AD12: No | AE12: No | AF12: No | AG12: No | AH12: Yes | AI12: No | AJ12: Yes | AK12: No | AL12: No | AM12: No | AN12: No | AO12: No | AP12: Yes | AQ12: Yes | AR12: Yes | AS12: 270.7 | AT12: 1 | AU12: 2 | AV12: 0 | AW12: 0 | AX12: 0 | AY12: 0 | AZ12: 0 | BA12: 0.73 | BB12: Yes | BC12: No | BD12: Yes | BE12: No | BF12: Yes | BG12: No | BH12: No | BI12: No | BJ12: No | BK12: No | BL12: Yes | BM12: New Members are sent a welcome pack and a leaflet on the function and purpose of Drainage Boards. This along with a link to the Boards website which has a link to a downloadable PDF version of the Boards district map. Members are invited and attend ADA Meetings of both the Northern Branch and National Meetings and are informed and updated about IDB function and matters at Board Meetings. Members can ask the Clerk to organise a site inspection as and when required for particular items of interest in the district along with any specific training as required. | BN12: Yes | BO12: Yes | BP12: No | BQ12: Yes | BR12: Yes | BS12: Yes | BT12: Yes | BU12: Yes | BV12: Yes | BW12: Yes | BX12: Yes | BY12: Yes | BZ12: Yes | CA12: Yes | CB12: Yes | CC12: 25 | CD12: 13 | CE12: 11 | CF12: 13 | CG12: 7.8 | CH12: 6.4 | CI12: Yes | CJ12: Yes | CK12: Yes | CL12: 1 | CM12: 0 | CN12: 0 | CO12: 0 | CP12: Yes | CQ12: No | CR12: No | CS12: Yes | CT12: No | CU12: Yes | CV12: No | CW12: No | CX12: No | CY12: No | CZ12: No | DA12: Yes | DB12: Yes | DC12: Yes | DD12: No
C13: 10 | D13: Black Drain DB | E13: Yes | F13: 2020 | G13: Yes | H13: Yes | I13: 2023 | J13: No | K13: 2025-01-29 | L13: Yes | M13: No | O13: No | Q13: 0 | R13: 0 | S13: 0 | T13: 0 | U13: No | V13: No | W13: No | X13: Yes | Y13: No | Z13: No | AA13: 0 | AB13: No | AC13: No | AD13: No | AE13: No | AF13: No | AG13: No | AH13: No | AI13: No | AJ13: No | AK13: No | AL13: No | AM13: No | AN13: No | AO13: No | AP13: No | AQ13: Yes | AR13: Yes | AS13: 22.2 | AT13: 3 | AU13: 3 | AV13: 6 | AW13: 0 | AX13: 0 | AY13: 0 | AZ13: 0 | BA13: 6.3 | BB13: Yes | BC13: No | BD13: Yes | BE13: No | BF13: Yes | BG13: Yes | BH13: Yes | BI13: No | BJ13: No | BK13: No | BL13: No | BM13: Board Induction, refresher training | BN13: Yes | BO13: Yes | BP13: Yes | BQ13: Yes | BR13: Yes | BS13: Yes | BT13: Yes | BU13: Yes | BV13: Yes | BW13: No | BX13: Yes | BY13: Yes | BZ13: Yes | CA13: Yes | CB13: Yes | CC13: 14 | CD13: 8 | CE13: 7 | CF13: 7 | CG13: 5 | CH13: 2 | CI13: Yes | CJ13: Yes | CK13: Yes | CL13: 0 | CM13: 0 | CN13: 0 | CO13: 0 | CP13: Yes | CQ13: No | CR13: Yes | CS13: Yes | CT13: No | CU13: Yes | CV13: No | CW13: No | CX13: No | CY13: yes | CZ13: No | DA13: Yes | DB13: Yes | DC13: Yes | DD13: No
C14: 11 | D14: Black Sluice IDB | E14: Yes | F14: 2023 | G14: Yes | H14: Yes | I14: 2024 | J14: Yes | K14: 2024-06-11 | L14: Yes | M14: Yes | N14: Horbling SSSI | O14: Yes | Q14: 15 | R14: 42 | S14: 15 | T14: 15 | U14: No | V14: No | W14: No | X14: Yes | Y14: Yes | Z14: No | AA14: 2 | AB14: Yes | AC14: Yes | AD14: No | AE14: No | AF14: No | AG14: No | AH14: Yes | AI14: No | AJ14: No | AK14: No | AL14: No | AM14: No | AN14: No | AO14: No | AP14: No | AQ14: Yes | AR14: Yes | AS14: 772 | AT14: 34 | AU14: 63 | AV14: 0 | AW14: 0 | AX14: 0 | AY14: 0 | AZ14: 0 | BA14: 66.975 | BB14: Yes | BC14: Yes | BD14: Yes | BE14: No | BF14: Yes | BG14: Yes | BH14: Yes | BI14: Yes | BJ14: Yes | BK14: Yes | BL14: Yes | BN14: Yes | BO14: Yes | BP14: Yes | BQ14: Yes | BR14: Yes | BS14: Yes | BT14: Yes | BU14: Yes | BV14: Yes | BW14: No | BX14: Yes | BY14: Yes | BZ14: Yes | CA14: Yes | CB14: Yes | CC14: 23 | CD14: 12 | CE14: 11 | CF14: 10 | CG14: 9.6 | CH14: 7 | CI14: Yes | CJ14: Yes | CK14: Yes | CL14: 17 | CM14: 2 | CN14: 0 | CO14: 0 | CP14: Yes | CQ14: No | CR14: Yes | CS14: Yes | CT14: No | CU14: Yes | CV14: No | CW14: yes | CX14: yes | CY14: yes | CZ14: No | DA14: No | DB14: Yes | DC14: Yes | DD14: No
C15: 12 | D15: Bluntisham | E15: Yes | F15: 2019 | G15: Yes | H15: Yes | I15: 2022 | J15: No | K15: 2024-01-12 | L15: Yes | M15: No | O15: No | Q15: 0 | R15: 0 | S15: 0 | T15: 0 | U15: No | V15: No | W15: No | X15: Yes | Y15: No | Z15: No | AA15: 0 | AB15: No | AC15: No | AD15: No | AE15: No | AF15: No | AG15: No | AH15: No | AI15: No | AJ15: No | AK15: No | AL15: No | AM15: No | AN15: No | AO15: No | AP15: No | AQ15: Yes | AR15: Yes | AS15: 9.2 | AT15: 1 | AU15: 1 | AV15: 0 | AW15: 0 | AX15: 0 | AY15: 0 | AZ15: 0 | BA15: 0.5 | BB15: Yes | BC15: Yes | BD15: Yes | BE15: No | BF15: Yes | BG15: Yes | BH15: Yes | BI15: Yes | BJ15: No | BK15: No | BL15: No | BN15: Yes | BO15: Yes | BP15: Yes | BQ15: Yes | BR15: Yes | BS15: Yes | BT15: Yes | BU15: Yes | BV15: Yes | BW15: No | BX15: Yes | BY15: Yes | BZ15: Yes | CA15: Yes | CB15: Yes | CC15: 7 | CD15: 7 | CE15: 6 | CF15: 1 | CG15: 4 | CH15: 1 | CI15: Yes | CJ15: Yes | CK15: Yes | CL15: 0 | CM15: 0 | CN15: 0 | CO15: 0 | CP15: Yes | CQ15: No | CR15: No | CS15: Yes | CT15: No | CU15: Yes | CV15: No | CW15: No | CX15: No | CY15: No | CZ15: yes | DA15: No | DB15: No | DC15: No | DD15: No
C16: 13 | D16: Braunton Marsh DB | E16: Yes | F16: 2025 | G16: Yes | H16: Yes | I16: 2025 | J16: No | K16: 2025-01-09 | L16: No | M16: No | O16: No | Q16: 0 | R16: 0 | S16: 0 | T16: 0 | U16: No | V16: Yes | W16: No | X16: No | Y16: No | Z16: No | AA16: 0 | AB16: No | AC16: No | AD16: No | AE16: No | AF16: No | AG16: No | AH16: Yes | AI16: No | AJ16: Yes | AK16: No | AL16: No | AM16: No | AN16: No | AO16: No | AP16: Yes | AQ16: No | AR16: Yes | AS16: 36 | AT16: 0 | AU16: 0 | AV16: 0 | AW16: 0 | AX16: 0 | AY16: 0 | AZ16: 0 | BA16: 0 | BB16: Yes | BC16: Yes | BD16: No | BE16: No | BF16: Yes | BG16: No | BH16: No | BI16: No | BJ16: No | BK16: No | BL16: No | BN16: Yes | BO16: No | BP16: Yes | BQ16: No | BR16: Yes | BS16: Yes | BT16: Yes | BU16: No | BV16: No | BW16: No | BX16: No | BY16: Yes | BZ16: Yes | CA16: Yes | CB16: Yes | CC16: 10 | CD16: 15 | CE16: 4 | CF16: 6 | CG16: 8 | CH16: 8 | CI16: Yes | CJ16: Yes | CK16: Yes | CL16: 0 | CM16: 0 | CN16: 0 | CO16: 0 | CP16: Yes | CQ16: No | CR16: No | CS16: No | CT16: No | CU16: Yes | CV16: No | CW16: No | CX16: No | CY16: No | CZ16: yes | DA16: No | DB16: No | DC16: No | DD16: No
C17: 14 | D17: Broads | E17: Yes | F17: 2022 | G17: Yes | H17: Yes | I17: 2023 | J17: Yes | K17: 2024-01-30 | L17: Yes | M17: Yes | N17: Horning, Ludham Br east, Chapelfield, sutton, Halvergate, Wayford, Hemsby, Brograve, Lower Yare 4th, Horsefen, Potter Heigham, Hickling, Thume, Repps, Horsey, Heigham Homes, Somerton, Catfield, Martham, Upton, Lower yare 1st | O17: No | Q17: 6399.79 | R17: 0 | S17: 5698.3 | T17: 605.32 | U17: No | V17: No | W17: Yes | X17: Yes | Y17: Yes | Z17: No | AA17: 1 | AB17: Yes | AC17: No | AD17: No | AE17: No | AF17: No | AG17: No | AH17: No | AI17: No | AJ17: Yes | AK17: No | AL17: No | AM17: No | AN17: No | AO17: No | AP17: No | AQ17: Yes | AR17: Yes | AS17: 340 | AT17: 37 | AU17: 37 | AV17: 0 | AW17: 0 | AX17: 7 | AY17: 0 | AZ17: 0 | BA17: 19.43 | BB17: Yes | BC17: No | BD17: Yes | BE17: No | BF17: Yes | BG17: Yes | BH17: No | BI17: No | BJ17: Yes | BK17: No | BL17: No | BN17: Yes | BO17: Yes | BP17: Yes | BQ17: Yes | BR17: Yes | BS17: Yes | BT17: Yes | BU17: Yes | BV17: No | BW17: Yes | BX17: Yes | BY17: Yes | BZ17: Yes | CA17: Yes | CB17: Yes | CC17: 39 | CD17: 20 | CE17: 16 | CF17: 18 | CG17: 2.3 | CH17: 1.3 | CI17: Yes | CJ17: Yes | CK17: No | CL17: 0 | CM17: 0 | CN17: 0 | CO17: 0 | CP17: Yes | CQ17: No | CR17: Yes | CS17: Yes | CT17: No | CU17: Yes | CV17: No | CW17: No | CX17: yes | CY17: yes | CZ17: yes | DA17: No | DB17: Yes | DC17: No | DD17: No
C18: 15 | D18: Buckingham and River Ouzel | E18: Yes | F18: 2018 | G18: Yes | H18: Yes | I18: 2023 | J18: Yes | K18: 2024-02-05 | L18: Yes | M18: Yes | N18: Tebworth Marsh SSSI | O18: No | Q18: 5.5 | R18: 0 | S18: 0 | T18: 0 | U18: Yes | V18: No | W18: No | X18: Yes | Y18: No | Z18: No | AA18: 2 | AB18: Yes | AC18: No | AD18: Yes | AE18: No | AF18: No | AG18: No | AH18: Yes | AI18: Yes | AJ18: Yes | AK18: Yes | AL18: Yes | AM18: Yes | AN18: Yes | AO18: No | AP18: Yes | AQ18: Yes | AR18: Yes | AS18: 448 | AT18: 0 | AU18: 0 | AV18: 0 | AW18: 0 | AX18: 0 | AY18: 0 | AZ18: 0 | BA18: 0 | BB18: Yes | BC18: Yes | BD18: Yes | BE18: No | BF18: Yes | BG18: Yes | BH18: Yes | BI18: Yes | BJ18: Yes | BK18: Yes | BL18: Yes | BM18: Members were invited to attend the ADA Conference 2023 and ADA Floodex 2023 | BN18: Yes | BO18: Yes | BP18: Yes | BQ18: Yes | BR18: Yes | BS18: Yes | BT18: Yes | BU18: Yes | BV18: Yes | BW18: No | BX18: Yes | BY18: Yes | BZ18: Yes | CA18: Yes | CB18: Yes | CC18: 25 | CD18: 13 | CE18: 8 | CF18: 11 | CG18: 4.3 | CH18: 8.3 | CI18: Yes | CJ18: Yes | CK18: Yes | CL18: 0 | CM18: 0 | CN18: 0 | CO18: 0 | CP18: Yes | CQ18: No | CR18: Yes | CS18: Yes | CT18: Yes | CU18: Yes | CV18: No | CW18: No | CX18: yes | CY18: yes | CZ18: yes | DA18: Yes | DB18: Yes | DC18: Yes | DD18: Yes
C19: 16 | D19: Burnt Fen | E19: Yes | F19: 2020 | G19: Yes | H19: Yes | I19: 2009 | J19: No | K19: 2022 | L19: Yes | M19: Yes | N19: Shippea Hills | O19: No | Q19: 27.64 | R19: 0 | S19: 27.64 | T19: 0 | U19: No | V19: No | W19: No | X19: Yes | Y19: No | Z19: No | AA19: 0 | AB19: No | AC19: No | AD19: No | AE19: No | AF19: No | AG19: No | AH19: No | AI19: No | AJ19: No | AK19: No | AL19: No | AM19: No | AN19: No | AO19: No | AP19: Yes | AQ19: No | AR19: Yes | AS19: 68.1 | AT19: 2 | AU19: 5 | AV19: 1 | AW19: 0 | AX19: 0 | AY19: 0 | AZ19: 0 | BA19: 5.98 | BB19: Yes | BC19: No | BD19: Yes | BE19: Yes | BF19: Yes | BG19: No | BH19: No | BI19: No | BJ19: No | BK19: No | BL19: Yes | BM19: Board Members are invited to tour the District with the Engineer. | BN19: Yes | BO19: Yes | BP19: Yes | BQ19: Yes | BR19: Yes | BS19: Yes | BT19: Yes | BU19: Yes | BV19: No | BW19: No | BX19: Yes | BY19: Yes | BZ19: Yes | CA19: Yes | CB19: Yes | CC19: 14 | CD19: 3 | CE19: 10 | CF19: 4 | CG19: 6.3 | CH19: 1.3 | CI19: Yes | CJ19: Yes | CK19: Yes | CL19: 0 | CM19: 0 | CN19: 0 | CO19: 0 | CP19: Yes | CQ19: No | CR19: Yes | CS19: Yes | CT19: No | CU19: Yes | CV19: No | CW19: No | CX19: No | CY19: No | CZ19: yes | DA19: No | DB19: No | DC19: No | DD19: No
C20: 17 | D20: Cawdle Fen | E20: Yes | F20: 2020 | G20: Yes | H20: Yes | I20: 2009 | J20: No | K20: 2022 | L20: Yes | M20: No | O20: No | Q20: 0 | R20: 0 | S20: 0 | T20: 0 | U20: No | V20: No | W20: No | X20: Yes | Y20: No | Z20: No | AA20: 0 | AB20: No | AC20: No | AD20: No | AE20: No | AF20: No | AG20: No | AH20: No | AI20: No | AJ20: No | AK20: No | AL20: No | AM20: No | AN20: No | AO20: No | AP20: Yes | AQ20: No | AR20: Yes | AS20: 3.8 | AT20: 1 | AU20: 3 | AV20: 0 | AW20: 0 | AX20: 0 | AY20: 0 | AZ20: 0 | BA20: 0.9 | BB20: Yes | BC20: No | BD20: Yes | BE20: No | BF20: Yes | BG20: No | BH20: No | BI20: No | BJ20: No | BK20: No | BL20: Yes | BM20: Board Members are invited to tour the District with the Engineer. | BN20: Yes | BO20: Yes | BP20: Yes | BQ20: Yes | BR20: Yes | BS20: Yes | BT20: Yes | BU20: Yes | BV20: No | BW20: No | BX20: Yes | BY20: Yes | BZ20: Yes | CA20: Yes | CB20: Yes | CC20: 9 | CD20: 7 | CE20: 3 | CF20: 6 | CG20: 1.3 | CH20: 3.3 | CI20: Yes | CJ20: Yes | CK20: Yes | CL20: 0 | CM20: 0 | CN20: 0 | CO20: 0 | CP20: Yes | CQ20: No | CR20: Yes | CS20: Yes | CT20: No | CU20: Yes | CV20: No | CW20: No | CX20: No | CY20: No | CZ20: yes | DA20: No | DB20: No | DC20: No | DD20: No
C21: 18 | D21: Churchfield and Plawfield | E21: Yes | F21: 2019 | G21: Yes | H21: Yes | I21: 2022 | J21: No | K21: 2024-03-04 | L21: Yes | M21: No | O21: No | Q21: 0 | R21: 0 | S21: 0 | T21: 0 | U21: No | V21: No | W21: No | X21: Yes | Y21: No | Z21: No | AA21: 0 | AB21: No | AC21: No | AD21: No | AE21: No | AF21: No | AG21: No | AH21: No | AI21: No | AJ21: No | AK21: No | AL21: No | AM21: No | AN21: No | AO21: No | AP21: No | AQ21: Yes | AR21: Yes | AS21: 16.4 | AT21: 0 | AU21: 0 | AV21: 0 | AW21: 0 | AX21: 0 | AY21: 0 | AZ21: 0 | BA21: 0 | BB21: Yes | BC21: Yes | BD21: Yes | BE21: No | BF21: Yes | BG21: Yes | BH21: Yes | BI21: Yes | BJ21: No | BK21: No | BL21: No | BN21: Yes | BO21: Yes | BP21: Yes | BQ21: Yes | BR21: Yes | BS21: Yes | BT21: Yes | BU21: Yes | BV21: Yes | BW21: No | BX21: Yes | BY21: Yes | BZ21: Yes | CA21: Yes | CB21: Yes | CC21: 13 | CD21: 9 | CE21: 8 | CF21: 5 | CG21: 6 | CH21: 3 | CI21: Yes | CJ21: Yes | CK21: Yes | CL21: 0 | CM21: 0 | CN21: 0 | CO21: 0 | CP21: Yes | CQ21: No | CR21: No | CS21: Yes | CT21: No | CU21: Yes | CV21: No | CW21: No | CX21: No | CY21: No | CZ21: yes | DA21: No | DB21: No | DC21: No | DD21: No
C22: 19 | D22: Connington & Holme | E22: Yes | F22: 2019 | G22: Yes | H22: Yes | I22: 2022 | J22: No | K22: 2024-06-04 | L22: Yes | M22: No | O22: No | Q22: 0 | R22: 0 | S22: 0 | T22: 0 | U22: No | V22: No | W22: No | X22: Yes | Y22: No | Z22: No | AA22: 0 | AB22: No | AC22: No | AD22: No | AE22: No | AF22: No | AG22: No | AH22: No | AI22: No | AJ22: No | AK22: No | AL22: No | AM22: No | AN22: No | AO22: No | AP22: No | AQ22: Yes | AR22: Yes | AS22: 25.4 | AT22: 2 | AU22: 2 | AV22: 0 | AW22: 0 | AX22: 0 | AY22: 0 | AZ22: 0 | BA22: 0.714 | BB22: Yes | BC22: Yes | BD22: Yes | BE22: No | BF22: Yes | BG22: Yes | BH22: Yes | BI22: Yes | BJ22: No | BK22: No | BL22: No | BN22: Yes | BO22: Yes | BP22: Yes | BQ22: Yes | BR22: Yes | BS22: Yes | BT22: Yes | BU22: Yes | BV22: Yes | BW22: No | BX22: Yes | BY22: Yes | BZ22: Yes | CA22: Yes | CB22: Yes | CC22: 7 | CD22: 4 | CE22: 6 | CF22: 1 | CG22: 5 | CH22: 1 | CI22: Yes | CJ22: Yes | CK22: Yes | CL22: 0 | CM22: 0 | CN22: 0 | CO22: 0 | CP22: Yes | CQ22: No | CR22: No | CS22: Yes | CT22: No | CU22: Yes | CV22: No | CW22: No | CX22: No | CY22: No | CZ22: yes | DA22: No | DB22: No | DC22: No | DD22: No
C23: 20 | D23: Cowick & Snaith | E23: Yes | F23: 2020 | G23: Yes | H23: Yes | I23: 2023 | J23: No | K23: 2025-01-28 | L23: Yes | M23: No | O23: No | Q23: 0 | R23: 0 | S23: 0 | T23: 0 | U23: No | V23: No | W23: No | X23: Yes | Y23: No | Z23: No | AA23: 0 | AB23: No | AC23: No | AD23: No | AE23: No | AF23: No | AG23: No | AH23: No | AI23: No | AJ23: No | AK23: No | AL23: No | AM23: No | AN23: No | AO23: No | AP23: No | AQ23: Yes | AR23: Yes | AS23: 29 | AT23: 3 | AU23: 6 | AV23: 0 | AW23: 0 | AX23: 0 | AY23: 0 | AZ23: 0 | BA23: 5 | BB23: Yes | BC23: No | BD23: Yes | BE23: No | BF23: Yes | BG23: Yes | BH23: Yes | BI23: No | BJ23: No | BK23: No | BL23: No | BM23: Board Induction Training | BN23: Yes | BO23: Yes | BP23: Yes | BQ23: Yes | BR23: Yes | BS23: Yes | BT23: Yes | BU23: Yes | BV23: Yes | BW23: No | BX23: Yes | BY23: Yes | BZ23: Yes | CA23: Yes | CB23: Yes | CC23: 16 | CD23: 10 | CE23: 8 | CF23: 8 | CG23: 5 | CH23: 1.5 | CI23: Yes | CJ23: Yes | CK23: Yes | CL23: 0 | CM23: 0 | CN23: 0 | CO23: 0 | CP23: Yes | CQ23: No | CR23: Yes | CS23: Yes | CT23: No | CU23: Yes | CV23: No | CW23: No | CX23: No | CY23: yes | CZ23: No | DA23: Yes | DB23: Yes | DC23: Yes | DD23: No
C24: 21 | D24: Curf and Wimblington Combined IDB | E24: Yes | F24: 2019 | G24: Yes | H24: Yes | I24: 2022 | J24: No | K24: 2024-05-14 | L24: Yes | M24: No | O24: No | Q24: 0 | R24: 0 | S24: 0 | T24: 0 | U24: No | V24: No | W24: No | X24: Yes | Y24: No | Z24: No | AA24: 0 | AB24: No | AC24: No | AD24: No | AE24: No | AF24: No | AG24: No | AH24: No | AI24: No | AJ24: No | AK24: No | AL24: No | AM24: No | AN24: No | AO24: No | AP24: No | AQ24: Yes | AR24: Yes | AS24: 34.8 | AT24: 5 | AU24: 8 | AV24: 0 | AW24: 0 | AX24: 0 | AY24: 0 | AZ24: 0 | BA24: 4.03 | BB24: Yes | BC24: Yes | BD24: Yes | BE24: No | BF24: Yes | BG24: Yes | BH24: Yes | BI24: Yes | BJ24: No | BK24: No | BL24: No | BN24: Yes | BO24: Yes | BP24: Yes | BQ24: Yes | BR24: Yes | BS24: Yes | BT24: Yes | BU24: Yes | BV24: Yes | BW24: No | BX24: Yes | BY24: Yes | BZ24: Yes | CA24: Yes | CB24: Yes | CC24: 15 | CD24: 2 | CE24: 14 | CF24: 1 | CG24: 10 | CH24: 0 | CI24: Yes | CJ24: Yes | CK24: Yes | CL24: 0 | CM24: 0 | CN24: 0 | CO24: 0 | CP24: Yes | CQ24: No | CR24: No | CS24: Yes | CT24: No | CU24: Yes | CV24: No | CW24: No | CX24: No | CY24: No | CZ24: yes | DA24: No | DB24: No | DC24: No | DD24: No
C25: 22 | D25: Danvm Drainage Commissioners | E25: Yes | F25: 2021 | G25: Yes | H25: Yes | I25: 2023 | J25: No | K25: 2025-02-11 | L25: Yes | M25: No | O25: No | Q25: 0 | R25: 0 | S25: 0 | T25: 0 | U25: Yes | V25: No | W25: No | X25: Yes | Y25: No | Z25: No | AA25: 0 | AB25: No | AC25: No | AD25: No | AE25: No | AF25: No | AG25: No | AH25: No | AI25: No | AJ25: No | AK25: No | AL25: No | AM25: No | AN25: No | AO25: No | AP25: No | AQ25: Yes | AR25: Yes | AS25: 353 | AT25: 47 | AU25: 117 | AV25: 0 | AW25: 0 | AX25: 3 | AY25: 0 | AZ25: 0 | BA25: 49 | BB25: Yes | BC25: No | BD25: Yes | BE25: No | BF25: Yes | BG25: Yes | BH25: Yes | BI25: No | BJ25: No | BK25: No | BL25: No | BM25: Board induction/refresher training | BN25: Yes | BO25: Yes | BP25: Yes | BQ25: Yes | BR25: Yes | BS25: Yes | BT25: Yes | BU25: Yes | BV25: Yes | BW25: No | BX25: Yes | BY25: Yes | BZ25: Yes | CA25: Yes | CB25: Yes | CC25: 22 | CD25: 13 | CE25: 10 | CF25: 12 | CG25: 5.33 | CH25: 7.33 | CI25: Yes | CJ25: Yes | CK25: Yes | CL25: 0 | CM25: 0 | CN25: 0 | CO25: 0 | CP25: Yes | CQ25: No | CR25: Yes | CS25: Yes | CT25: No | CU25: Yes | CV25: No | CW25: No | CX25: No | CY25: yes | CZ25: No | DA25: Yes | DB25: Yes | DC25: Yes | DD25: No
C26: 23 | D26: Dempster IDB | E26: Yes | F26: 2020 | G26: Yes | H26: Yes | I26: 2023 | J26: No | K26: 2025-01-27 | L26: Yes | M26: No | O26: No | Q26: 0 | R26: 0 | S26: 0 | T26: 0 | U26: No | V26: No | W26: No | X26: Yes | Y26: No | Z26: No | AA26: 0 | AB26: No | AC26: No | AD26: No | AE26: No | AF26: No | AG26: No | AH26: No | AI26: No | AJ26: No | AK26: No | AL26: No | AM26: No | AN26: No | AO26: No | AP26: No | AQ26: Yes | AR26: Yes | AS26: 25 | AT26: 1 | AU26: 2 | AV26: 0 | AW26: 0 | AX26: 0 | AY26: 0 | AZ26: 0 | BA26: 1.5 | BB26: Yes | BC26: No | BD26: Yes | BE26: No | BF26: Yes | BG26: Yes | BH26: Yes | BI26: No | BJ26: No | BK26: No | BL26: No | BM26: Board induction/refresher training | BN26: Yes | BO26: Yes | BP26: Yes | BQ26: Yes | BR26: Yes | BS26: Yes | BT26: Yes | BU26: Yes | BV26: Yes | BW26: No | BX26: Yes | BY26: Yes | BZ26: Yes | CA26: Yes | CB26: Yes | CC26: 11 | CD26: 8 | CE26: 7 | CF26: 4 | CG26: 5.5 | CH26: 1.5 | CI26: Yes | CJ26: Yes | CK26: Yes | CL26: 0 | CM26: 0 | CN26: 0 | CO26: 0 | CP26: Yes | CQ26: No | CR26: Yes | CS26: Yes | CT26: No | CU26: Yes | CV26: No | CW26: No | CX26: No | CY26: yes | CZ26: No | DA26: Yes | DB26: Yes | DC26: Yes | DD26: No
C27: 24 | D27: Doncaster East | E27: Yes | F27: 2019 | G27: Yes | H27: Yes | I27: 2015 | J27: No | K27: all | L27: Yes | M27: Yes | N27: Haxey Grange Fen | O27: No | Q27: 13.2 | R27: 0 | S27: 0 | T27: 0 | U27: No | V27: No | W27: Yes | X27: Yes | Y27: No | Z27: No | AA27: 1 | AB27: Yes | AC27: No | AD27: No | AE27: No | AF27: No | AG27: No | AH27: Yes | AI27: No | AJ27: No | AK27: No | AL27: No | AM27: No | AN27: No | AO27: No | AP27: Yes | AQ27: Yes | AR27: Yes | AS27: 318.8 | AT27: 24 | AU27: 56 | AV27: 0 | AW27: 0 | AX27: 0 | AY27: 0 | AZ27: 0 | BA27: 23.97 | BB27: Yes | BC27: No | BD27: Yes | BE27: No | BF27: No | BG27: Yes | BH27: Yes | BI27: Yes | BJ27: Yes | BK27: No | BL27: Yes | BM27: All new members are provided with ADA Good Governance Guide and referred to ADA website for training modules. | BN27: Yes | BO27: Yes | BP27: Yes | BQ27: Yes | BR27: Yes | BS27: Yes | BT27: Yes | BU27: Yes | BV27: No | BW27: Yes | BX27: Yes | BY27: Yes | BZ27: Yes | CA27: Yes | CB27: Yes | CC27: 15 | CD27: 8 | CE27: 7 | CF27: 7 | CG27: 5.4 | CH27: 5 | CI27: Yes | CJ27: Yes | CK27: Yes | CL27: 0 | CM27: 0 | CN27: 0 | CO27: 0 | CP27: No | CQ27: No | CR27: Yes | CS27: Yes | CT27: No | CU27: Yes | CV27: No | CW27: No | CX27: No | CY27: yes | CZ27: No | DA27: Yes | DB27: Yes | DC27: Yes | DD27: No
C28: 25 | D28: Downham & Stow Bardolph | E28: Yes | F28: 2018 | G28: Yes | H28: Yes | I28: 2010 | J28: No | K28: 2010 | L28: Yes | M28: No | O28: No | Q28: 0 | R28: 0 | S28: 0 | T28: 0 | U28: No | V28: No | W28: No | X28: Yes | Y28: No | Z28: No | AA28: 0 | AB28: No | AC28: No | AD28: No | AE28: No | AF28: No | AG28: No | AH28: No | AI28: No | AJ28: No | AK28: No | AL28: No | AM28: No | AN28: No | AO28: No | AP28: Yes | AQ28: No | AR28: Yes | AS28: 32 | AT28: 1 | AU28: 3 | AV28: 0 | AW28: 0 | AX28: 0 | AY28: 0 | AZ28: 0 | BA28: 3 | BB28: Yes | BC28: No | BD28: Yes | BE28: No | BF28: Yes | BG28: No | BH28: No | BI28: No | BJ28: No | BK28: No | BL28: No | BN28: Yes | BO28: Yes | BP28: Yes | BQ28: No | BR28: Yes | BS28: Yes | BT28: Yes | BU28: Yes | BV28: No | BW28: No | BX28: Yes | BY28: Yes | BZ28: Yes | CA28: Yes | CB28: Yes | CC28: 14 | CD28: 4 | CE28: 10 | CF28: 4 | CG28: 5 | CH28: 2 | CI28: Yes | CJ28: Yes | CK28: Yes | CL28: 0 | CM28: 0 | CN28: 0 | CO28: 0 | CP28: Yes | CQ28: No | CR28: Yes | CS28: Yes | CT28: No | CU28: Yes | CV28: No | CW28: No | CX28: No | CY28: No | CZ28: No | DA28: Yes | DB28: No | DC28: No | DD28: No
C29: 26 | D29: Earby & Salterforth | E29: Yes | F29: 2023 | G29: Yes | H29: Yes | I29: 2020 | J29: Yes | K29: 2025-01-01 | L29: Yes | M29: No | O29: No | Q29: 0 | R29: 0 | S29: 0 | T29: 0 | U29: No | V29: No | W29: No | X29: Yes | Y29: No | Z29: No | AA29: 0 | AB29: No | AC29: No | AD29: No | AE29: No | AF29: No | AG29: No | AH29: No | AI29: No | AJ29: No | AK29: No | AL29: No | AM29: No | AN29: No | AO29: No | AP29: Yes | AQ29: Yes | AR29: Yes | AS29: 9 | AT29: 0 | AU29: 0 | AV29: 0 | AW29: 0 | AX29: 0 | AY29: 0 | AZ29: 0 | BA29: 0 | BB29: Yes | BC29: No | BD29: Yes | BE29: No | BF29: Yes | BG29: No | BH29: No | BI29: No | BJ29: No | BK29: No | BL29: No | BN29: Yes | BO29: Yes | BP29: Yes | BQ29: Yes | BR29: Yes | BS29: Yes | BT29: Yes | BU29: Yes | BV29: No | BW29: No | BX29: Yes | BY29: Yes | BZ29: Yes | CA29: Yes | CB29: Yes | CC29: 13 | CD29: 7 | CE29: 6 | CF29: 7 | CG29: 2 | CH29: 2 | CI29: Yes | CJ29: Yes | CK29: Yes | CL29: 0 | CM29: 0 | CN29: 0 | CO29: 0 | CP29: Yes | CQ29: Yes | CR29: Yes | CS29: Yes | CT29: Yes | CU29: Yes | CV29: No | CW29: No | CX29: No | CY29: No | CZ29: yes | DA29: Yes | DB29: No | DC29: No | DD29: No
C30: 27 | D30: East Harling | E30: Yes | F30: 2023 | G30: No | H30: No | I30: 0 | J30: No | K30: 2024-06-23 | L30: No | M30: No | O30: No | Q30: 0 | R30: 0 | S30: 0 | T30: 0 | U30: No | V30: No | W30: No | X30: Yes | Y30: No | Z30: No | AA30: 1 | AB30: Yes | AC30: No | AD30: No | AE30: No | AF30: No | AG30: No | AH30: Yes | AI30: No | AJ30: No | AK30: No | AL30: No | AM30: No | AN30: No | AO30: No | AP30: Yes | AQ30: No | AR30: Yes | AS30: 35.5 | AT30: 0 | AU30: 0 | AV30: 0 | AW30: 0 | AX30: 0 | AY30: 0 | AZ30: 0 | BA30: 0 | BB30: No | BC30: No | BD30: No | BE30: No | BF30: No | BG30: No | BH30: No | BI30: No | BJ30: No | BK30: No | BL30: No | BN30: Yes | BO30: Yes | BP30: Yes | BQ30: Yes | BR30: Yes | BS30: Yes | BT30: No | BU30: Yes | BV30: Yes | BW30: No | BX30: No | BY30: Yes | BZ30: Yes | CA30: Yes | CB30: Yes | CC30: 11 | CD30: 0 | CE30: 9 | CF30: 2 | CG30: 7 | CH30: 1 | CI30: Yes | CJ30: Yes | CK30: No | CL30: 0 | CM30: 0 | CN30: 0 | CO30: 0 | CP30: Yes | CQ30: No | CR30: No | CS30: Yes | CT30: No | CU30: Yes | CV30: No | CW30: No | CX30: No | CY30: No | CZ30: No | DA30: Yes | DB30: No | DC30: No | DD30: No
C31: 28 | D31: East Suffolk IDB | E31: Yes | F31: 2022 | G31: Yes | H31: Yes | I31: 2023 | J31: Yes | K31: 2025-01-27 | L31: Yes | M31: Yes | N31: Minsmere – Walberswick Heaths and Marshes , Fox Fritillary Meadow framsden SSSI, Sizewell Marshes | O31: No | Q31: 2432.52 | R31: 0 | S31: 2432.52 | T31: 0 | U31: No | V31: No | W31: Yes | X31: Yes | Y31: Yes | Z31: Yes | AA31: 3 | AB31: No | AC31: Yes | AD31: Yes | AE31: No | AF31: No | AG31: No | AH31: Yes | AI31: Yes | AJ31: No | AK31: Yes | AL31: No | AM31: No | AN31: No | AO31: No | AP31: No | AQ31: Yes | AR31: Yes | AS31: 99 | AT31: 10 | AU31: 10 | AV31: 0 | AW31: 0 | AX31: 0 | AY31: 0 | AZ31: 0 | BA31: 4.4 | BB31: Yes | BC31: No | BD31: Yes | BE31: No | BF31: Yes | BG31: Yes | BH31: No | BI31: No | BJ31: Yes | BK31: No | BL31: No | BN31: Yes | BO31: Yes | BP31: Yes | BQ31: Yes | BR31: Yes | BS31: Yes | BT31: Yes | BU31: Yes | BV31: No | BW31: Yes | BX31: Yes | BY31: Yes | BZ31: Yes | CA31: Yes | CB31: Yes | CC31: 17 | CD31: 7 | CE31: 10 | CF31: 6 | CG31: 2.4 | CH31: 2 | CI31: Yes | CJ31: Yes | CK31: No | CL31: 0 | CM31: 0 | CN31: 0 | CO31: 0 | CP31: Yes | CQ31: No | CR31: Yes | CS31: Yes | CT31: No | CU31: Yes | CV31: No | CW31: No | CX31: yes | CY31: yes | CZ31: yes | DA31: Yes | DB31: Yes | DC31: No | DD31: No
C32: 29 | D32: East of the Ouse, Polver and Nar IDB | E32: Yes | F32: 2018 | G32: Yes | H32: Yes | I32: 2010 | J32: No | K32: 2010 | L32: Yes | M32: No | O32: No | Q32: 0 | R32: 0 | S32: 0 | T32: 0 | U32: No | V32: No | W32: No | X32: Yes | Y32: No | Z32: No | AA32: 0 | AB32: No | AC32: No | AD32: No | AE32: No | AF32: No | AG32: No | AH32: No | AI32: No | AJ32: No | AK32: No | AL32: No | AM32: No | AN32: No | AO32: No | AP32: Yes | AQ32: No | AR32: Yes | AS32: 73.3 | AT32: 7 | AU32: 12 | AV32: 0 | AW32: 0 | AX32: 0 | AY32: 0 | AZ32: 0 | BA32: 12.76 | BB32: Yes | BC32: No | BD32: Yes | BE32: No | BF32: Yes | BG32: No | BH32: No | BI32: No | BJ32: No | BK32: No | BL32: No | BN32: Yes | BO32: Yes | BP32: Yes | BQ32: No | BR32: Yes | BS32: Yes | BT32: Yes | BU32: Yes | BV32: No | BW32: No | BX32: Yes | BY32: Yes | BZ32: Yes | CA32: Yes | CB32: Yes | CC32: 21 | CD32: 12 | CE32: 9 | CF32: 12 | CG32: 5.33 | CH32: 7 | CI32: Yes | CJ32: Yes | CK32: Yes | CL32: 0 | CM32: 0 | CN32: 0 | CO32: 0 | CP32: Yes | CQ32: No | CR32: Yes | CS32: Yes | CT32: No | CU32: Yes | CV32: No | CW32: No | CX32: No | CY32: No | CZ32: No | DA32: Yes | DB32: No | DC32: No | DD32: No
C33: 30 | D33: Euixmoor | E33: Yes | F33: 2019 | G33: Yes | H33: Yes | I33: 2022 | J33: No | K33: 2024-05-30 | L33: Yes | M33: No | O33: No | Q33: 0 | R33: 0 | S33: 0 | T33: 0 | U33: No | V33: No | W33: No | X33: Yes | Y33: No | Z33: No | AA33: 0 | AB33: No | AC33: No | AD33: No | AE33: No | AF33: No | AG33: No | AH33: No | AI33: No | AJ33: No | AK33: No | AL33: No | AM33: No | AN33: No | AO33: No | AP33: No | AQ33: Yes | AR33: Yes | AS33: 17.7 | AT33: 2 | AU33: 3 | AV33: 0 | AW33: 0 | AX33: 0 | AY33: 0 | AZ33: 0 | BA33: 0.925 | BB33: Yes | BC33: Yes | BD33: Yes | BE33: No | BF33: Yes | BG33: Yes | BH33: Yes | BI33: Yes | BJ33: No | BK33: No | BL33: No | BN33: Yes | BO33: Yes | BP33: Yes | BQ33: Yes | BR33: Yes | BS33: Yes | BT33: Yes | BU33: Yes | BV33: Yes | BW33: No | BX33: Yes | BY33: Yes | BZ33: Yes | CA33: Yes | CB33: Yes | CC33: 10 | CD33: 1 | CE33: 6 | CF33: 1 | CG33: 5 | CH33: 0 | CI33: Yes | CJ33: Yes | CK33: Yes | CL33: 0 | CM33: 0 | CN33: 0 | CO33: 0 | CP33: Yes | CQ33: No | CR33: No | CS33: Yes | CT33: No | CU33: Yes | CV33: No | CW33: No | CX33: No | CY33: No | CZ33: yes | DA33: No | DB33: No | DC33: No | DD33: No
C34: 31 | D34: Feldale | E34: Yes | F34: 2018 | G34: Yes | H34: Yes | I34: 2018 | J34: Yes | K34: 2024-04-08 | L34: Yes | M34: No | O34: No | Q34: 0 | R34: 0 | S34: 0 | T34: 0 | U34: Yes | V34: No | W34: No | X34: Yes | Y34: No | Z34: No | AA34: 0 | AB34: No | AC34: No | AD34: No | AE34: No | AF34: No | AG34: No | AH34: No | AI34: No | AJ34: No | AK34: No | AL34: No | AM34: No | AN34: No | AO34: No | AP34: No | AQ34: Yes | AR34: Yes | AS34: 5.51 | AT34: 1 | AU34: 1 | AV34: 0 | AW34: 0 | AX34: 0 | AY34: 0 | AZ34: 0 | BA34: 0.6 | BB34: Yes | BC34: Yes | BD34: Yes | BE34: No | BF34: Yes | BG34: No | BH34: No | BI34: No | BJ34: Yes | BK34: No | BL34: No | BN34: Yes | BO34: Yes | BP34: Yes | BQ34: Yes | BR34: Yes | BS34: Yes | BT34: Yes | BU34: Yes | BV34: No | BW34: Yes | BX34: Yes | BY34: Yes | BZ34: Yes | CA34: Yes | CB34: Yes | CC34: 12 | CD34: 6 | CE34: 6 | CF34: 6 | CG34: 5 | CH34: 2 | CI34: Yes | CJ34: Yes | CK34: Yes | CL34: 0 | CM34: 0 | CN34: 0 | CO34: 0 | CP34: Yes | CQ34: No | CR34: No | CS34: No | CT34: No | CU34: Yes | CV34: No | CW34: No | CX34: No | CY34: No | CZ34: No | DA34: No | DB34: No | DC34: No | DD34: No
C35: 32 | D35: Foss IDB (2008) | E35: Yes | F35: 2024 | G35: Yes | H35: Yes | I35: 2014 | J35: No | K35: 2023-11-06 | L35: Yes | M35: No | O35: No | Q35: 0 | R35: 0 | S35: 0 | T35: 0 | U35: No | V35: No | W35: No | X35: Yes | Y35: Yes | Z35: Yes | AA35: 1 | AB35: Yes | AC35: No | AD35: No | AE35: No | AF35: No | AG35: No | AH35: Yes | AI35: No | AJ35: Yes | AK35: No | AL35: No | AM35: No | AN35: No | AO35: No | AP35: Yes | AQ35: Yes | AR35: Yes | AS35: 215 | AT35: 0 | AU35: 0 | AV35: 0 | AW35: 0 | AX35: 0 | AY35: 0 | AZ35: 0 | BA35: 0 | BB35: Yes | BC35: No | BD35: Yes | BE35: No | BF35: Yes | BG35: No | BH35: No | BI35: No | BJ35: No | BK35: No | BL35: Yes | BM35: New members are sent a welcome pack and a leaflet on the function and purpose of Drainage Boards. This along with a link to the Boards website which has a link to a downloadable PDF version of the Boards district map. Members are invited and attend ADA Meetings of both the Northern Branch and National Meetings and are informed and updated about IDB function and matters at Board Meetings. Members can ask the Clerk to organise a site inspection as and when required for particular items of interest in the district along with any specific training as required | BN35: Yes | BO35: Yes | BP35: No | BQ35: Yes | BR35: Yes | BS35: Yes | BT35: Yes | BU35: Yes | BV35: Yes | BW35: Yes | BX35: Yes | BY35: Yes | BZ35: Yes | CA35: Yes | CB35: Yes | CC35: 21 | CD35: 11 | CE35: 10 | CF35: 10 | CG35: 6.2 | CH35: 6 | CI35: Yes | CJ35: Yes | CK35: Yes | CL35: 0 | CM35: 0 | CN35: 0 | CO35: 0 | CP35: Yes | CQ35: No | CR35: No | CS35: Yes | CT35: No | CU35: Yes | CV35: No | CW35: No | CX35: No | CY35: No | CZ35: No | DA35: Yes | DB35: Yes | DC35: Yes | DD35: No
C36: 33 | D36: Goole Fields DDB | E36: Yes | F36: 2023 | G36: Yes | H36: Yes | I36: 2020 | J36: Yes | K36: 2025-02-01 | L36: Yes | M36: No | O36: No | Q36: 0 | R36: 0 | S36: 0 | T36: 0 | U36: No | V36: No | W36: No | X36: Yes | Y36: No | Z36: No | AA36: 0 | AB36: No | AC36: No | AD36: No | AE36: No | AF36: No | AG36: No | AH36: No | AI36: No | AJ36: No | AK36: No | AL36: No | AM36: No | AN36: No | AO36: No | AP36: Yes | AQ36: Yes | AR36: Yes | AS36: 15 | AT36: 1 | AU36: 2 | AV36: 0 | AW36: 0 | AX36: 0 | AY36: 0 | AZ36: 0 | BA36: 0.5 | BB36: Yes | BC36: No | BD36: Yes | BE36: No | BF36: Yes | BG36: No | BH36: No | BI36: No | BJ36: No | BK36: No | BL36: No | BN36: Yes | BO36: Yes | BP36: Yes | BQ36: Yes | BR36: Yes | BS36: Yes | BT36: Yes | BU36: Yes | BV36: No | BW36: No | BX36: Yes | BY36: Yes | BZ36: Yes | CA36: Yes | CB36: Yes | CC36: 6 | CD36: 1 | CE36: 5 | CF36: 1 | CG36: 5 | CH36: 0 | CI36: Yes | CJ36: Yes | CK36: Yes | CL36: 0 | CM36: 0 | CN36: 0 | CO36: 0 | CP36: Yes | CQ36: Yes | CR36: Yes | CS36: Yes | CT36: Yes | CU36: Yes | CV36: No | CW36: No | CX36: No | CY36: No | CZ36: yes | DA36: Yes | DB36: No | DC36: No | DD36: No
C37: 34 | D37: Goole and Airmyn IDB | E37: Yes | F37: 2023 | G37: Yes | H37: Yes | I37: 2020 | J37: Yes | K37: 2025-02-01 | L37: Yes | M37: No | O37: No | Q37: 0 | R37: 0 | S37: 0 | T37: 0 | U37: No | V37: No | W37: No | X37: Yes | Y37: No | Z37: No | AA37: 0 | AB37: No | AC37: No | AD37: No | AE37: No | AF37: No | AG37: No | AH37: No | AI37: No | AJ37: No | AK37: No | AL37: No | AM37: No | AN37: No | AO37: No | AP37: Yes | AQ37: Yes | AR37: Yes | AS37: 24 | AT37: 5 | AU37: 12 | AV37: 0 | AW37: 0 | AX37: 1 | AY37: 0 | AZ37: 0 | BA37: 87 | BB37: Yes | BC37: No | BD37: Yes | BE37: No | BF37: Yes | BG37: No | BH37: No | BI37: No | BJ37: No | BK37: No | BL37: No | BN37: Yes | BO37: Yes | BP37: Yes | BQ37: Yes | BR37: Yes | BS37: Yes | BT37: Yes | BU37: Yes | BV37: No | BW37: No | BX37: Yes | BY37: Yes | BZ37: Yes | CA37: Yes | CB37: Yes | CC37: 13 | CD37: 7 | CE37: 6 | CF37: 4 | CG37: 5 | CH37: 2 | CI37: Yes | CJ37: Yes | CK37: Yes | CL37: 0 | CM37: 0 | CN37: 0 | CO37: 0 | CP37: Yes | CQ37: Yes | CR37: Yes | CS37: Yes | CT37: Yes | CU37: Yes | CV37: No | CW37: No | CX37: No | CY37: No | CZ37: yes | DA37: Yes | DB37: No | DC37: No | DD37: No
C38: 35 | D38: Haddenham Level | E38: Yes | F38: 2019 | G38: Yes | H38: Yes | I38: 2022 | J38: No | K38: 2024-04-25 | L38: Yes | M38: No | O38: No | Q38: 0 | R38: 0 | S38: 0 | T38: 0 | U38: No | V38: No | W38: No | X38: Yes | Y38: No | Z38: No | AA38: 0 | AB38: No | AC38: No | AD38: No | AE38: No | AF38: No | AG38: No | AH38: No | AI38: No | AJ38: No | AK38: No | AL38: No | AM38: No | AN38: No | AO38: No | AP38: No | AQ38: Yes | AR38: Yes | AS38: 29.5 | AT38: 2 | AU38: 4 | AV38: 0 | AW38: 0 | AX38: 0 | AY38: 0 | AZ38: 0 | BA38: 4.47 | BB38: Yes | BC38: Yes | BD38: Yes | BE38: No | BF38: Yes | BG38: Yes | BH38: Yes | BI38: Yes | BJ38: No | BK38: No | BL38: No | BN38: Yes | BO38: Yes | BP38: Yes | BQ38: Yes | BR38: Yes | BS38: Yes | BT38: Yes | BU38: Yes | BV38: Yes | BW38: No | BX38: Yes | BY38: Yes | BZ38: Yes | CA38: Yes | CB38: Yes | CC38: 26 | CD38: 13 | CE38: 24 | CF38: 2 | CG38: 15 | CH38: 2 | CI38: No | CJ38: No | CK38: Yes | CL38: 0 | CM38: 0 | CN38: 0 | CO38: 0 | CP38: Yes | CQ38: No | CR38: No | CS38: Yes | CT38: No | CU38: Yes | CV38: No | CW38: No | CX38: No | CY38: No | CZ38: yes | DA38: Yes | DB38: Yes | DC38: Yes | DD38: No
C39: 36 | D39: Holmewood and District DB | E39: Yes | F39: 2018 | G39: Yes | H39: Yes | I39: 2018 | J39: Yes | K39: 2022-11-11 | L39: Yes | M39: Yes | N39: Holme Fen National nature reserve | O39: No | Q39: 261.7 | R39: 0 | S39: 0 | T39: 0 | U39: Yes | V39: No | W39: No | X39: Yes | Y39: Yes | Z39: No | AA39: 0 | AB39: No | AC39: No | AD39: No | AE39: No | AF39: No | AG39: No | AH39: No | AI39: No | AJ39: No | AK39: No | AL39: No | AM39: No | AN39: No | AO39: No | AP39: No | AQ39: Yes | AR39: No | AS39: 32.49 | AT39: 2 | AU39: 3 | AV39: 0 | AW39: 0 | AX39: 0 | AY39: 0 | AZ39: 0 | BA39: 2.6 | BB39: Yes | BC39: Yes | BD39: Yes | BE39: No | BF39: Yes | BG39: No | BH39: No | BI39: No | BJ39: Yes | BK39: No | BL39: No | BN39: Yes | BO39: Yes | BP39: Yes | BQ39: Yes | BR39: Yes | BS39: Yes | BT39: Yes | BU39: Yes | BV39: No | BW39: Yes | BX39: Yes | BY39: Yes | BZ39: Yes | CA39: Yes | CB39: Yes | CC39: 12 | CD39: 11 | CE39: 8 | CF39: 1 | CG39: 7 | CH39: 1 | CI39: Yes | CJ39: Yes | CK39: Yes | CL39: 1 | CM39: 0 | CN39: 0 | CO39: 0 | CP39: Yes | CQ39: No | CR39: No | CS39: No | CT39: No | CU39: Yes | CV39: No | CW39: No | CX39: No | CY39: No | CZ39: No | DA39: No | DB39: No | DC39: No | DD39: No
C40: 37 | D40: Hundred Foot Washes IDB | E40: Yes | F40: 2019 | G40: Yes | H40: Yes | I40: 2022 | J40: No | K40: 2024-05-13 | L40: Yes | M40: No | O40: Yes | P40: Ouse Wshes | Q40: 0 | R40: 2300 | S40: 0 | T40: 0 | U40: No | V40: No | W40: No | X40: Yes | Y40: No | Z40: No | AA40: 0 | AB40: No | AC40: No | AD40: No | AE40: No | AF40: No | AG40: No | AH40: No | AI40: No | AJ40: No | AK40: No | AL40: No | AM40: No | AN40: No | AO40: No | AP40: No | AQ40: Yes | AR40: Yes | AS40: 21.4 | AT40: 0 | AU40: 0 | AV40: 0 | AW40: 0 | AX40: 0 | AY40: 0 | AZ40: 0 | BA40: 0 | BB40: Yes | BC40: Yes | BD40: Yes | BE40: No | BF40: Yes | BG40: Yes | BH40: Yes | BI40: Yes | BJ40: No | BK40: No | BL40: No | BN40: Yes | BO40: Yes | BP40: Yes | BQ40: Yes | BR40: Yes | BS40: Yes | BT40: Yes | BU40: Yes | BV40: Yes | BW40: No | BX40: Yes | BY40: Yes | BZ40: Yes | CA40: Yes | CB40: Yes | CC40: 11 | CD40: 0 | CE40: 11 | CF40: 0 | CG40: 8 | CH40: 0 | CI40: Yes | CJ40: Yes | CK40: Yes | CL40: 0 | CM40: 0 | CN40: 0 | CO40: 0 | CP40: Yes | CQ40: No | CR40: No | CS40: Yes | CT40: No | CU40: Yes | CV40: No | CW40: No | CX40: No | CY40: No | CZ40: yes | DA40: No | DB40: No | DC40: No | DD40: No
C41: 38 | D41: Hundred of Wisbech | E41: Yes | F41: 2019 | G41: Yes | H41: Yes | I41: 2022 | J41: No | K41: 2024-06-10 | L41: Yes | M41: No | O41: No | Q41: 0 | R41: 0 | S41: 0 | T41: 0 | U41: No | V41: No | W41: No | X41: Yes | Y41: No | Z41: No | AA41: 0 | AB41: No | AC41: No | AD41: No | AE41: No | AF41: No | AG41: No | AH41: No | AI41: No | AJ41: No | AK41: No | AL41: No | AM41: No | AN41: No | AO41: No | AP41: No | AQ41: Yes | AR41: Yes | AS41: 30.9 | AT41: 0 | AU41: 0 | AV41: 0 | AW41: 0 | AX41: 0 | AY41: 0 | AZ41: 0 | BA41: 0 | BB41: Yes | BC41: Yes | BD41: Yes | BE41: No | BF41: Yes | BG41: Yes | BH41: Yes | BI41: Yes | BJ41: No | BK41: No | BL41: No | BN41: Yes | BO41: Yes | BP41: Yes | BQ41: Yes | BR41: Yes | BS41: Yes | BT41: Yes | BU41: Yes | BV41: Yes | BW41: No | BX41: Yes | BY41: Yes | BZ41: Yes | CA41: Yes | CB41: Yes | CC41: 27 | CD41: 15 | CE41: 12 | CF41: 15 | CG41: 9 | CH41: 10 | CI41: Yes | CJ41: Yes | CK41: Yes | CL41: 0 | CM41: 0 | CN41: 0 | CO41: 0 | CP41: Yes | CQ41: No | CR41: No | CS41: Yes | CT41: No | CU41: Yes | CV41: No | CW41: No | CX41: No | CY41: No | CZ41: No | DA41: No | DB41: No | DC41: Yes | DD41: No
C42: 39 | D42: Kings Lynn | E42: Yes | F42: 2022 | G42: Yes | H42: Yes | I42: 2023 | J42: Yes | K42: 2025-01-16 | L42: Yes | M42: No | N42: Dersingham bog, Roydon Common, Leziate Sugar Derby Fens | O42: No | Q42: 440.92 | R42: 0 | S42: 87.9 | T42: 0 | U42: No | V42: No | W42: Yes | X42: Yes | Y42: Yes | Z42: No | AA42: 1 | AB42: Yes | AC42: No | AD42: No | AE42: No | AF42: No | AG42: No | AH42: Yes | AI42: No | AJ42: No | AK42: No | AL42: No | AM42: No | AN42: No | AO42: No | AP42: No | AQ42: Yes | AR42: Yes | AS42: 598 | AT42: 15 | AU42: 15 | AV42: 0 | AW42: 0 | AX42: 2 | AY42: 0 | AZ42: 0 | BA42: 37.92 | BB42: Yes | BC42: No | BD42: Yes | BE42: No | BF42: Yes | BG42: Yes | BH42: No | BI42: No | BJ42: Yes | BK42: No | BL42: No | BN42: Yes | BO42: Yes | BP42: Yes | BQ42: Yes | BR42: Yes | BS42: Yes | BT42: Yes | BU42: Yes | BV42: No | BW42: Yes | BX42: Yes | BY42: Yes | BZ42: Yes | CA42: Yes | CB42: Yes | CC42: 21 | CD42: 11 | CE42: 10 | CF42: 11 | CG42: 1,8 | CH42: 1.7 | CI42: Yes | CJ42: Yes | CK42: No | CL42: 1 | CM42: 0 | CN42: 0 | CO42: 0 | CP42: Yes | CQ42: No | CR42: Yes | CS42: Yes | CT42: No | CU42: Yes | CV42: No | CW42: No | CX42: No | CY42: Yes | CZ42: yes | DA42: No | DB42: Yes | DC42: No | DD42: No
C43: 40 | D43: Kyle and Upper Ouse IDB | E43: Yes | F43: 2019 | G43: Yes | H43: No | I43: 2012 | J43: No | K43: 2025-02-01 | L43: No | M43: No | O43: No | Q43: 0 | R43: 0 | S43: 0 | T43: 0 | U43: No | V43: No | W43: No | X43: Yes | Y43: No | Z43: No | AA43: 0 | AB43: No | AC43: No | AD43: No | AE43: No | AF43: No | AG43: No | AH43: No | AI43: No | AJ43: No | AK43: No | AL43: No | AM43: No | AN43: No | AO43: No | AP43: Yes | AQ43: No | AR43: Yes | AS43: 253 | AT43: 0 | AU43: 0 | AV43: 0 | AW43: 0 | AX43: 0 | AY43: 0 | AZ43: 0 | BA43: 0 | BB43: Yes | BC43: No | BD43: Yes | BE43: No | BF43: Yes | BG43: No | BH43: No | BI43: No | BJ43: No | BK43: No | BL43: No | BN43: Yes | BO43: Yes | BP43: No | BQ43: Yes | BR43: Yes | BS43: Yes | BT43: Yes | BU43: Yes | BV43: No | BW43: Yes | BX43: Yes | BY43: Yes | BZ43: Yes | CA43: Yes | CB43: Yes | CC43: 12 | CD43: 11 | CE43: 9 | CF43: 3 | CG43: 4 | CH43: 1 | CI43: Yes | CJ43: Yes | CK43: Yes | CL43: 0 | CM43: 0 | CN43: 0 | CO43: 0 | CP43: Yes | CQ43: No | CR43: No | CS43: Yes | CT43: No | CU43: Yes | CV43: No | CW43: No | CX43: No | CY43: No | CZ43: No | DA43: Yes | DB43: Yes | DC43: Yes | DD43: No
C44: 41 | D44: Lakenheath | E44: Yes | F44: 2020 | G44: Yes | H44: Yes | I44: 2009 | J44: No | K44: 2022 | L44: Yes | M44: Yes | N44: Lakenheath Poors Fen, Pashford Poors Fen | O44: No | Q44: 17.61 | R44: 0 | S44: 0 | T44: 17.16 | U44: Yes | V44: No | W44: No | X44: Yes | Y44: Yes | Z44: No | AA44: 0 | AB44: No | AC44: No | AD44: No | AE44: No | AF44: No | AG44: No | AH44: No | AI44: No | AJ44: No | AK44: No | AL44: No | AM44: No | AN44: No | AO44: No | AP44: Yes | AQ44: No | AR44: Yes | AS44: 16.7 | AT44: 1 | AU44: 2 | AV44: 0 | AW44: 0 | AX44: 0 | AY44: 0 | AZ44: 0 | BA44: 1.56 | BB44: Yes | BC44: No | BD44: Yes | BE44: No | BF44: Yes | BG44: No | BH44: No | BI44: No | BJ44: No | BK44: No | BL44: Yes | BM44: Board Members are invited to tour the District with the Engineer. | BN44: Yes | BO44: Yes | BP44: Yes | BQ44: Yes | BR44: Yes | BS44: Yes | BT44: Yes | BU44: Yes | BV44: No | BW44: No | BX44: Yes | BY44: Yes | BZ44: Yes | CA44: Yes | CB44: Yes | CC44: 10 | CD44: 3 | CE44: 7 | CF44: 3 | CG44: 5.6 | CH44: 1.3 | CI44: Yes | CJ44: Yes | CK44: Yes | CL44: 0 | CM44: 0 | CN44: 0 | CO44: 0 | CP44: Yes | CQ44: No | CR44: Yes | CS44: Yes | CT44: No | CU44: Yes | CV44: No | CW44: No | CX44: No | CY44: No | CZ44: yes | DA44: No | DB44: No | DC44: No | DD44: No
C45: 42 | D45: Lindsey Marsh DB | E45: Yes | F45: 2019 | G45: Yes | H45: No | I45: 2010 | J45: No | K45: all | L45: Yes | M45: Yes | N45: Bratoft Meadows, Saltfleetby - Theddlethorpe dunes, tetley blow wells, | O45: No | Q45: 98.33 | R45: 0 | S45: 0 | T45: 0 | U45: No | V45: No | W45: Yes | X45: Yes | Y45: No | Z45: No | AA45: 2 | AB45: Yes | AC45: No | AD45: No | AE45: No | AF45: No | AG45: No | AH45: Yes | AI45: No | AJ45: No | AK45: No | AL45: No | AM45: No | AN45: Yes | AO45: No | AP45: Yes | AQ45: Yes | AR45: Yes | AS45: 943.7 | AT45: 30 | AU45: 62 | AV45: 5 | AW45: 0 | AX45: 4 | AY45: 0 | AZ45: 0 | BA45: 71.48 | BB45: Yes | BC45: No | BD45: Yes | BE45: No | BF45: No | BG45: Yes | BH45: Yes | BI45: Yes | BJ45: Yes | BK45: Yes | BL45: Yes | BM45: New Board members are also provided with copy of ADA Good Governance Guide, referred to ADA training modules, given an inhouse New Members’ Induction and tour of the Board’s area. | BN45: Yes | BO45: Yes | BP45: Yes | BQ45: Yes | BR45: Yes | BS45: Yes | BT45: Yes | BU45: Yes | BV45: No | BW45: Yes | BX45: Yes | BY45: Yes | BZ45: Yes | CA45: Yes | CB45: Yes | CC45: 21 | CD45: 11 | CE45: 10 | CF45: 11 | CG45: 6 | CH45: 9 | CI45: Yes | CJ45: Yes | CK45: Yes | CL45: 0 | CM45: 0 | CN45: 0 | CO45: 0 | CP45: No | CQ45: No | CR45: Yes | CS45: Yes | CT45: No | CU45: Yes | CV45: No | CW45: No | CX45: No | CY45: Yes | CZ45: No | DA45: Yes | DB45: Yes | DC45: Yes | DD45: No
C46: 43 | D46: Littleport and Downham | E46: Yes | F46: 2020 | G46: Yes | H46: Yes | I46: 2009 | J46: No | K46: 2022 | L46: Yes | M46: No | O46: No | Q46: 0 | R46: 0 | S46: 0 | T46: 0 | U46: No | V46: No | W46: No | X46: Yes | Y46: No | Z46: No | AA46: 0 | AB46: No | AC46: No | AD46: No | AE46: No | AF46: No | AG46: No | AH46: No | AI46: No | AJ46: No | AK46: No | AL46: No | AM46: No | AN46: No | AO46: No | AP46: Yes | AQ46: No | AR46: Yes | AS46: 302.2 | AT46: 7 | AU46: 13 | AV46: 0 | AW46: 0 | AX46: 0 | AY46: 0 | AZ46: 0 | BA46: 16.06 | BB46: Yes | BC46: No | BD46: Yes | BE46: No | BF46: Yes | BG46: No | BH46: No | BI46: No | BJ46: No | BK46: No | BL46: Yes | BM46: Board Members are invited to tour the District with the Engineer. | BN46: Yes | BO46: Yes | BP46: Yes | BQ46: Yes | BR46: Yes | BS46: Yes | BT46: Yes | BU46: Yes | BV46: No | BW46: No | BX46: Yes | BY46: Yes | BZ46: Yes | CA46: Yes | CB46: Yes | CC46: 22 | CD46: 7 | CE46: 15 | CF46: 7 | CG46: 10.6 | CH46: 4.3 | CI46: Yes | CJ46: Yes | CK46: Yes | CL46: 1 | CM46: 0 | CN46: 1 | CO46: 1 | CP46: Yes | CQ46: No | CR46: Yes | CS46: Yes | CT46: No | CU46: Yes | CV46: No | CW46: No | CX46: No | CY46: No | CZ46: yes | DA46: No | DB46: No | DC46: No | DD46: No
C47: 44 | D47: Lower Medway IDB | E47: Yes | F47: 2024 | G47: Yes | H47: Yes | I47: 2021 | J47: No | K47: 2024-06-01 | L47: Yes | M47: Yes | N47: Capel Fleet , Chetney and Ferry Marshes, East Church Marshes and Windmill Creek, Elmley and Splitend Marshes, Gillingham and Rainham, Ham Marshes, Hoo and Stoke, isle of Grain, iwade and Milton, Leysdown and Kingsborough, luddenham Marshes, Minster Marshes, Seasalter, Sheerness Minster Queensborough, South Medway, tonge and Murston, upchurch and Lower Halstow, upnor | O47: No | Q47: 4251.9 | R47: 4251.9 | S47: 0 | T47: 0 | U47: Yes | V47: No | W47: No | X47: Yes | Y47: No | Z47: No | AA47: 1 | AB47: Yes | AC47: No | AD47: No | AE47: No | AF47: No | AG47: No | AH47: Yes | AI47: No | AJ47: No | AK47: No | AL47: No | AM47: No | AN47: No | AO47: No | AP47: No | AQ47: Yes | AR47: No | AS47: 167 | AT47: 4 | AU47: 4 | AV47: 0 | AW47: 0 | AX47: 0 | AY47: 0 | AZ47: 0 | BA47: 4.79 | BB47: Yes | BC47: Yes | BD47: Yes | BE47: No | BF47: Yes | BG47: No | BH47: No | BI47: No | BJ47: No | BK47: No | BL47: No | BM47: Internal training on issues covered by Q38, Q39, Q40 | BN47: Yes | BO47: Yes | BP47: Yes | BQ47: Yes | BR47: Yes | BS47: Yes | BT47: Yes | BU47: Yes | BV47: No | BW47: Yes | BX47: Yes | BY47: Yes | BZ47: Yes | CA47: Yes | CB47: Yes | CC47: 18 | CD47: 10 | CE47: 8 | CF47: 10 | CG47: 6.5 | CH47: 7.5 | CI47: No | CJ47: Yes | CK47: Yes | CL47: 0 | CM47: 0 | CN47: 0 | CO47: 0 | CP47: Yes | CQ47: No | CR47: No | CS47: Yes | CT47: Yes | CU47: Yes | CV47: No | CW47: No | CX47: No | CY47: Yes | CZ47: No | DA47: Yes | DB47: No | DC47: No | DD47: Yes
C48: 45 | D48: Lower Severn IDB(2005) | E48: Yes | F48: 2013 | G48: Yes | H48: Yes | I48: 2022 | J48: No | K48: 2022-04-13 | L48: Yes | M48: Yes | N48: Walmore Common SSSI, Burley Deane, Slimbridge New Grounds, Chaceley Meadows, Ashleworth Ham | O48: No | Q48: 419 | R48: 0 | S48: 373 | T48: 0 | U48: No | V48: No | W48: No | X48: Yes | Y48: Yes | Z48: No | AA48: 0 | AB48: No | AC48: No | AD48: No | AE48: No | AF48: No | AG48: No | AH48: No | AI48: No | AJ48: No | AK48: No | AL48: No | AM48: No | AN48: No | AO48: No | AP48: No | AQ48: Yes | AR48: Yes | AS48: 550 | AT48: 6 | AU48: 10 | AV48: 0 | AW48: 0 | AX48: 0 | AY48: 0 | AZ48: 0 | BA48: 4.5 | BB48: Yes | BC48: No | BD48: Yes | BE48: No | BF48: Yes | BG48: No | BH48: No | BI48: Yes | BJ48: No | BK48: No | BL48: No | BN48: Yes | BO48: Yes | BP48: Yes | BQ48: Yes | BR48: Yes | BS48: Yes | BT48: Yes | BU48: Yes | BV48: No | BW48: No | BX48: Yes | BY48: Yes | BZ48: Yes | CA48: Yes | CB48: Yes | CC48: 24 | CD48: 15 | CE48: 11 | CF48: 13 | CG48: 0 | CH48: 7 | CI48: Yes | CJ48: Yes | CK48: Yes | CL48: 0 | CM48: 0 | CN48: 0 | CO48: 0 | CP48: Yes | CQ48: No | CR48: Yes | CS48: Yes | CT48: Yes | CU48: Yes | CV48: No | CW48: Yes | CX48: Yes | CY48: No | CZ48: Yes | DA48: Yes | DB48: Yes | DC48: Yes | DD48: No
C49: 46 | D49: Manea & Welney | E49: Yes | F49: 2019 | G49: Yes | H49: Yes | I49: 2022 | J49: No | K49: 2024-06-13 | L49: Yes | M49: No | O49: No | Q49: 0 | R49: 0 | S49: 0 | T49: 0 | U49: No | V49: No | W49: No | X49: Yes | Y49: No | Z49: No | AA49: 0 | AB49: No | AC49: No | AD49: No | AE49: No | AF49: No | AG49: No | AH49: No | AI49: No | AJ49: No | AK49: No | AL49: No | AM49: No | AN49: No | AO49: No | AP49: No | AQ49: Yes | AR49: Yes | AS49: 32.5 | AT49: 2 | AU49: 2 | AV49: 4 | AW49: 0 | AX49: 0 | AY49: 0 | AZ49: 0 | BA49: 5.12 | BB49: Yes | BC49: Yes | BD49: Yes | BE49: No | BF49: Yes | BG49: Yes | BH49: Yes | BI49: Yes | BJ49: No | BK49: No | BL49: No | BN49: Yes | BO49: Yes | BP49: Yes | BQ49: Yes | BR49: Yes | BS49: Yes | BT49: Yes | BU49: Yes | BV49: Yes | BW49: No | BX49: Yes | BY49: Yes | BZ49: Yes | CA49: Yes | CB49: Yes | CC49: 16 | CD49: 6 | CE49: 12 | CF49: 4 | CG49: 9 | CH49: 3 | CI49: No | CJ49: No | CK49: Yes | CL49: 0 | CM49: 0 | CN49: 0 | CO49: 0 | CP49: Yes | CQ49: No | CR49: No | CS49: Yes | CT49: No | CU49: Yes | CV49: No | CW49: No | CX49: No | CY49: No | CZ49: yes | DA49: Yes | DB49: Yes | DC49: Yes | DD49: No
C50: 47 | D50: March 3rd | E50: Yes | F50: 2019 | G50: Yes | H50: Yes | I50: 2022 | J50: No | K50: 2024-05-09 | L50: Yes | M50: No | O50: No | Q50: 0 | R50: 0 | S50: 0 | T50: 0 | U50: No | V50: No | W50: No | X50: Yes | Y50: No | Z50: No | AA50: 0 | AB50: No | AC50: No | AD50: No | AE50: No | AF50: No | AG50: No | AH50: No | AI50: No | AJ50: No | AK50: No | AL50: No | AM50: No | AN50: No | AO50: No | AP50: No | AQ50: Yes | AR50: Yes | AS50: 9.1 | AT50: 1 | AU50: 2 | AV50: 0 | AW50: 0 | AX50: 0 | AY50: 0 | AZ50: 0 | BA50: 0.318 | BB50: Yes | BC50: Yes | BD50: Yes | BE50: No | BF50: Yes | BG50: Yes | BH50: Yes | BI50: Yes | BJ50: No | BK50: No | BL50: No | BN50: Yes | BO50: Yes | BP50: Yes | BQ50: Yes | BR50: Yes | BS50: Yes | BT50: Yes | BU50: Yes | BV50: Yes | BW50: No | BX50: Yes | BY50: Yes | BZ50: Yes | CA50: Yes | CB50: Yes | CC50: 8 | CD50: 6 | CE50: 4 | CF50: 4 | CG50: 3 | CH50: 0 | CI50: No | CJ50: No | CK50: Yes | CL50: 0 | CM50: 0 | CN50: 0 | CO50: 0 | CP50: Yes | CQ50: No | CR50: No | CS50: Yes | CT50: No | CU50: Yes | CV50: No | CW50: No | CX50: No | CY50: No | CZ50: yes | DA50: No | DB50: No | DC50: No | DD50: No
C51: 48 | D51: March 5th | E51: Yes | F51: 2019 | G51: Yes | H51: Yes | I51: 2022 | J51: No | K51: 2024-04-09 | L51: Yes | M51: Yes | O51: No | Q51: 0 | R51: 0 | S51: 0 | T51: 0 | U51: No | V51: No | W51: No | X51: Yes | Y51: No | Z51: No | AA51: 0 | AB51: No | AC51: No | AD51: No | AE51: No | AF51: No | AG51: No | AH51: No | AI51: No | AJ51: No | AK51: No | AL51: No | AM51: No | AN51: No | AO51: No | AP51: No | AQ51: Yes | AR51: Yes | AS51: 8 | AT51: 2 | AU51: 2 | AV51: 0 | AW51: 0 | AX51: 0 | AY51: 0 | AZ51: 0 | BA51: 1.44 | BB51: Yes | BC51: Yes | BD51: Yes | BE51: No | BF51: Yes | BG51: Yes | BH51: Yes | BI51: Yes | BJ51: No | BK51: No | BL51: No | BN51: Yes | BO51: Yes | BP51: Yes | BQ51: Yes | BR51: Yes | BS51: Yes | BT51: Yes | BU51: Yes | BV51: Yes | BW51: No | BX51: Yes | BY51: Yes | BZ51: Yes | CA51: Yes | CB51: Yes | CC51: 16 | CD51: 9 | CE51: 9 | CF51: 7 | CG51: 6 | CH51: 1 | CI51: No | CJ51: No | CK51: Yes | CL51: 0 | CM51: 0 | CN51: 0 | CO51: 0 | CP51: Yes | CQ51: No | CR51: No | CS51: Yes | CT51: No | CU51: Yes | CV51: No | CW51: No | CX51: No | CY51: No | CZ51: yes | DA51: No | DB51: No | DC51: No | DD51: No
C52: 49 | D52: March 6th | E52: Yes | F52: 2019 | G52: Yes | H52: Yes | I52: 2022 | J52: No | K52: 2024-06-13 | L52: Yes | M52: No | O52: No | Q52: 0 | R52: 0 | S52: 0 | T52: 0 | U52: No | V52: No | W52: No | X52: Yes | Y52: No | Z52: No | AA52: 0 | AB52: No | AC52: No | AD52: No | AE52: No | AF52: No | AG52: No | AH52: No | AI52: No | AJ52: No | AK52: No | AL52: No | AM52: No | AN52: No | AO52: No | AP52: No | AQ52: Yes | AR52: Yes | AS52: 5.8 | AT52: 1 | AU52: 1 | AV52: 0 | AW52: 0 | AX52: 0 | AY52: 0 | AZ52: 0 | BA52: 0.32 | BB52: Yes | BC52: Yes | BD52: Yes | BE52: No | BF52: Yes | BG52: Yes | BH52: Yes | BI52: Yes | BJ52: No | BK52: No | BL52: No | BN52: Yes | BO52: Yes | BP52: Yes | BQ52: Yes | BR52: Yes | BS52: Yes | BT52: Yes | BU52: Yes | BV52: Yes | BW52: No | BX52: Yes | BY52: Yes | BZ52: Yes | CA52: Yes | CB52: Yes | CC52: 9 | CD52: 4 | CE52: 6 | CF52: 3 | CG52: 4 | CH52: 2 | CI52: No | CJ52: No | CK52: Yes | CL52: 0 | CM52: 0 | CN52: 0 | CO52: 0 | CP52: Yes | CQ52: No | CR52: No | CS52: Yes | CT52: No | CU52: Yes | CV52: No | CW52: No | CX52: No | CY52: No | CZ52: yes | DA52: No | DB52: No | DC52: No | DD52: No
C53: 50 | D53: March East | E53: Yes | F53: 2019 | G53: Yes | H53: Yes | I53: 2022 | J53: No | K53: 2024-05-30 | L53: Yes | M53: No | O53: No | Q53: 0 | R53: 0 | S53: 0 | T53: 0 | U53: No | V53: No | W53: No | X53: Yes | Y53: No | Z53: No | AA53: 0 | AB53: No | AC53: No | AD53: No | AE53: No | AF53: No | AG53: No | AH53: No | AI53: No | AJ53: No | AK53: No | AL53: No | AM53: No | AN53: No | AO53: No | AP53: No | AQ53: Yes | AR53: Yes | AS53: 34.1 | AT53: 3 | AU53: 4 | AV53: 1 | AW53: 0 | AX53: 0 | AY53: 0 | AZ53: 0 | BA53: 3.49 | BB53: Yes | BC53: Yes | BD53: Yes | BE53: No | BF53: Yes | BG53: Yes | BH53: Yes | BI53: Yes | BJ53: No | BK53: No | BL53: No | BN53: Yes | BO53: Yes | BP53: Yes | BQ53: Yes | BR53: Yes | BS53: Yes | BT53: Yes | BU53: Yes | BV53: Yes | BW53: No | BX53: Yes | BY53: Yes | BZ53: Yes | CA53: Yes | CB53: Yes | CC53: 26 | CD53: 14 | CE53: 15 | CF53: 11 | CG53: 8 | CH53: 5 | CI53: Yes | CJ53: Yes | CK53: Yes | CL53: 0 | CM53: 0 | CN53: 0 | CO53: 0 | CP53: Yes | CQ53: No | CR53: No | CS53: Yes | CT53: No | CU53: Yes | CV53: No | CW53: No | CX53: No | CY53: No | CZ53: yes | DA53: No | DB53: No | DC53: No | DD53: No
C54: 51 | D54: March West and White Fen | E54: Yes | F54: 2019 | G54: Yes | H54: Yes | I54: 2022 | J54: No | K54: 2024-05-07 | L54: Yes | M54: No | O54: No | Q54: 0 | R54: 0 | S54: 0 | T54: 0 | U54: No | V54: No | W54: No | X54: Yes | Y54: No | Z54: No | AA54: 0 | AB54: No | AC54: No | AD54: No | AE54: No | AF54: No | AG54: No | AH54: No | AI54: No | AJ54: No | AK54: No | AL54: No | AM54: No | AN54: No | AO54: No | AP54: No | AQ54: Yes | AR54: Yes | AS54: 54.2 | AT54: 6 | AU54: 9 | AV54: 0 | AW54: 0 | AX54: 0 | AY54: 0 | AZ54: 0 | BA54: 4.78 | BB54: Yes | BC54: Yes | BD54: Yes | BE54: No | BF54: Yes | BG54: Yes | BH54: Yes | BI54: Yes | BJ54: No | BK54: No | BL54: No | BN54: Yes | BO54: Yes | BP54: Yes | BQ54: Yes | BR54: Yes | BS54: Yes | BT54: Yes | BU54: Yes | BV54: Yes | BW54: No | BX54: Yes | BY54: Yes | BZ54: Yes | CA54: Yes | CB54: Yes | CC54: 18 | CD54: 5 | CE54: 12 | CF54: 5 | CG54: 8 | CH54: 1 | CI54: Yes | CJ54: Yes | CK54: Yes | CL54: 0 | CM54: 0 | CN54: 0 | CO54: 0 | CP54: Yes | CQ54: No | CR54: No | CS54: Yes | CT54: No | CU54: Yes | CV54: No | CW54: No | CX54: No | CY54: No | CZ54: yes | DA54: No | DB54: No | DC54: No | DD54: No
C55: 52 | D55: Melverley IDB | E55: Yes | F55: 2022 | G55: Yes | H55: Yes | I55: 2022 | J55: No | K55: 2025-01-22 | L55: Yes | M55: No | O55: No | Q55: 0 | R55: 0 | S55: 0 | T55: 0 | U55: No | V55: No | W55: No | X55: Yes | Y55: Yes | Z55: No | AA55: 0 | AB55: No | AC55: No | AD55: No | AE55: No | AF55: No | AG55: No | AH55: No | AI55: No | AJ55: No | AK55: No | AL55: No | AM55: No | AN55: No | AO55: No | AP55: Yes | AQ55: No | AR55: Yes | AS55: 85 | AT55: 0 | AU55: 0 | AV55: 0 | AW55: 0 | AX55: 0 | AY55: 0 | AZ55: 0 | BA55: 0 | BB55: Yes | BC55: No | BD55: Yes | BE55: No | BF55: No | BG55: No | BH55: No | BI55: No | BJ55: No | BK55: No | BL55: No | BN55: Yes | BO55: Yes | BP55: Yes | BQ55: Yes | BR55: Yes | BS55: Yes | BT55: Yes | BU55: No | BV55: No | BW55: No | BX55: No | BY55: No | BZ55: Yes | CA55: Yes | CB55: Yes | CC55: 14 | CD55: 4 | CE55: 10 | CF55: 4 | CG55: 5.25 | CH55: 3.25 | CI55: Yes | CJ55: Yes | CK55: Yes | CL55: 0 | CM55: 0 | CN55: 0 | CO55: 0 | CP55: Yes | CQ55: No | CR55: No | CS55: No | CT55: No | CU55: Yes | CV55: No | CW55: No | CX55: No | CY55: No | CZ55: Yes | DA55: Yes | DB55: No | DC55: No | DD55: Yes
C56: 53 | D56: Middle Fen and Mere | E56: Yes | F56: 2020 | G56: Yes | H56: Yes | I56: 2009 | J56: No | K56: 2022 | L56: Yes | M56: Yes | N56: Soham Wet Horse Fen, Delph Bridge Drove | O56: no | Q56: 33.95 | R56: 0 | S56: 4.02 | T56: 29.91 | U56: No | V56: No | W56: No | X56: Yes | Y56: No | Z56: No | AA56: 0 | AB56: No | AC56: No | AD56: No | AE56: No | AF56: No | AG56: No | AH56: No | AI56: No | AJ56: No | AK56: No | AL56: No | AM56: No | AN56: No | AO56: No | AP56: Yes | AQ56: No | AR56: Yes | AS56: 82.2 | AT56: 9 | AU56: 1 | AV56: 0 | AW56: 0 | AX56: 0 | AY56: 0 | AZ56: 0 | BA56: 10.64 | BB56: Yes | BC56: No | BD56: Yes | BE56: No | BF56: Yes | BG56: No | BH56: No | BI56: No | BJ56: No | BK56: No | BL56: Yes | BN56: Yes | BO56: Yes | BP56: Yes | BQ56: Yes | BR56: Yes | BS56: Yes | BT56: Yes | BU56: Yes | BV56: No | BW56: No | BX56: Yes | BY56: Yes | BZ56: Yes | CA56: Yes | CB56: Yes | CC56: 18 | CD56: 5 | CE56: 13 | CF56: 5 | CG56: 7.6 | CH56: 2 | CI56: Yes | CJ56: Yes | CK56: Yes | CL56: 0 | CM56: 0 | CN56: 0 | CO56: 0 | CP56: Yes | CQ56: No | CR56: Yes | CS56: Yes | CT56: No | CU56: Yes | CV56: No | CW56: No | CX56: No | CY56: No | CZ56: yes | DA56: No | DB56: No | DC56: No | DD56: No
C57: 54 | D57: Middle Level Commissioners | E57: Yes | F57: 2019 | G57: Yes | H57: Yes | I57: 2022 | J57: No | K57: 2024-02-24 | L57: Yes | M57: Yes | N57: Woodwalton Fen | O57: No | Q57: 209.06 | R57: 209.06 | S57: 82.67 | T57: 126.39 | U57: No | V57: No | W57: Yes | X57: No | Y57: No | Z57: No | AA57: 1 | AB57: Yes | AC57: No | AD57: No | AE57: No | AF57: No | AG57: No | AH57: Yes | AI57: No | AJ57: No | AK57: No | AL57: No | AM57: No | AN57: No | AO57: No | AP57: No | AQ57: Yes | AR57: Yes | AS57: 129.64 | AT57: 2 | AU57: 10 | AV57: 3 | AW57: 0 | AX57: 0 | AY57: 0 | AZ57: 0 | BA57: 120 | BB57: Yes | BC57: No | BD57: Yes | BE57: No | BF57: Yes | BG57: Yes | BH57: Yes | BI57: Yes | BJ57: No | BK57: No | BL57: No | BN57: Yes | BO57: Yes | BP57: Yes | BQ57: Yes | BR57: Yes | BS57: Yes | BT57: Yes | BU57: Yes | BV57: Yes | BW57: No | BX57: Yes | BY57: Yes | BZ57: Yes | CA57: Yes | CB57: Yes | CC57: 19 | CD57: 8 | CE57: 15 | CF57: 4 | CG57: 11 | CH57: 3 | CI57: No | CJ57: No | CK57: Yes | CL57: 5 | CM57: 2 | CN57: 0 | CO57: 0 | CP57: Yes | CQ57: Yes | CR57: Yes | CS57: Yes | CT57: Yes | CU57: Yes | CV57: Yes | CW57: Yes | CX57: No | CY57: Yes | CZ57: yes | DA57: Yes | DB57: No | DC57: Yes | DD57: Yes
C58: 55 | D58: Mildenhall | E58: Yes | F58: 2020 | G58: Yes | H58: Yes | I58: 2009 | J58: No | K58: 2022 | L58: Yes | M58: Yes | N58: Wilde Street | O58: No | Q58: 11.59 | R58: 0 | S58: 11.59 | T58: 0 | U58: No | V58: No | W58: No | X58: Yes | Y58: No | Z58: No | AA58: 0 | AB58: No | AC58: No | AD58: No | AE58: No | AF58: No | AG58: No | AH58: No | AI58: No | AJ58: No | AK58: No | AL58: No | AM58: No | AN58: No | AO58: No | AP58: Yes | AQ58: No | AR58: Yes | AS58: 54.1 | AT58: 1 | AU58: 4 | AV58: 0 | AW58: 0 | AX58: 0 | AY58: 0 | AZ58: 0 | BA58: 404 | BB58: Yes | BC58: No | BD58: Yes | BE58: No | BF58: Yes | BG58: No | BH58: No | BI58: No | BJ58: No | BK58: No | BL58: Yes | BN58: Yes | BO58: Yes | BP58: Yes | BQ58: Yes | BR58: Yes | BS58: Yes | BT58: Yes | BU58: Yes | BV58: No | BW58: No | BX58: Yes | BY58: Yes | BZ58: Yes | CA58: Yes | CB58: Yes | CC58: 13 | CD58: 4 | CE58: 9 | CF58: 4 | CG58: 6.7 | CH58: 1 | CI58: Yes | CJ58: Yes | CK58: Yes | CL58: 0 | CM58: 0 | CN58: 0 | CO58: 0 | CP58: Yes | CQ58: No | CR58: Yes | CS58: Yes | CT58: No | CU58: Yes | CV58: No | CW58: No | CX58: No | CY58: No | CZ58: yes | DA58: No | DB58: No | DC58: No | DD58: No
C59: 56 | D59: Needham & Laddus | E59: Yes | F59: 2019 | G59: Yes | H59: Yes | I59: 2022 | J59: No | K59: 2024-04-16 | L59: Yes | M59: No | O59: No | Q59: 0 | R59: 0 | S59: 0 | T59: 0 | U59: No | V59: No | W59: No | X59: Yes | Y59: No | Z59: No | AA59: 0 | AB59: No | AC59: No | AD59: No | AE59: No | AF59: No | AG59: No | AH59: No | AI59: No | AJ59: No | AK59: No | AL59: No | AM59: No | AN59: No | AO59: No | AP59: No | AQ59: Yes | AR59: Yes | AS59: 29.3 | AT59: 0 | AU59: 0 | AV59: 0 | AW59: 0 | AX59: 0 | AY59: 0 | AZ59: 0 | BA59: 0 | BB59: Yes | BC59: Yes | BD59: Yes | BE59: No | BF59: Yes | BG59: Yes | BH59: Yes | BI59: Yes | BJ59: No | BK59: No | BL59: No | BN59: Yes | BO59: Yes | BP59: Yes | BQ59: Yes | BR59: Yes | BS59: Yes | BT59: Yes | BU59: Yes | BV59: Yes | BW59: No | BX59: Yes | BY59: Yes | BZ59: Yes | CA59: Yes | CB59: Yes | CC59: 18 | CD59: 13 | CE59: 12 | CF59: 5 | CG59: 9 | CH59: 2 | CI59: Yes | CJ59: Yes | CK59: Yes | CL59: 0 | CM59: 0 | CN59: 0 | CO59: 0 | CP59: Yes | CQ59: No | CR59: No | CS59: Yes | CT59: No | CU59: Yes | CV59: No | CW59: No | CX59: No | CY59: No | CZ59: yes | DA59: No | DB59: No | DC59: No | DD59: No
C60: 57 | D60: Nightlayers | E60: Yes | F60: 2019 | G60: Yes | H60: Yes | I60: 2022 | J60: No | K60: 2024-05-21 | L60: Yes | M60: No | O60: No | Q60: 0 | R60: 0 | S60: 0 | T60: 0 | U60: No | V60: No | W60: No | X60: Yes | Y60: No | Z60: No | AA60: 0 | AB60: No | AC60: No | AD60: No | AE60: No | AF60: No | AG60: No | AH60: No | AI60: No | AJ60: No | AK60: No | AL60: No | AM60: No | AN60: No | AO60: No | AP60: No | AQ60: Yes | AR60: Yes | AS60: 10.8 | AT60: 1 | AU60: 1 | AV60: 1 | AW60: 0 | AX60: 0 | AY60: 0 | AZ60: 0 | BA60: 2.2 | BB60: Yes | BC60: Yes | BD60: Yes | BE60: No | BF60: Yes | BG60: Yes | BH60: Yes | BI60: Yes | BJ60: No | BK60: No | BL60: No | BN60: Yes | BO60: Yes | BP60: Yes | BQ60: Yes | BR60: Yes | BS60: Yes | BT60: Yes | BU60: Yes | BV60: Yes | BW60: No | BX60: Yes | BY60: Yes | BZ60: Yes | CA60: Yes | CB60: Yes | CC60: 18 | CD60: 10 | CE60: 8 | CF60: 10 | CG60: 6 | CH60: 9 | CI60: Yes | CJ60: Yes | CK60: Yes | CL60: 0 | CM60: 0 | CN60: 0 | CO60: 0 | CP60: Yes | CQ60: No | CR60: No | CS60: Yes | CT60: No | CU60: Yes | CV60: No | CW60: No | CX60: No | CY60: No | CZ60: yes | DA60: No | DB60: No | DC60: No | DD60: No
C61: 58 | D61: Nordelph | E61: Yes | F61: 2019 | G61: Yes | H61: Yes | I61: 2022 | J61: No | K61: 2024-03-13 | L61: Yes | M61: No | O61: No | Q61: 0 | R61: 0 | S61: 0 | T61: 0 | U61: No | V61: No | W61: No | X61: Yes | Y61: No | Z61: No | AA61: 0 | AB61: No | AC61: No | AD61: No | AE61: No | AF61: No | AG61: No | AH61: No | AI61: No | AJ61: No | AK61: No | AL61: No | AM61: No | AN61: No | AO61: No | AP61: No | AQ61: Yes | AR61: Yes | AS61: 7 | AT61: 1 | AU61: 1 | AV61: 0 | AW61: 0 | AX61: 0 | AY61: 0 | AZ61: 0 | BA61: 0.34 | BB61: Yes | BC61: Yes | BD61: Yes | BE61: No | BF61: Yes | BG61: Yes | BH61: Yes | BI61: Yes | BJ61: No | BK61: No | BL61: No | BN61: Yes | BO61: Yes | BP61: Yes | BQ61: Yes | BR61: Yes | BS61: Yes | BT61: Yes | BU61: Yes | BV61: Yes | BW61: No | BX61: Yes | BY61: Yes | BZ61: Yes | CA61: Yes | CB61: Yes | CC61: 7 | CD61: 1 | CE61: 8 | CF61: 0 | CG61: 6 | CH61: 0 | CI61: Yes | CJ61: Yes | CK61: Yes | CL61: 0 | CM61: 0 | CN61: 0 | CO61: 0 | CP61: Yes | CQ61: No | CR61: No | CS61: Yes | CT61: No | CU61: Yes | CV61: No | CW61: No | CX61: No | CY61: No | CZ61: yes | DA61: No | DB61: No | DC61: No | DD61: No
C62: 59 | D62: Norfolk Rivers | E62: Yes | F62: 2022 | G62: Yes | H62: Yes | I62: 2023 | J62: Yes | K62: 2025-01-22 | L62: Yes | M62: Yes | N62: Alderford Common SSSI WLMP Aslacton Parish Land | O62: Yes | Q62: 316.74 | R62: 8073.77 | S62: 501.9 | T62: 27.4 | U62: No | V62: No | W62: Yes | X62: Yes | Y62: Yes | Z62: No | AA62: 12 | AB62: Yes | AC62: Yes | AD62: No | AE62: No | AF62: No | AG62: No | AH62: Yes | AI62: No | AJ62: No | AK62: Yes | AL62: No | AM62: No | AN62: No | AO62: No | AP62: No | AQ62: Yes | AR62: Yes | AS62: 407 | AT62: 0 | AU62: 0 | AV62: 0 | AW62: 0 | AX62: 0 | AY62: 0 | AZ62: 0 | BA62: 0 | BB62: Yes | BC62: Yes | BD62: Yes | BE62: No | BF62: Yes | BG62: Yes | BH62: No | BI62: No | BJ62: Yes | BK62: No | BL62: No | BN62: Yes | BO62: Yes | BP62: Yes | BQ62: Yes | BR62: Yes | BS62: Yes | BT62: Yes | BU62: Yes | BV62: No | BW62: Yes | BX62: Yes | BY62: Yes | BZ62: Yes | CA62: Yes | CB62: Yes | CC62: 21 | CD62: 11 | CE62: 7 | CF62: 10 | CG62: 2.4 | CH62: 2.3 | CI62: Yes | CJ62: Yes | CK62: No | CL62: 3 | CM62: 0 | CN62: 0 | CO62: 0 | CP62: Yes | CQ62: No | CR62: Yes | CS62: Yes | CT62: No | CU62: Yes | CV62: No | CW62: No | CX62: Yes | CY62: Yes | CZ62: yes | DA62: No | DB62: Yes | DC62: No | DD62: No
C63: 60 | D63: North East Lindsey | E63: Yes | F63: 2018 | G63: Yes | H63: Yes | I63: 2021 | J63: Yes | K63: 2024-01-31 | L63: Yes | M63: No | O63: No | Q63: 0 | R63: 0 | S63: 0 | T63: 0 | U63: No | V63: No | W63: Yes | X63: No | Y63: Yes | Z63: No | AA63: 1 | AB63: Yes | AC63: No | AD63: No | AE63: No | AF63: No | AG63: No | AH63: Yes | AI63: No | AJ63: No | AK63: Yes | AL63: Yes | AM63: No | AN63: No | AO63: No | AP63: Yes | AQ63: No | AR63: Yes | AS63: 144 | AT63: 6 | AU63: 18 | AV63: 0 | AW63: 0 | AX63: 0 | AY63: 0 | AZ63: 0 | BA63: 16366.8 | BB63: Yes | BC63: No | BD63: Yes | BE63: No | BF63: Yes | BG63: Yes | BH63: Yes | BI63: Yes | BJ63: Yes | BK63: Yes | BL63: No | BM63: The boards website provides a lot of information regarding the boards workings, including policies up to date financial and operational information. At board meeting member development takes place via officer briefings and external speakers who provide information of particular issues. The Annual inspection tour also provides additional opportunity for members to drill into particular issues and provides addition information via briefings and a booklet. Some members also attended the ADA conference in London and access was given to ADA training webinars. A member training day was held on Tuesday 5th December 2023 covering (Q38-42) areas. | BN63: Yes | BO63: Yes | BP63: Yes | BQ63: Yes | BR63: Yes | BS63: Yes | BT63: Yes | BU63: Yes | BV63: Yes | BW63: No | BX63: Yes | BY63: Yes | BZ63: Yes | CA63: Yes | CB63: Yes | CC63: 21 | CD63: 11 | CE63: 8 | CF63: 10 | CG63: 5.5 | CH63: 3.75 | CI63: Yes | CJ63: Yes | CK63: Yes | CL63: 0 | CM63: 0 | CN63: 0 | CO63: 0 | CP63: Yes | CQ63: No | CR63: No | CS63: Yes | CT63: No | CU63: Yes | CV63: No | CW63: No | CX63: No | CY63: Yes | CZ63: yes | DA63: Yes | DB63: Yes | DC63: Yes | DD63: Yes
C64: 61 | D64: North Kent Marshes | E64: Yes | F64: 2018 | G64: No | H64: Yes | I64: 2021 | J64: No | K64: no data | L64: Yes | M64: Yes | N64: South Thames Estuary and Marshes | O64: No | Q64: 3029.1 | R64: 3029.1 | S64: 0 | T64: 0 | U64: No | V64: No | W64: No | X64: No | Y64: No | Z64: No | AA64: 1 | AB64: Yes | AC64: No | AD64: No | AE64: No | AF64: No | AG64: No | AH64: Yes | AI64: No | AJ64: No | AK64: No | AL64: No | AM64: No | AN64: No | AO64: No | AP64: No | AQ64: Yes | AR64: No | AS64: 30 | AT64: 0 | AU64: 0 | AV64: 0 | AW64: 0 | AX64: 0 | AY64: 0 | AZ64: 0 | BA64: 0 | BB64: No | BC64: No | BD64: No | BE64: No | BF64: No | BG64: No | BH64: No | BI64: No | BJ64: No | BK64: No | BL64: No | BN64: Yes | BO64: Yes | BP64: Yes | BQ64: Yes | BR64: Yes | BS64: Yes | BT64: Yes | BU64: Yes | BV64: Yes | BW64: No | BX64: No | BY64: Yes | BZ64: Yes | CA64: Yes | CB64: Yes | CC64: 11 | CD64: 6 | CE64: 5 | CF64: 6 | CG64: 5 | CH64: 4 | CI64: Yes | CJ64: Yes | CK64: Yes | CL64: 0 | CM64: 0 | CN64: 0 | CO64: 0 | CP64: Yes | CQ64: Yes | CR64: No | CS64: Yes | CT64: Yes | CU64: Yes | CV64: No | CW64: Yes | CX64: No | CY64: yes | CZ64: No | DA64: Yes | DB64: No | DC64: Yes | DD64: Yes
C65: 62 | D65: North Level District IDB | E65: Yes | F65: 2024 | G65: Yes | H65: Yes | I65: 2023 | J65: No | K65: 2023-02-01 | L65: Yes | M65: No | O65: Yes | P65: Nene Washlands | Q65: 0 | R65: 1509 | S65: 0 | T65: 0 | U65: No | V65: No | W65: No | X65: Yes | Y65: Yes | Z65: No | AA65: 1 | AB65: Yes | AC65: No | AD65: No | AE65: No | AF65: No | AG65: No | AH65: Yes | AI65: No | AJ65: No | AK65: No | AL65: No | AM65: No | AN65: No | AO65: No | AP65: Yes | AQ65: Yes | AR65: Yes | AS65: 613 | AT65: 12 | AU65: 24 | AV65: 10 | AW65: 0 | AX65: 1 | AY65: 0 | AZ65: 0 | BA65: 50.8 | BB65: Yes | BC65: Yes | BD65: Yes | BE65: No | BF65: Yes | BG65: No | BH65: Yes | BI65: No | BJ65: No | BK65: No | BL65: Yes | BM65: ADA delivery of functions. | BN65: Yes | BO65: Yes | BP65: Yes | BQ65: Yes | BR65: Yes | BS65: Yes | BT65: Yes | BU65: Yes | BV65: Yes | BW65: No | BX65: Yes | BY65: Yes | BZ65: Yes | CA65: Yes | CB65: Yes | CC65: 29 | CD65: 15 | CE65: 14 | CF65: 15 | CG65: 10 | CH65: 11 | CI65: No | CJ65: No | CK65: Yes | CL65: 2 | CM65: 0 | CN65: 0 | CO65: 0 | CP65: Yes | CQ65: No | CR65: No | CS65: No | CT65: No | CU65: Yes | CV65: No | CW65: No | CX65: No | CY65: Yes | CZ65: No | DA65: Yes | DB65: No | DC65: Yes | DD65: Yes
C66: 63 | D66: North Somerset Levels IDB* | E66: Yes | F66: 2023 | G66: Yes | H66: Yes | I66: 2011 | J66: No | K66: 2024-01-31 | L66: Yes | M66: Yes | N66: Oldbridge River, North Somerset | O66: Yes | P66: Giordano Valley | Q66: 366 | R66: 143 | S66: 152 | T66: 29 | U66: Yes | V66: No | W66: Yes | X66: Yes | Y66: Yes | Z66: No | AA66: 0 | AB66: No | AC66: No | AD66: No | AE66: No | AF66: No | AG66: No | AH66: No | AI66: No | AJ66: No | AK66: No | AL66: No | AM66: No | AN66: No | AO66: No | AP66: No | AQ66: Yes | AR66: Yes | AS66: 189.7 | AT66: 1 | AU66: 1 | AV66: 0 | AW66: 0 | AX66: 0 | AY66: 0 | AZ66: 0 | BA66: 0.022 | BB66: Yes | BC66: Yes | BD66: Yes | BE66: No | BF66: Yes | BG66: Yes | BH66: Yes | BI66: Yes | BJ66: Yes | BK66: No | BL66: No | BN66: Yes | BO66: Yes | BP66: Yes | BQ66: Yes | BR66: Yes | BS66: Yes | BT66: Yes | BU66: Yes | BV66: Yes | BW66: No | BX66: Yes | BY66: Yes | BZ66: Yes | CA66: Yes | CB66: Yes | CC66: 29 | CD66: 15 | CE66: 14 | CF66: 14 | CG66: 7 | CH66: 7.75 | CI66: Yes | CJ66: Yes | CK66: Yes | CL66: 1 | CM66: 0 | CN66: 0 | CO66: 0 | CP66: No | CQ66: No | CR66: Yes | CS66: Yes | CT66: No | CU66: Yes | CV66: No | CW66: Yes | CX66: No | CY66: No | CZ66: No | DA66: Yes | DB66: No | DC66: Yes | DD66: No
C67: 64 | D67: Northwold | E67: Yes | F67: 2018 | G67: Yes | H67: Yes | I67: 2010 | J67: No | K67: 2010 | L67: Yes | M67: No | O67: No | Q67: 0 | R67: 0 | S67: 0 | T67: 0 | U67: No | V67: No | W67: No | X67: Yes | Y67: No | Z67: No | AA67: 0 | AB67: No | AC67: No | AD67: No | AE67: No | AF67: No | AG67: No | AH67: No | AI67: No | AJ67: No | AK67: No | AL67: No | AM67: No | AN67: No | AO67: No | AP67: Yes | AQ67: No | AR67: Yes | AS67: 3.2 | AT67: 0 | AU67: 0 | AV67: 0 | AW67: 0 | AX67: 0 | AY67: 0 | AZ67: 0 | BA67: 0 | BB67: Yes | BC67: No | BD67: Yes | BE67: No | BF67: Yes | BG67: No | BH67: No | BI67: No | BJ67: No | BK67: No | BL67: No | BN67: Yes | BO67: Yes | BP67: Yes | BQ67: No | BR67: Yes | BS67: Yes | BT67: Yes | BU67: Yes | BV67: No | BW67: No | BX67: Yes | BY67: Yes | BZ67: Yes | CA67: Yes | CB67: Yes | CC67: 5 | CD67: 0 | CE67: 5 | CF67: 0 | CG67: 3.5 | CH67: 0 | CI67: Yes | CJ67: Yes | CK67: Yes | CL67: 0 | CM67: 0 | CN67: 0 | CO67: 0 | CP67: Yes | CQ67: No | CR67: Yes | CS67: Yes | CT67: No | CU67: Yes | CV67: No | CW67: No | CX67: No | CY67: No | CZ67: No | DA67: Yes | DB67: No | DC67: No | DD67: No
C68: 65 | D68: Old West | E68: Yes | F68: 2020 | G68: Yes | H68: Yes | I68: 2009 | J68: No | K68: 2022 | L68: Yes | M68: No | O68: No | Q68: 0 | R68: 0 | S68: 0 | T68: 0 | U68: No | V68: No | W68: No | X68: Yes | Y68: No | Z68: No | AA68: 0 | AB68: No | AC68: No | AD68: No | AE68: No | AF68: No | AG68: No | AH68: No | AI68: No | AJ68: No | AK68: No | AL68: No | AM68: No | AN68: No | AO68: No | AP68: Yes | AQ68: No | AR68: Yes | AS68: 87 | AT68: 3 | AU68: 3 | AV68: 4 | AW68: 0 | AX68: 0 | AY68: 0 | AZ68: 0 | BA68: 0.005274 | BB68: Yes | BC68: No | BD68: Yes | BE68: Yes | BF68: Yes | BG68: No | BH68: No | BI68: No | BJ68: No | BK68: No | BL68: Yes | BM68: Board Members are invited to tour the District with the Engineer. | BN68: Yes | BO68: Yes | BP68: Yes | BQ68: Yes | BR68: Yes | BS68: Yes | BT68: Yes | BU68: Yes | BV68: No | BW68: No | BX68: Yes | BY68: Yes | BZ68: Yes | CA68: Yes | CB68: Yes | CC68: 14 | CD68: 4 | CE68: 11 | CF68: 3 | CG68: 8.6 | CH68: 0.3 | CI68: Yes | CJ68: Yes | CK68: Yes | CL68: 0 | CM68: 0 | CN68: 0 | CO68: 0 | CP68: Yes | CQ68: No | CR68: Yes | CS68: Yes | CT68: No | CU68: Yes | CV68: No | CW68: No | CX68: No | CY68: No | CZ68: Yes | DA68: No | DB68: No | DC68: No | DD68: No
C69: 66 | D69: Ouse and Derwent IDB | E69: Yes | F69: 2024 | G69: Yes | H69: Yes | I69: 2014 | J69: No | K69: 2024-01-23 | L69: Yes | M69: No | O69: No | Q69: 0 | R69: 0 | S69: 0 | T69: 0 | U69: Yes | V69: No | W69: No | X69: Yes | Y69: Yes | Z69: Yes | AA69: 2 | AB69: Yes | AC69: No | AD69: No | AE69: No | AF69: No | AG69: No | AH69: Yes | AI69: Yes | AJ69: Yes | AK69: Yes | AL69: Yes | AM69: Yes | AN69: No | AO69: No | AP69: Yes | AQ69: Yes | AR69: Yes | AS69: 264 | AT69: 14 | AU69: 32 | AV69: 0 | AW69: 0 | AX69: 0 | AY69: 7 | AZ69: 12.28 | BA69: 16.11 | BB69: Yes | BC69: No | BD69: Yes | BE69: No | BF69: Yes | BG69: No | BH69: No | BI69: No | BJ69: No | BK69: No | BL69: Yes | BM69: New Members are sent a welcome pack and a leaflet on the function and purpose of Drainage Boards. This along with a link to the Boards website which has a link to a downloadable PDF version of the Boards district map. Members are invited and attend ADA Meetings of both the Northern Branch and National Meetings and are informed and updated about IDB function and matters at Board Meetings. Members can ask the Clerk to organise a site inspection as and when required for particular items of interest in the district along with any specific training as required | BN69: Yes | BO69: Yes | BP69: No | BQ69: Yes | BR69: Yes | BS69: Yes | BT69: Yes | BU69: Yes | BV69: Yes | BW69: Yes | BX69: Yes | BY69: Yes | BZ69: Yes | CA69: Yes | CB69: Yes | CC69: 45 | CD69: 23 | CE69: 10 | CF69: 15 | CG69: 6 | CH69: 6.88 | CI69: Yes | CJ69: Yes | CK69: Yes | CL69: 0 | CM69: 0 | CN69: 0 | CO69: 0 | CP69: Yes | CQ69: No | CR69: No | CS69: Yes | CT69: Yes | CU69: Yes | CV69: No | CW69: No | CX69: No | CY69: No | CZ69: No | DA69: Yes | DB69: Yes | DC69: yes | DD69: No
C70: 67 | D70: Ouse and Humber | E70: Yes | F70: 2022 | G70: Yes | H70: Yes | I70: 2023 | J70: No | K70: 2025-02-10 | L70: Yes | M70: No | O70: No | Q70: 0 | R70: 0 | S70: 0 | T70: 0 | U70: Yes | V70: No | W70: No | X70: Yes | Y70: No | Z70: No | AA70: 3 | AB70: Yes | AC70: No | AD70: No | AE70: No | AF70: No | AG70: No | AH70: Yes | AI70: Yes | AJ70: Yes | AK70: Yes | AL70: Yes | AM70: Yes | AN70: No | AO70: No | AP70: No | AQ70: Yes | AR70: Yes | AS70: 422 | AT70: 19 | AU70: 41 | AV70: 0 | AW70: 0 | AX70: 3 | AY70: 0 | AZ70: 0 | BA70: 21 | BB70: Yes | BC70: No | BD70: Yes | BE70: No | BF70: Yes | BG70: Yes | BH70: Yes | BI70: No | BJ70: No | BK70: No | BL70: No | BM70: Board Induction,Refresher training | BN70: Yes | BO70: Yes | BP70: Yes | BQ70: Yes | BR70: Yes | BS70: Yes | BT70: Yes | BU70: Yes | BV70: Yes | BW70: No | BX70: Yes | BY70: Yes | BZ70: Yes | CA70: Yes | CB70: Yes | CC70: 21 | CD70: 12 | CE70: 11 | CF70: 12 | CG70: 6.33 | CH70: 7.33 | CI70: Yes | CJ70: Yes | CK70: Yes | CL70: 1 | CM70: 0 | CN70: 0 | CO70: 0 | CP70: Yes | CQ70: Yes | CR70: Yes | CS70: Yes | CT70: No | CU70: Yes | CV70: No | CW70: No | CX70: No | CY70: yes | CZ70: No | DA70: Yes | DB70: Yes | DC70: Yes | DD70: No
C71: 68 | D71: Over and Willingham | E71: Yes | F71: 2019 | G71: Yes | H71: Yes | I71: 2022 | J71: No | K71: 2024-04-30 | L71: Yes | M71: No | O71: No | Q71: 0 | R71: 0 | S71: 0 | T71: 0 | U71: No | V71: No | W71: No | X71: Yes | Y71: No | Z71: No | AA71: 0 | AB71: No | AC71: No | AD71: No | AE71: No | AF71: No | AG71: No | AH71: No | AI71: No | AJ71: No | AK71: No | AL71: No | AM71: No | AN71: No | AO71: No | AP71: No | AQ71: Yes | AR71: Yes | AS71: 20.3 | AT71: 1 | AU71: 1 | AV71: 0 | AW71: 0 | AX71: 0 | AY71: 0 | AZ71: 0 | BA71: 0.85 | BB71: Yes | BC71: Yes | BD71: Yes | BE71: No | BF71: Yes | BG71: Yes | BH71: Yes | BI71: Yes | BJ71: No | BK71: No | BL71: No | BN71: Yes | BO71: Yes | BP71: Yes | BQ71: Yes | BR71: Yes | BS71: Yes | BT71: Yes | BU71: Yes | BV71: Yes | BW71: No | BX71: Yes | BY71: Yes | BZ71: Yes | CA71: Yes | CB71: Yes | CC71: 10 | CD71: 11 | CE71: 9 | CF71: 1 | CG71: 7 | CH71: 1 | CI71: Yes | CJ71: Yes | CK71: Yes | CL71: 0 | CM71: 0 | CN71: 0 | CO71: 0 | CP71: Yes | CQ71: No | CR71: No | CS71: Yes | CT71: No | CU71: Yes | CV71: No | CW71: No | CX71: No | CY71: No | CZ71: Yes | DA71: No | DB71: No | DC71: No | DD71: No
C72: 69 | D72: Padnal and Waterden | E72: Yes | F72: 2020 | G72: Yes | H72: Yes | I72: 2009 | J72: No | K72: 2022 | L72: Yes | M72: No | O72: No | Q72: 0 | R72: 0 | S72: 0 | T72: 0 | U72: No | V72: No | W72: No | X72: Yes | Y72: No | Z72: No | AA72: 0 | AB72: No | AC72: No | AD72: No | AE72: No | AF72: No | AG72: No | AH72: No | AI72: No | AJ72: No | AK72: No | AL72: No | AM72: No | AN72: No | AO72: No | AP72: Yes | AQ72: No | AR72: Yes | AS72: 25.7 | AT72: 5 | AU72: 5 | AV72: 0 | AW72: 0 | AX72: 0 | AY72: 0 | AZ72: 0 | BA72: 1.53 | BB72: Yes | BC72: No | BD72: Yes | BE72: Yes | BF72: Yes | BG72: No | BH72: No | BI72: No | BJ72: No | BK72: No | BL72: Yes | BM72: Board Members are invited to tour the District with the Engineer. | BN72: Yes | BO72: Yes | BP72: Yes | BQ72: Yes | BR72: Yes | BS72: Yes | BT72: Yes | BU72: Yes | BV72: No | BW72: No | BX72: Yes | BY72: Yes | BZ72: Yes | CA72: Yes | CB72: Yes | CC72: 14 | CD72: 7 | CE72: 11 | CF72: 3 | CG72: 6 | CH72: 1.3 | CI72: Yes | CJ72: Yes | CK72: Yes | CL72: 0 | CM72: 0 | CN72: 0 | CO72: 0 | CP72: Yes | CQ72: No | CR72: Yes | CS72: Yes | CT72: No | CU72: Yes | CV72: No | CW72: No | CX72: No | CY72: No | CZ72: Yes | DA72: No | DB72: No | DC72: No | DD72: No
C73: 70 | D73: Parrett | E73: Yes | F73: 2023 | G73: Yes | H73: Yes | I73: 2010 | J73: No | K73: 2024-01-30 | L73: Yes | M73: Yes | N73: bridgwater and pawlett, Currymoor, King Sedgemoor and Allermoor, Northmoor and Saltmoor, OMW and Chedzoy, Steart, Westmoor, West Sedgemoor, wetmoor, | O73: No | Q73: 4897 | R73: 0 | S73: 4897 | T73: 0 | U73: Yes | V73: No | W73: Yes | X73: Yes | Y73: Yes | Z73: No | AA73: 1 | AB73: Yes | AC73: No | AD73: No | AE73: No | AF73: No | AG73: No | AH73: No | AI73: No | AJ73: No | AK73: No | AL73: No | AM73: No | AN73: Yes | AO73: No | AP73: No | AQ73: Yes | AR73: Yes | AS73: 568 | AT73: 1 | AU73: 2 | AV73: 0 | AW73: 0 | AX73: 0 | AY73: 0 | AZ73: 0 | BA73: 0.23 | BB73: Yes | BC73: Yes | BD73: Yes | BE73: No | BF73: Yes | BG73: Yes | BH73: Yes | BI73: Yes | BJ73: Yes | BK73: No | BL73: No | BN73: Yes | BO73: Yes | BP73: Yes | BQ73: Yes | BR73: Yes | BS73: Yes | BT73: Yes | BU73: Yes | BV73: Yes | BW73: No | BX73: Yes | BY73: Yes | BZ73: Yes | CA73: Yes | CB73: Yes | CC73: 25 | CD73: 13 | CE73: 12 | CF73: 13 | CG73: 9 | CH73: 7.25 | CI73: Yes | CJ73: Yes | CK73: Yes | CL73: 0 | CM73: 0 | CN73: 0 | CO73: 0 | CP73: No | CQ73: No | CR73: Yes | CS73: Yes | CT73: Yes | CU73: Yes | CV73: No | CW73: yes | CX73: No | CY73: No | CZ73: Yes | DA73: Yes | DB73: No | DC73: Yes | DD73: No
C74: 71 | D74: Pevensey and Cuckmere | E74: Yes | F74: 2022 | G74: Yes | H74: Yes | I74: 2023 | J74: Yes | K74: 2025-01-21 | L74: Yes | M74: Yes | N74: Pevensey Levels | O74: No | Q74: 3603.15 | R74: 0 | S74: 3603.15 | T74: 0 | U74: No | V74: No | W74: Yes | X74: Yes | Y74: Yes | Z74: Yes | AA74: 1 | AB74: Yes | AC74: No | AD74: No | AE74: No | AF74: No | AG74: No | AH74: No | AI74: No | AJ74: Yes | AK74: No | AL74: No | AM74: No | AN74: No | AO74: No | AP74: No | AQ74: Yes | AR74: Yes | AS74: 103 | AT74: 6 | AU74: 6 | AV74: 0 | AW74: 0 | AX74: 0 | AY74: 0 | AZ74: 0 | BA74: 5.83 | BB74: Yes | BC74: No | BD74: Yes | BE74: No | BF74: Yes | BG74: Yes | BH74: No | BI74: No | BJ74: Yes | BK74: No | BL74: No | BN74: Yes | BO74: Yes | BP74: Yes | BQ74: Yes | BR74: Yes | BS74: Yes | BT74: Yes | BU74: Yes | BV74: No | BW74: Yes | BX74: Yes | BY74: Yes | BZ74: Yes | CA74: Yes | CB74: Yes | CC74: 17 | CD74: 9 | CE74: 8 | CF74: 9 | CG74: 1.6 | CH74: 3.2 | CI74: Yes | CJ74: Yes | CK74: No | CL74: 1 | CM74: 0 | CN74: 0 | CO74: 0 | CP74: Yes | CQ74: No | CR74: Yes | CS74: Yes | CT74: No | CU74: Yes | CV74: No | CW74: No | CX74: Yes | CY74: Yes | CZ74: Yes | DA74: Yes | DB74: Yes | DC74: No | DD74: No
C75: 72 | D75: Ramsey | E75: No | F75: 2023 | G75: No | H75: No | I75: 2021 | J75: No | K75: 2023-06-20 | L75: No | M75: No | O75: No | U75: No | V75: No | W75: No | X75: Yes | Y75: No | Z75: Yes | AA75: 0 | AB75: No | AC75: No | AD75: No | AE75: No | AF75: No | AG75: No | AH75: No | AI75: No | AJ75: No | AK75: No | AL75: No | AM75: No | AN75: No | AO75: No | AP75: Yes | AQ75: Yes | AR75: Yes | AS75: 6.16 | AT75: 2 | AU75: 2 | AV75: 0 | AW75: 0 | AX75: 0 | AY75: 0 | AZ75: 0 | BA75: 0.725 | BB75: Yes | BC75: Yes | BD75: Yes | BE75: No | BF75: No | BG75: No | BH75: No | BI75: Yes | BJ75: No | BK75: No | BL75: No | BN75: Yes | BO75: Yes | BP75: Yes | BQ75: No | BR75: Yes | BS75: Yes | BT75: Yes | BU75: Yes | BV75: Yes | BW75: No | BX75: No | BY75: Yes | BZ75: Yes | CA75: Yes | CB75: No | CC75: 12 | CD75: 3 | CE75: 7 | CF75: 3 | CG75: 6 | CH75: 2 | CI75: Yes | CJ75: Yes | CK75: Yes | CL75: 0 | CM75: 0 | CN75: 0 | CO75: 0 | CP75: Yes | CQ75: No | CR75: No | CS75: Yes | CT75: No | CU75: No | CV75: No | CW75: No | CX75: No | CY75: No | CZ75: No | DA75: No | DB75: No | DC75: No | DD75: No
C76: 73 | D76: Ramsey 1st | E76: Yes | F76: 2019 | G76: Yes | H76: Yes | I76: 2022 | J76: No | K76: 2024-06-20 | L76: Yes | M76: No | O76: No | Q76: 0 | R76: 0 | S76: 0 | T76: 0 | U76: No | V76: No | W76: No | X76: Yes | Y76: No | Z76: No | AA76: 0 | AB76: No | AC76: No | AD76: No | AE76: No | AF76: No | AG76: No | AH76: No | AI76: No | AJ76: No | AK76: No | AL76: No | AM76: No | AN76: No | AO76: No | AP76: No | AQ76: Yes | AR76: Yes | AS76: 24.6 | AT76: 1 | AU76: 2 | AV76: 1 | AW76: 0 | AX76: 0 | AY76: 0 | AZ76: 0 | BA76: 3.4 | BB76: Yes | BC76: Yes | BD76: Yes | BE76: No | BF76: Yes | BG76: Yes | BH76: Yes | BI76: Yes | BJ76: No | BK76: No | BL76: No | BN76: Yes | BO76: Yes | BP76: Yes | BQ76: Yes | BR76: Yes | BS76: Yes | BT76: Yes | BU76: Yes | BV76: Yes | BW76: No | BX76: Yes | BY76: Yes | BZ76: Yes | CA76: Yes | CB76: Yes | CC76: 13 | CD76: 1 | CE76: 12 | CF76: 1 | CG76: 7 | CH76: 1 | CI76: Yes | CJ76: Yes | CK76: Yes | CL76: 0 | CM76: 0 | CN76: 0 | CO76: 0 | CP76: Yes | CQ76: No | CR76: No | CS76: Yes | CT76: No | CU76: Yes | CV76: No | CW76: No | CX76: No | CY76: No | CZ76: Yes | DA76: No | DB76: No | DC76: No | DD76: No
C77: 74 | D77: Ramsey 4th (Middlemoor) | E77: Yes | F77: 2019 | G77: Yes | H77: Yes | I77: 2022 | J77: No | K77: 2024-06-13 | L77: Yes | M77: No | O77: No | Q77: 0 | R77: 0 | S77: 0 | T77: 0 | U77: No | V77: No | W77: No | X77: Yes | Y77: No | Z77: No | AA77: 0 | AB77: No | AC77: No | AD77: No | AE77: No | AF77: No | AG77: No | AH77: No | AI77: No | AJ77: No | AK77: No | AL77: No | AM77: No | AN77: No | AO77: No | AP77: No | AQ77: Yes | AR77: Yes | AS77: 23.5 | AT77: 2 | AU77: 4 | AV77: 0 | AW77: 0 | AX77: 0 | AY77: 0 | AZ77: 0 | BA77: 1.73 | BB77: Yes | BC77: Yes | BD77: Yes | BE77: No | BF77: Yes | BG77: Yes | BH77: Yes | BI77: Yes | BJ77: No | BK77: No | BL77: No | BN77: Yes | BO77: Yes | BP77: Yes | BQ77: Yes | BR77: Yes | BS77: Yes | BT77: Yes | BU77: Yes | BV77: Yes | BW77: No | BX77: Yes | BY77: Yes | BZ77: Yes | CA77: Yes | CB77: Yes | CC77: 11 | CD77: 9 | CE77: 12 | CF77: 1 | CG77: 7 | CH77: 1 | CI77: Yes | CJ77: Yes | CK77: Yes | CL77: 0 | CM77: 0 | CN77: 0 | CO77: 0 | CP77: Yes | CQ77: No | CR77: No | CS77: Yes | CT77: No | CU77: Yes | CV77: No | CW77: No | CX77: No | CY77: No | CZ77: Yes | DA77: No | DB77: No | DC77: No | DD77: No
C78: 75 | D78: Ramsey Upwood & Gt. Raveley | E78: Yes | F78: 2019 | G78: Yes | H78: Yes | I78: 2022 | J78: No | K78: 2024-05-08 | L78: Yes | M78: No | O78: No | Q78: 0 | R78: 0 | S78: 0 | T78: 0 | U78: No | V78: No | W78: No | X78: Yes | Y78: No | Z78: No | AA78: 0 | AB78: No | AC78: No | AD78: No | AE78: No | AF78: No | AG78: No | AH78: No | AI78: No | AJ78: No | AK78: No | AL78: No | AM78: No | AN78: No | AO78: No | AP78: No | AQ78: Yes | AR78: Yes | AS78: 27.3 | AT78: 3 | AU78: 4 | AV78: 0 | AW78: 0 | AX78: 0 | AY78: 0 | AZ78: 0 | BA78: 2.233 | BB78: Yes | BC78: Yes | BD78: Yes | BE78: No | BF78: Yes | BG78: Yes | BH78: Yes | BI78: Yes | BJ78: No | BK78: No | BL78: No | BN78: Yes | BO78: Yes | BP78: Yes | BQ78: Yes | BR78: Yes | BS78: Yes | BT78: Yes | BU78: Yes | BV78: Yes | BW78: No | BX78: Yes | BY78: Yes | BZ78: Yes | CA78: Yes | CB78: Yes | CC78: 14 | CD78: 12 | CE78: 12 | CF78: 2 | CG78: 9 | CH78: 1 | CI78: Yes | CJ78: Yes | CK78: Yes | CL78: 1 | CM78: 1 | CN78: 0 | CO78: 0 | CP78: Yes | CQ78: No | CR78: No | CS78: Yes | CT78: No | CU78: Yes | CV78: No | CW78: No | CX78: No | CY78: No | CZ78: Yes | DA78: No | DB78: No | DC78: No | DD78: No
C79: 76 | D79: Ransonmoor | E79: Yes | F79: 2019 | G79: Yes | H79: Yes | I79: 2022 | J79: No | K79: 2024-05-08 | L79: Yes | M79: No | O79: No | Q79: 0 | R79: 0 | S79: 0 | T79: 0 | U79: No | V79: No | W79: No | X79: Yes | Y79: No | Z79: No | AA79: 0 | AB79: No | AC79: No | AD79: No | AE79: No | AF79: No | AG79: No | AH79: No | AI79: No | AJ79: No | AK79: No | AL79: No | AM79: No | AN79: No | AO79: No | AP79: No | AQ79: Yes | AR79: Yes | AS79: 22 | AT79: 1 | AU79: 1 | AV79: 1 | AW79: 0 | AX79: 0 | AY79: 0 | AZ79: 0 | BA79: 2.3 | BB79: Yes | BC79: Yes | BD79: Yes | BE79: No | BF79: Yes | BG79: Yes | BH79: Yes | BI79: Yes | BJ79: No | BK79: No | BL79: No | BN79: Yes | BO79: Yes | BP79: Yes | BQ79: Yes | BR79: Yes | BS79: Yes | BT79: Yes | BU79: Yes | BV79: Yes | BW79: No | BX79: Yes | BY79: Yes | BZ79: Yes | CA79: Yes | CB79: Yes | CC79: 11 | CD79: 3 | CE79: 9 | CF79: 2 | CG79: 5 | CH79: 0 | CI79: No | CJ79: No | CK79: Yes | CL79: 0 | CM79: 0 | CN79: 0 | CO79: 0 | CP79: Yes | CQ79: No | CR79: No | CS79: Yes | CT79: No | CU79: Yes | CV79: No | CW79: No | CX79: No | CY79: No | CZ79: Yes | DA79: No | DB79: No | DC79: No | DD79: No
C80: 77 | D80: Rawcliffe DB | E80: Yes | F80: 2020 | G80: Yes | H80: Yes | I80: 2023 | J80: No | K80: 2025-01-28 | L80: Yes | M80: No | O80: no | Q80: 0 | R80: 0 | S80: 0 | T80: 0 | U80: No | V80: No | W80: No | X80: Yes | Y80: No | Z80: No | AA80: 0 | AB80: No | AC80: No | AD80: No | AE80: No | AF80: No | AG80: No | AH80: No | AI80: No | AJ80: No | AK80: No | AL80: No | AM80: No | AN80: No | AO80: No | AP80: No | AQ80: Yes | AR80: Yes | AS80: 26 | AT80: 7 | AU80: 12 | AV80: 1 | AW80: 0 | AX80: 0 | AY80: 0 | AZ80: 0 | BA80: 10 | BB80: Yes | BC80: No | BD80: Yes | BE80: No | BF80: Yes | BG80: Yes | BH80: Yes | BI80: No | BJ80: No | BK80: No | BL80: No | BN80: Yes | BO80: Yes | BP80: Yes | BQ80: Yes | BR80: Yes | BS80: Yes | BT80: Yes | BU80: Yes | BV80: Yes | BW80: No | BX80: Yes | BY80: Yes | BZ80: Yes | CA80: Yes | CB80: Yes | CC80: 12 | CD80: 8 | CE80: 6 | CF80: 6 | CG80: 3 | CH80: 3 | CI80: Yes | CJ80: Yes | CK80: Yes | CL80: 0 | CM80: 0 | CN80: 0 | CO80: 0 | CP80: Yes | CQ80: No | CR80: Yes | CS80: Yes | CT80: No | CU80: Yes | CV80: No | CW80: No | CX80: No | CY80: Yes | CZ80: No | DA80: Yes | DB80: Yes | DC80: Yes | DD80: No
C81: 78 | D81: Rea IDB | E81: Yes | F81: 2025 | G81: Yes | H81: No | I81: 2022 | J81: No | K81: 2025-01-23 | L81: No | M81: No | O81: No | Q81: 0 | R81: 0 | S81: 0 | T81: 0 | U81: No | V81: No | W81: No | X81: Yes | Y81: Yes | Z81: No | AA81: 0 | AB81: No | AC81: No | AD81: No | AE81: No | AF81: No | AG81: No | AH81: No | AI81: No | AJ81: No | AK81: No | AL81: No | AM81: No | AN81: No | AO81: No | AP81: Yes | AQ81: No | AR81: Yes | AS81: 32 | AT81: 0 | AU81: 0 | AV81: 0 | AW81: 0 | AX81: 0 | AY81: 0 | AZ81: 0 | BA81: 0 | BB81: Yes | BC81: No | BD81: Yes | BE81: No | BF81: No | BG81: No | BH81: No | BI81: No | BJ81: No | BK81: No | BL81: No | BN81: Yes | BO81: Yes | BP81: Yes | BQ81: Yes | BR81: Yes | BS81: Yes | BT81: Yes | BU81: Yes | BV81: No | BW81: No | BX81: Yes | BY81: Yes | BZ81: Yes | CA81: Yes | CB81: Yes | CC81: 13 | CD81: 3 | CE81: 11 | CF81: 2 | CG81: 6.5 | CH81: 0.5 | CI81: Yes | CJ81: Yes | CK81: Yes | CL81: 0 | CM81: 0 | CN81: 0 | CO81: 0 | CP81: Yes | CQ81: No | CR81: No | CS81: No | CT81: No | CU81: Yes | CV81: No | CW81: No | CX81: No | CY81: No | CZ81: No | DA81: No | DB81: Yes | DC81: Yes | DD81: No
C82: 79 | D82: Reedness and Swinefleet DB | E82: Yes | F82: 2020 | G82: Yes | H82: Yes | I82: 2023 | J82: No | K82: 2025-01-27 | L82: Yes | M82: No | O82: no | Q82: 0 | R82: 0 | S82: 0 | T82: 0 | U82: No | V82: No | W82: No | X82: Yes | Y82: No | Z82: No | AA82: 0 | AB82: No | AC82: No | AD82: No | AE82: No | AF82: No | AG82: No | AH82: No | AI82: No | AJ82: No | AK82: No | AL82: No | AM82: No | AN82: No | AO82: No | AP82: No | AQ82: Yes | AR82: Yes | AS82: 65 | AT82: 2 | AU82: 3 | AV82: 0 | AW82: 0 | AX82: 0 | AY82: 0 | AZ82: 0 | BA82: 1.8 | BB82: Yes | BC82: No | BD82: Yes | BE82: No | BF82: Yes | BG82: Yes | BH82: Yes | BI82: No | BJ82: No | BK82: No | BL82: No | BN82: Yes | BO82: Yes | BP82: Yes | BQ82: Yes | BR82: Yes | BS82: Yes | BT82: Yes | BU82: Yes | BV82: Yes | BW82: No | BX82: Yes | BY82: Yes | BZ82: Yes | CA82: Yes | CB82: Yes | CC82: 8 | CD82: 3 | CE82: 6 | CF82: 1 | CG82: 5.5 | CH82: 0 | CI82: Yes | CJ82: Yes | CK82: Yes | CL82: 0 | CM82: 0 | CN82: 0 | CO82: 0 | CP82: Yes | CQ82: No | CR82: Yes | CS82: Yes | CT82: No | CU82: Yes | CV82: No | CW82: No | CX82: No | CY82: Yes | CZ82: No | DA82: Yes | DB82: Yes | DC82: Yes | DD82: No
C83: 80 | D83: River Lugg IDB | E83: Yes | F83: 2023 | G83: Yes | H83: Yes | I83: 2020 | J83: Yes | K83: 2025-01-01 | L83: Yes | M83: No | O83: no | Q83: 0 | R83: 0 | S83: 0 | T83: 0 | U83: No | V83: No | W83: No | X83: Yes | Y83: No | Z83: No | AA83: 0 | AB83: No | AC83: No | AD83: No | AE83: No | AF83: No | AG83: No | AH83: No | AI83: No | AJ83: No | AK83: No | AL83: No | AM83: No | AN83: No | AO83: No | AP83: Yes | AQ83: Yes | AR83: Yes | AS83: 219 | AT83: 0 | AU83: 0 | AV83: 0 | AW83: 0 | AX83: 0 | AY83: 0 | AZ83: 0 | BA83: 0 | BB83: Yes | BC83: No | BD83: Yes | BE83: No | BF83: Yes | BG83: No | BH83: No | BI83: No | BJ83: No | BK83: No | BL83: No | BN83: Yes | BO83: Yes | BP83: Yes | BQ83: Yes | BR83: Yes | BS83: Yes | BT83: Yes | BU83: Yes | BV83: No | BW83: No | BX83: Yes | BY83: Yes | BZ83: Yes | CA83: Yes | CB83: Yes | CC83: 21 | CD83: 11 | CE83: 10 | CF83: 11 | CG83: 6 | CH83: 5 | CI83: Yes | CJ83: Yes | CK83: Yes | CL83: 0 | CM83: 0 | CN83: 0 | CO83: 0 | CP83: Yes | CQ83: Yes | CR83: Yes | CS83: Yes | CT83: Yes | CU83: Yes | CV83: No | CW83: No | CX83: No | CY83: No | CZ83: Yes | DA83: Yes | DB83: no | DC83: No | DD83: No
C84: 81 | D84: River Stour (Kent) IDB | E84: Yes | F84: 2025 | G84: Yes | H84: Yes | I84: 2021 | J84: Yes | K84: 2025-02-06 | L84: Yes | M84: No | O84: Yes | P84: Preston Marshes, Stodmarsh, Sandwich bay, Hacklinge Marsh | Q84: 0 | R84: 1245 | S84: 1050 | T84: 195 | U84: Yes | V84: Yes | W84: No | X84: Yes | Y84: Yes | Z84: No | AA84: 2 | AB84: Yes | AC84: No | AD84: Yes | AE84: No | AF84: No | AG84: No | AH84: Yes | AI84: Yes | AJ84: Yes | AK84: No | AL84: No | AM84: No | AN84: No | AO84: No | AP84: No | AQ84: Yes | AR84: Yes | AS84: 213 | AT84: 0 | AU84: 0 | AV84: 0 | AW84: 0 | AX84: 1 | AY84: 0 | AZ84: 0 | BA84: 0 | BB84: Yes | BC84: Yes | BD84: Yes | BE84: No | BF84: Yes | BG84: No | BH84: No | BI84: Yes | BJ84: No | BK84: No | BL84: Yes | BM84: New Member briefings, all are issued with the Board’s Rules & Standing Orders, Members' Code of Conduct and a copy of ADA's Good Governance Guide. An Annual Inspection carried out to visit sites and discuss a range of issues. | BN84: Yes | BO84: Yes | BP84: Yes | BQ84: Yes | BR84: Yes | BS84: Yes | BT84: Yes | BU84: Yes | BV84: Yes | BW84: No | BX84: Yes | BY84: Yes | BZ84: Yes | CA84: Yes | CB84: Yes | CC84: 19 | CD84: 10 | CE84: 9 | CF84: 10 | CG84: 5 | CH84: 4 | CI84: Yes | CJ84: Yes | CK84: Yes | CL84: 1 | CM84: 0 | CN84: 0 | CO84: 0 | CP84: Yes | CQ84: No | CR84: Yes | CS84: Yes | CT84: No | CU84: Yes | CV84: No | CW84: No | CX84: Yes | CY84: No | CZ84: Yes | DA84: Yes | DB84: Yes | DC84: No | DD84: No
C85: 82 | D85: Romney Marshes Area IDB | E85: Yes | F85: 2019 | G85: Yes | H85: Yes | I85: 2023 | J85: No | K85: 2023-11-22 | L85: Yes | M85: No | O85: no | Q85: 0 | R85: 0 | S85: 6500 | T85: 0 | U85: No | V85: No | W85: Yes | X85: yes | Y85: Yes | Z85: No | AA85: 0 | AB85: No | AC85: No | AD85: No | AE85: No | AF85: No | AG85: No | AH85: No | AI85: No | AJ85: No | AK85: No | AL85: No | AM85: No | AN85: No | AO85: No | AP85: Yes | AQ85: Yes | AR85: Yes | AS85: 350 | AT85: 5 | AU85: 4 | AV85: 1 | AW85: 0 | AX85: 1 | AY85: 0 | AZ85: 0 | BA85: 1.5 | BB85: Yes | BC85: no | BD85: Yes | BE85: No | BF85: Yes | BG85: Yes | BH85: no | BI85: Yes | BJ85: no | BK85: no | BL85: no | BN85: Yes | BO85: Yes | BP85: Yes | BQ85: Yes | BR85: Yes | BS85: Yes | BT85: Yes | BU85: Yes | BV85: no | BW85: Yes | BX85: Yes | BY85: Yes | BZ85: Yes | CA85: Yes | CB85: Yes | CC85: 41 | CD85: 22 | CE85: 21 | CF85: 20 | CG85: 8 | CH85: 10.8 | CI85: Yes | CJ85: Yes | CK85: Yes | CL85: 0 | CM85: 0 | CN85: 0 | CO85: 0 | CP85: Yes | CQ85: No | CR85: Yes | CS85: Yes | CT85: No | CU85: Yes | CV85: No | CW85: No | CX85: No | CY85: No | CZ85: No | DA85: Yes | DB85: Yes | DC85: Yes | DD85: No
C86: 83 | D86: Sawtry | E86: Yes | F86: 2019 | G86: Yes | H86: Yes | I86: 2022 | J86: No | K86: 2024-06-05 | L86: Yes | M86: No | O86: no | Q86: 0 | R86: 0 | S86: 0 | T86: 0 | U86: No | V86: No | W86: No | X86: Yes | Y86: No | Z86: No | AA86: 0 | AB86: No | AC86: No | AD86: No | AE86: No | AF86: No | AG86: No | AH86: No | AI86: No | AJ86: No | AK86: No | AL86: No | AM86: No | AN86: No | AO86: No | AP86: No | AQ86: Yes | AR86: Yes | AS86: 33.4 | AT86: 3 | AU86: 3 | AV86: 0 | AW86: 0 | AX86: 0 | AY86: 0 | AZ86: 0 | BA86: 1.19 | BB86: Yes | BC86: Yes | BD86: Yes | BE86: No | BF86: Yes | BG86: Yes | BH86: Yes | BI86: Yes | BJ86: No | BK86: No | BL86: No | BN86: Yes | BO86: Yes | BP86: Yes | BQ86: Yes | BR86: Yes | BS86: Yes | BT86: Yes | BU86: Yes | BV86: Yes | BW86: No | BX86: Yes | BY86: Yes | BZ86: Yes | CA86: Yes | CB86: Yes | CC86: 10 | CD86: 9 | CE86: 8 | CF86: 2 | CG86: 7 | CH86: 1 | CI86: Yes | CJ86: Yes | CK86: Yes | CL86: 0 | CM86: 0 | CN86: 0 | CO86: 0 | CP86: Yes | CQ86: No | CR86: No | CS86: Yes | CT86: No | CU86: Yes | CV86: No | CW86: No | CX86: No | CY86: No | CZ86: Yes | DA86: No | DB86: No | DC86: No | DD86: No
C87: 84 | D87: Scunthorpe and Gainsborough WLM Board | E87: Yes | F87: 2023 | G87: Yes | H87: Yes | I87: 2020 | J87: Yes | K87: 2025-02-01 | L87: Yes | M87: No | O87: No | Q87: 0 | R87: 0 | S87: 0 | T87: 0 | U87: No | V87: No | W87: No | X87: Yes | Y87: No | Z87: No | AA87: 3 | AB87: Yes | AC87: Yes | AD87: No | AE87: Yes | AF87: No | AG87: No | AH87: Yes | AI87: Yes | AJ87: Yes | AK87: Yes | AL87: Yes | AM87: Yes | AN87: Yes | AO87: No | AP87: Yes | AQ87: Yes | AR87: Yes | AS87: 153 | AT87: 10 | AU87: 25 | AV87: 3 | AW87: 0 | AX87: 0 | AY87: 0 | AZ87: 0 | BA87: 17.8 | BB87: Yes | BC87: No | BD87: Yes | BE87: No | BF87: Yes | BG87: No | BH87: No | BI87: No | BJ87: No | BK87: No | BL87: No | BN87: Yes | BO87: Yes | BP87: Yes | BQ87: Yes | BR87: Yes | BS87: Yes | BT87: Yes | BU87: Yes | BV87: No | BW87: No | BX87: Yes | BY87: Yes | BZ87: Yes | CA87: Yes | CB87: Yes | CC87: 21 | CD87: 11 | CE87: 10 | CF87: 11 | CG87: 8 | CH87: 9 | CI87: Yes | CJ87: Yes | CK87: Yes | CL87: 0 | CM87: 0 | CN87: 0 | CO87: 0 | CP87: Yes | CQ87: Yes | CR87: Yes | CS87: Yes | CT87: Yes | CU87: Yes | CV87: No | CW87: No | CX87: No | CY87: No | CZ87: Yes | DA87: Yes | DB87: no | DC87: No | DD87: No
C88: 85 | D88: Selby Area IDB | E88: Yes | F88: 2019 | G88: Yes | H88: Yes | I88: 2019 | J88: No | K88: 2024-11-01 | L88: Yes | M88: Yes | N88: burr Closes SSSI | O88: No | Q88: 1.3 | R88: 0 | S88: 0 | T88: 0 | U88: No | V88: No | W88: No | X88: Yes | Y88: No | Z88: No | AA88: 1 | AB88: Yes | AC88: No | AD88: No | AE88: No | AF88: No | AG88: No | AH88: Yes | AI88: Yes | AJ88: No | AK88: No | AL88: No | AM88: No | AN88: No | AO88: No | AP88: No | AQ88: Yes | AR88: Yes | AS88: 485 | AT88: 20 | AU88: 57 | AV88: 0 | AW88: 0 | AX88: 0 | AY88: 0 | AZ88: 0 | BA88: 0.022163 | BB88: Yes | BC88: Yes | BD88: Yes | BE88: No | BF88: Yes | BG88: No | BH88: No | BI88: No | BJ88: No | BK88: No | BL88: Yes | BM88: ADA information circulated and members referred to ADA website to include governance and H&S updates. | BN88: Yes | BO88: Yes | BP88: No | BQ88: Yes | BR88: Yes | BS88: Yes | BT88: Yes | BU88: Yes | BV88: No | BW88: Yes | BX88: Yes | BY88: Yes | BZ88: Yes | CA88: Yes | CB88: Yes | CC88: 21 | CD88: 11 | CE88: 10 | CF88: 11 | CG88: 5 | CH88: 6 | CI88: Yes | CJ88: Yes | CK88: Yes | CL88: 0 | CM88: 0 | CN88: 0 | CO88: 0 | CP88: Yes | CQ88: No | CR88: No | CS88: Yes | CT88: No | CU88: Yes | CV88: No | CW88: No | CX88: No | CY88: No | CZ88: No | DA88: Yes | DB88: Yes | DC88: Yes | DD88: No
C89: 86 | D89: South Holderness | E89: Yes | F89: 2013 | G89: Yes | H89: No | I89: 2013 | J89: No | K89: 2025-02-11 | L89: Yes | M89: No | O89: No | Q89: 0 | R89: 0 | S89: 0 | T89: 0 | U89: No | V89: No | W89: No | X89: Yes | Y89: Yes | Z89: No | AA89: 1 | AB89: Yes | AC89: No | AD89: No | AE89: No | AF89: No | AG89: No | AH89: Yes | AI89: No | AJ89: Yes | AK89: Yes | AL89: Yes | AM89: No | AN89: No | AO89: No | AP89: Yes | AQ89: No | AR89: Yes | AS89: 159.63 | AT89: 0 | AU89: 0 | AV89: 0 | AW89: 0 | AX89: 0 | AY89: 0 | AZ89: 0 | BA89: 0 | BB89: Yes | BC89: Yes | BD89: Yes | BE89: No | BF89: Yes | BG89: No | BH89: No | BI89: No | BJ89: No | BK89: No | BL89: No | BN89: Yes | BO89: Yes | BP89: Yes | BQ89: Yes | BR89: Yes | BS89: Yes | BT89: Yes | BU89: Yes | BV89: Yes | BW89: No | BX89: Yes | BY89: Yes | BZ89: Yes | CA89: Yes | CB89: Yes | CC89: 19 | CD89: 7 | CE89: 12 | CF89: 7 | CG89: 10 | CH89: 3 | CI89: No | CJ89: No | CK89: No | CL89: 0 | CM89: 0 | CN89: 0 | CO89: 0 | CP89: Yes | CQ89: Yes | CR89: Yes | CS89: Yes | CT89: No | CU89: Yes | CV89: No | CW89: Yes | CX89: No | CY89: No | CZ89: No | DA89: No | DB89: Yes | DC89: No | DD89: No
C90: 87 | D90: South Holland | E90: Yes | F90: 2022 | G90: Yes | H90: Yes | I90: 2022 | J90: No | K90: 2025-02-11 | L90: Yes | M90: No | O90: no | Q90: 0 | R90: 0 | S90: 0 | T90: 0 | U90: No | V90: No | W90: Yes | X90: Yes | Y90: No | Z90: No | AA90: 1 | AB90: Yes | AC90: No | AD90: No | AE90: No | AF90: No | AG90: No | AH90: Yes | AI90: No | AJ90: No | AK90: No | AL90: No | AM90: No | AN90: No | AO90: No | AP90: No | AQ90: Yes | AR90: Yes | AS90: 702 | AT90: 17 | AU90: 17 | AV90: 0 | AW90: 0 | AX90: 0 | AY90: 0 | AZ90: 0 | BA90: 36.41 | BB90: Yes | BC90: No | BD90: Yes | BE90: No | BF90: Yes | BG90: Yes | BH90: No | BI90: No | BJ90: Yes | BK90: No | BL90: No | BN90: Yes | BO90: Yes | BP90: Yes | BQ90: Yes | BR90: Yes | BS90: Yes | BT90: Yes | BU90: Yes | BV90: No | BW90: Yes | BX90: Yes | BY90: Yes | BZ90: Yes | CA90: Yes | CB90: Yes | CC90: 21 | CD90: 11 | CE90: 10 | CF90: 9 | CG90: 3.1 | CH90: 2.6 | CI90: Yes | CJ90: Yes | CK90: No | CL90: 1 | CM90: 0 | CN90: 0 | CO90: 0 | CP90: Yes | CQ90: No | CR90: Yes | CS90: Yes | CT90: No | CU90: Yes | CV90: No | CW90: No | CX90: Yes | CY90: Yes | CZ90: Yes | DA90: no | DB90: Yes | DC90: no | DD90: No
C91: 88 | D91: Southery & District | E91: Yes | F91: 2018 | G91: Yes | H91: Yes | I91: 2010 | J91: No | K91: 2010 | L91: Yes | M91: No | O91: no | Q91: 0 | R91: 0 | S91: 0 | T91: 0 | U91: No | V91: No | W91: No | X91: Yes | Y91: No | Z91: No | AA91: 0 | AB91: No | AC91: No | AD91: No | AE91: No | AF91: No | AG91: No | AH91: No | AI91: No | AJ91: No | AK91: No | AL91: No | AM91: No | AN91: No | AO91: No | AP91: Yes | AQ91: No | AR91: Yes | AS91: 202 | AT91: 5 | AU91: 10 | AV91: 0 | AW91: 0 | AX91: 0 | AY91: 0 | AZ91: 0 | BA91: 13.4 | BB91: Yes | BC91: No | BD91: Yes | BE91: No | BF91: Yes | BG91: No | BH91: No | BI91: No | BJ91: No | BK91: No | BL91: No | BN91: Yes | BO91: Yes | BP91: Yes | BQ91: No | BR91: Yes | BS91: Yes | BT91: Yes | BU91: Yes | BV91: No | BW91: No | BX91: Yes | BY91: Yes | BZ91: Yes | CA91: Yes | CB91: Yes | CC91: 19 | CD91: 8 | CE91: 12 | CF91: 7 | CG91: 7.3 | CH91: 3.3 | CI91: Yes | CJ91: Yes | CK91: Yes | CL91: 0 | CM91: 0 | CN91: 0 | CO91: 0 | CP91: Yes | CQ91: No | CR91: Yes | CS91: Yes | CT91: No | CU91: Yes | CV91: No | CW91: No | CX91: No | CY91: No | CZ91: No | DA91: Yes | DB91: no | DC91: no | DD91: No
C92: 89 | D92: Sow and Penk DB | E92: Yes | F92: 2023 | G92: Yes | H92: Yes | I92: 2020 | J92: Yes | K92: 2025-01-01 | L92: Yes | M92: No | O92: Yes | P92: Doxey & Tillingham | Q92: 0 | R92: 124 | S92: 0 | T92: 0 | U92: No | V92: No | W92: No | X92: Yes | Y92: No | Z92: No | AA92: 0 | AB92: No | AC92: No | AD92: No | AE92: No | AF92: No | AG92: No | AH92: No | AI92: No | AJ92: No | AK92: No | AL92: No | AM92: No | AN92: No | AO92: No | AP92: Yes | AQ92: Yes | AR92: Yes | AS92: 40 | AT92: 0 | AU92: 0 | AV92: 0 | AW92: 0 | AX92: 0 | AY92: 0 | AZ92: 0 | BA92: 0 | BB92: Yes | BC92: No | BD92: Yes | BE92: No | BF92: Yes | BG92: No | BH92: No | BI92: Yes | BJ92: No | BK92: No | BL92: No | BN92: Yes | BO92: Yes | BP92: Yes | BQ92: Yes | BR92: Yes | BS92: Yes | BT92: Yes | BU92: Yes | BV92: No | BW92: No | BX92: Yes | BY92: Yes | BZ92: Yes | CA92: Yes | CB92: Yes | CC92: 13 | CD92: 7 | CE92: 6 | CF92: 7 | CG92: 5 | CH92: 4 | CI92: Yes | CJ92: Yes | CK92: Yes | CL92: 0 | CM92: 0 | CN92: 0 | CO92: 0 | CP92: Yes | CQ92: Yes | CR92: Yes | CS92: Yes | CT92: Yes | CU92: Yes | CV92: No | CW92: No | CX92: No | CY92: No | CZ92: Yes | DA92: Yes | DB92: Yes | DC92: no | DD92: No
C93: 90 | D93: Stoke Ferry | E93: Yes | F93: 2018 | G93: Yes | H93: Yes | I93: 2010 | J93: No | K93: 2010 | L93: Yes | M93: No | O93: no | Q93: 0 | R93: 0 | S93: 0 | T93: 0 | U93: No | V93: No | W93: No | X93: Yes | Y93: No | Z93: No | AA93: 0 | AB93: No | AC93: No | AD93: No | AE93: No | AF93: No | AG93: No | AH93: No | AI93: No | AJ93: No | AK93: No | AL93: No | AM93: No | AN93: No | AO93: No | AP93: Yes | AQ93: No | AR93: Yes | AS93: 17.6 | AT93: 4 | AU93: 5 | AV93: 0 | AW93: 0 | AX93: 0 | AY93: 0 | AZ93: 0 | BA93: 3.1 | BB93: Yes | BC93: No | BD93: Yes | BE93: No | BF93: Yes | BG93: No | BH93: No | BI93: No | BJ93: No | BK93: No | BL93: No | BN93: Yes | BO93: Yes | BP93: Yes | BQ93: No | BR93: Yes | BS93: Yes | BT93: Yes | BU93: Yes | BV93: No | BW93: No | BX93: Yes | BY93: Yes | BZ93: Yes | CA93: Yes | CB93: Yes | CC93: 17 | CD93: 9 | CE93: 15 | CF93: 8 | CG93: 6 | CH93: 4.86 | CI93: Yes | CJ93: Yes | CK93: Yes | CL93: 0 | CM93: 0 | CN93: 0 | CO93: 0 | CP93: Yes | CQ93: No | CR93: Yes | CS93: Yes | CT93: No | CU93: Yes | CV93: No | CW93: No | CX93: No | CY93: No | CZ93: No | DA93: Yes | DB93: no | DC93: no | DD93: No
C94: 91 | D94: Strine IDB | E94: Yes | F94: 2019 | G94: Yes | H94: Yes | I94: 2024 | J94: Yes | K94: 2024-04-01 | L94: Yes | M94: No | O94: no | Q94: 0 | R94: 0 | S94: 0 | T94: 0 | U94: No | V94: No | W94: No | X94: Yes | Y94: No | Z94: No | AA94: 0 | AB94: No | AC94: No | AD94: No | AE94: No | AF94: No | AG94: No | AH94: No | AI94: No | AJ94: No | AK94: No | AL94: No | AM94: No | AN94: No | AO94: No | AP94: No | AQ94: Yes | AR94: Yes | AS94: 28.5 | AT94: 0 | AU94: 0 | AV94: 0 | AW94: 0 | AX94: 0 | AY94: 0 | AZ94: 0 | BA94: 0 | BB94: Yes | BC94: No | BD94: No | BE94: No | BF94: No | BG94: No | BH94: No | BI94: No | BJ94: No | BK94: No | BL94: No | BN94: Yes | BO94: Yes | BP94: Yes | BQ94: Yes | BR94: Yes | BS94: Yes | BT94: Yes | BU94: Yes | BV94: No | BW94: Yes | BX94: Yes | BY94: No | BZ94: No | CA94: Yes | CB94: No | CC94: 8 | CD94: 2 | CE94: 8 | CF94: 1 | CG94: 6 | CH94: 1 | CI94: Yes | CJ94: Yes | CK94: No | CL94: 0 | CM94: 0 | CN94: 0 | CO94: 0 | CP94: Yes | CQ94: No | CR94: Yes | CS94: Yes | CT94: No | CU94: Yes | CV94: No | CW94: No | CX94: No | CY94: No | CZ94: No | DA94: Yes | DB94: Yes | DC94: Yes | DD94: No
C95: 92 | D95: Stringside | E95: Yes | F95: 2018 | G95: Yes | H95: Yes | I95: 2010 | J95: No | K95: 2010 | L95: Yes | M95: No | O95: no | Q95: 0 | R95: 0 | S95: 0 | T95: 0 | U95: Yes | V95: No | W95: No | X95: Yes | Y95: No | Z95: No | AA95: 0 | AB95: No | AC95: No | AD95: No | AE95: No | AF95: No | AG95: No | AH95: No | AI95: No | AJ95: No | AK95: No | AL95: No | AM95: No | AN95: No | AO95: No | AP95: Yes | AQ95: No | AR95: Yes | AS95: 12.8 | AT95: 0 | AU95: 0 | AV95: 0 | AW95: 0 | AX95: 0 | AY95: 0 | AZ95: 0 | BA95: 0 | BB95: Yes | BC95: No | BD95: Yes | BE95: No | BF95: Yes | BG95: No | BH95: No | BI95: No | BJ95: No | BK95: No | BL95: No | BN95: Yes | BO95: Yes | BP95: Yes | BQ95: No | BR95: Yes | BS95: Yes | BT95: Yes | BU95: Yes | BV95: No | BW95: No | BX95: Yes | BY95: Yes | BZ95: Yes | CA95: Yes | CB95: Yes | CC95: 7 | CD95: 1 | CE95: 7 | CF95: 1 | CG95: 4 | CH95: 0 | CI95: Yes | CJ95: Yes | CK95: Yes | CL95: 0 | CM95: 0 | CN95: 0 | CO95: 0 | CP95: Yes | CQ95: No | CR95: Yes | CS95: Yes | CT95: No | CU95: Yes | CV95: No | CW95: No | CX95: No | CY95: No | CZ95: no | DA95: Yes | DB95: no | DC95: no | DD95: No
C96: 93 | D96: Sutton & Mepal | E96: Yes | F96: 2019 | G96: Yes | H96: Yes | I96: 2022 | J96: No | K96: 2024-05-23 | L96: Yes | M96: No | O96: no | Q96: 0 | R96: 0 | S96: 0 | T96: 0 | U96: No | V96: No | W96: No | X96: Yes | Y96: No | Z96: No | AA96: 1 | AB96: Yes | AC96: No | AD96: No | AE96: No | AF96: No | AG96: No | AH96: Yes | AI96: No | AJ96: No | AK96: No | AL96: No | AM96: No | AN96: No | AO96: No | AP96: No | AQ96: Yes | AR96: Yes | AS96: 66.5 | AT96: 1 | AU96: 3 | AV96: 1 | AW96: 0 | AX96: 0 | AY96: 0 | AZ96: 0 | BA96: 5.77 | BB96: Yes | BC96: Yes | BD96: Yes | BE96: No | BF96: Yes | BG96: Yes | BH96: Yes | BI96: Yes | BJ96: No | BK96: No | BL96: No | BN96: Yes | BO96: Yes | BP96: Yes | BQ96: Yes | BR96: Yes | BS96: Yes | BT96: Yes | BU96: Yes | BV96: Yes | BW96: No | BX96: Yes | BY96: Yes | BZ96: Yes | CA96: Yes | CB96: Yes | CC96: 17 | CD96: 4 | CE96: 15 | CF96: 1 | CG96: 11 | CH96: 1 | CI96: Yes | CJ96: Yes | CK96: Yes | CL96: 0 | CM96: 0 | CN96: 0 | CO96: 0 | CP96: Yes | CQ96: No | CR96: No | CS96: Yes | CT96: No | CU96: Yes | CV96: No | CW96: No | CX96: No | CY96: No | CZ96: Yes | DA96: no | DB96: no | DC96: no | DD96: No
C97: 94 | D97: Swaffham | E97: Yes | F97: 2020 | G97: Yes | H97: Yes | I97: 2009 | J97: No | K97: 2022 | L97: Yes | M97: Yes | N97: Stow-cum Quay | O97: No | Q97: 29.85 | R97: 0 | S97: 0 | T97: 29.85 | U97: Yes | V97: No | W97: No | X97: Yes | Y97: No | Z97: No | AA97: 0 | AB97: No | AC97: No | AD97: No | AE97: No | AF97: No | AG97: No | AH97: No | AI97: No | AJ97: No | AK97: No | AL97: No | AM97: No | AN97: No | AO97: No | AP97: Yes | AQ97: No | AR97: Yes | AS97: 83.8 | AT97: 1 | AU97: 3 | AV97: 0 | AW97: 0 | AX97: 0 | AY97: 0 | AZ97: 0 | BA97: 5.1 | BB97: Yes | BC97: No | BD97: Yes | BE97: No | BF97: Yes | BG97: No | BH97: No | BI97: No | BJ97: No | BK97: No | BL97: Yes | BN97: Yes | BO97: Yes | BP97: Yes | BQ97: Yes | BR97: Yes | BS97: Yes | BT97: Yes | BU97: Yes | BV97: No | BW97: No | BX97: Yes | BY97: Yes | BZ97: Yes | CA97: Yes | CB97: Yes | CC97: 15 | CD97: 5 | CE97: 10 | CF97: 5 | CG97: 5.6 | CH97: 2.6 | CI97: Yes | CJ97: Yes | CK97: Yes | CL97: 0 | CM97: 0 | CN97: 0 | CO97: 0 | CP97: Yes | CQ97: No | CR97: Yes | CS97: Yes | CT97: No | CU97: Yes | CV97: No | CW97: No | CX97: No | CY97: No | CZ97: Yes | DA97: no | DB97: no | DC97: no | DD97: no
C98: 95 | D98: Swale and Ure | E98: Yes | F98: 2023 | G98: Yes | H98: Yes | I98: 2020 | J98: Yes | K98: 2025-02-01 | L98: Yes | M98: No | O98: No | Q98: 0 | R98: 0 | S98: 0 | T98: 0 | U98: No | V98: No | W98: No | X98: Yes | Y98: No | Z98: No | AA98: 1 | AB98: Yes | AC98: No | AD98: No | AE98: No | AF98: No | AG98: No | AH98: Yes | AI98: No | AJ98: Yes | AK98: No | AL98: No | AM98: No | AN98: No | AO98: No | AP98: Yes | AQ98: Yes | AR98: Yes | AS98: 470 | AT98: 1 | AU98: 1 | AV98: 0 | AW98: 0 | AX98: 0 | AY98: 0 | AZ98: 0 | BA98: 0.25 | BB98: Yes | BC98: No | BD98: Yes | BE98: No | BF98: Yes | BG98: No | BH98: No | BI98: No | BJ98: No | BK98: No | BL98: No | BN98: Yes | BO98: Yes | BP98: Yes | BQ98: Yes | BR98: Yes | BS98: Yes | BT98: Yes | BU98: Yes | BV98: No | BW98: No | BX98: Yes | BY98: Yes | BZ98: Yes | CA98: Yes | CB98: Yes | CC98: 14 | CD98: 10 | CE98: 11 | CF98: 3 | CG98: 8 | CH98: 2 | CI98: Yes | CJ98: Yes | CK98: Yes | CL98: 0 | CM98: 0 | CN98: 0 | CO98: 0 | CP98: Yes | CQ98: Yes | CR98: Yes | CS98: Yes | CT98: Yes | CU98: Yes | CV98: No | CW98: No | CX98: No | CY98: No | CZ98: Yes | DA98: Yes | DB98: no | DC98: no | DD98: no
C99: 96 | D99: Swavesey | E99: Yes | F99: 2019 | G99: Yes | H99: Yes | I99: 2022 | J99: No | K99: 2024-02-06 | L99: Yes | M99: No | O99: No | Q99: 0 | R99: 0 | S99: 0 | T99: 0 | U99: No | V99: No | W99: No | X99: Yes | Y99: No | Z99: No | AA99: 0 | AB99: No | AC99: No | AD99: No | AE99: No | AF99: No | AG99: No | AH99: No | AI99: No | AJ99: No | AK99: No | AL99: No | AM99: No | AN99: No | AO99: No | AP99: No | AQ99: Yes | AR99: Yes | AS99: 8.2 | AT99: 1 | AU99: 2 | AV99: 0 | AW99: 0 | AX99: 0 | AY99: 0 | AZ99: 0 | BA99: 0.68 | BB99: Yes | BC99: Yes | BD99: Yes | BE99: No | BF99: Yes | BG99: Yes | BH99: Yes | BI99: Yes | BJ99: No | BK99: No | BL99: No | BN99: Yes | BO99: Yes | BP99: Yes | BQ99: Yes | BR99: Yes | BS99: Yes | BT99: Yes | BU99: Yes | BV99: Yes | BW99: No | BX99: Yes | BY99: Yes | BZ99: Yes | CA99: Yes | CB99: Yes | CC99: 9 | CD99: 2 | CE99: 7 | CF99: 1 | CG99: 6 | CH99: 1 | CI99: Yes | CJ99: Yes | CK99: Yes | CL99: 0 | CM99: 0 | CN99: 0 | CO99: 0 | CP99: Yes | CQ99: No | CR99: No | CS99: Yes | CT99: No | CU99: Yes | CV99: No | CW99: No | CX99: No | CY99: Yes | CZ99: Yes | DA99: Yes | DB99: no | DC99: no | DD99: no
C100: 97 | D100: Thorntree IDB | E100: Yes | F100: 2020 | G100: Yes | H100: Yes | I100: 2018 | J100: Yes | K100: 2020 | L100: Yes | M100: No | O100: no | Q100: 0 | R100: 0 | S100: 0 | T100: 0 | U100: No | V100: No | W100: No | X100: Yes | Y100: No | Z100: No | AA100: 0 | AB100: No | AC100: No | AD100: No | AE100: No | AF100: No | AG100: No | AH100: No | AI100: No | AJ100: No | AK100: No | AL100: No | AM100: No | AN100: No | AO100: No | AP100: Yes | AQ100: No | AR100: Yes | AS100: 13 | AT100: 1 | AU100: 2 | AV100: 0 | AW100: 0 | AX100: 0 | AY100: 0 | AZ100: 0 | BA100: 0.75 | BB100: Yes | BC100: Yes | BD100: Yes | BE100: No | BF100: Yes | BG100: No | BH100: No | BI100: No | BJ100: No | BK100: No | BL100: No | BN100: Yes | BO100: No | BP100: Yes | BQ100: No | BR100: Yes | BS100: Yes | BT100: Yes | BU100: Yes | BV100: No | BW100: Yes | BX100: Yes | BY100: Yes | BZ100: Yes | CA100: Yes | CB100: Yes | CC100: 6 | CD100: 0 | CE100: 6 | CF100: 0 | CG100: 5 | CH100: 0 | CI100: Yes | CJ100: Yes | CK100: Yes | CL100: 0 | CM100: 0 | CN100: 0 | CO100: 0 | CP100: Yes | CQ100: No | CR100: No | CS100: Yes | CT100: No | CU100: Yes | CV100: No | CW100: No | CX100: No | CY100: No | CZ100: no | DA100: no | DB100: no | DC100: no | DD100: No
C101: 98 | D101: Trent Valley | E101: Yes | F101: 2019 | G101: Yes | H101: Yes | I101: 2013 | J101: No | K101: all | L101: Yes | M101: No | O101: no | Q101: 0 | R101: 0 | S101: 0 | T101: 0 | U101: No | V101: No | W101: Yes | X101: Yes | Y101: No | Z101: No | AA101: 1 | AB101: Yes | AC101: No | AD101: No | AE101: No | AF101: No | AG101: No | AH101: Yes | AI101: No | AJ101: No | AK101: No | AL101: No | AM101: No | AN101: No | AO101: No | AP101: Yes | AQ101: Yes | AR101: Yes | AS101: 723.3 | AT101: 18 | AU101: 39 | AV101: 0 | AW101: 0 | AX101: 2 | AY101: 0 | AZ101: 0 | BA101: 28 | BB101: Yes | BC101: No | BD101: Yes | BE101: No | BF101: No | BG101: Yes | BH101: Yes | BI101: Yes | BJ101: Yes | BK101: No | BL101: Yes | BM101: All new members are provided with ADA Good Governance Guide and referred to ADA website for training modules. | BN101: Yes | BO101: Yes | BP101: Yes | BQ101: Yes | BR101: Yes | BS101: Yes | BT101: Yes | BU101: Yes | BV101: No | BW101: Yes | BX101: Yes | BY101: Yes | BZ101: Yes | CA101: Yes | CB101: Yes | CC101: 25 | CD101: 13 | CE101: 12 | CF101: 13 | CG101: 6.8 | CH101: 6.8 | CI101: Yes | CJ101: Yes | CK101: Yes | CL101: 1 | CM101: 1 | CN101: 1 | CO101: 0 | CP101: No | CQ101: No | CR101: Yes | CS101: Yes | CT101: No | CU101: Yes | CV101: No | CW101: No | CX101: No | CY101: Yes | CZ101: no | DA101: Yes | DB101: Yes | DC101: Yes | DD101: No
C102: 99 | D102: Upper Medway IDB | E102: Yes | F102: 2024 | G102: Yes | H102: Yes | I102: 2021 | J102: No | K102: 2024-06-18 | L102: Yes | M102: No | O102: no | Q102: 0 | R102: 0 | S102: 0 | T102: 0 | U102: Yes | V102: No | W102: No | X102: Yes | Y102: Yes | Z102: No | AA102: 2 | AB102: Yes | AC102: Yes | AD102: No | AE102: No | AF102: No | AG102: No | AH102: Yes | AI102: No | AJ102: No | AK102: No | AL102: No | AM102: No | AN102: No | AO102: No | AP102: Yes | AQ102: Yes | AR102: Yes | AS102: 191 | AT102: 0 | AU102: 0 | AV102: 0 | AW102: 0 | AX102: 0 | AY102: 0 | AZ102: 0 | BA102: 0 | BB102: Yes | BC102: Yes | BD102: Yes | BE102: No | BF102: Yes | BG102: Yes | BH102: Yes | BI102: Yes | BJ102: Yes | BK102: Yes | BL102: No | BN102: Yes | BO102: Yes | BP102: Yes | BQ102: Yes | BR102: Yes | BS102: Yes | BT102: Yes | BU102: Yes | BV102: Yes | BW102: No | BX102: Yes | BY102: Yes | BZ102: Yes | CA102: Yes | CB102: Yes | CC102: 16 | CD102: 9 | CE102: 7 | CF102: 9 | CG102: 5 | CH102: 5 | CI102: Yes | CJ102: Yes | CK102: Yes | CL102: 1 | CM102: 0 | CN102: 1 | CO102: 0 | CP102: Yes | CQ102: No | CR102: Yes | CS102: Yes | CT102: No | CU102: Yes | CV102: No | CW102: No | CX102: Yes | CY102: Yes | CZ102: Yes | DA102: Yes | DB102: Yes | DC102: Yes | DD102: No
C103: 100 | D103: Upper Witham | E103: Yes | F103: 2018 | G103: Yes | H103: Yes | I103: 2021 | J103: Yes | K103: 2024-01-29 | L103: Yes | M103: No | O103: no | Q103: 0 | R103: 0 | S103: 0 | T103: 0 | U103: No | V103: No | W103: Yes | X103: No | Y103: Yes | Z103: No | AA103: 1 | AB103: Yes | AC103: No | AD103: No | AE103: No | AF103: No | AG103: No | AH103: Yes | AI103: No | AJ103: No | AK103: Yes | AL103: Yes | AM103: No | AN103: No | AO103: No | AP103: Yes | AQ103: No | AR103: Yes | AS103: 325 | AT103: 15 | AU103: 29 | AV103: 3 | AW103: 0 | AX103: 0 | AY103: 0 | AZ103: 0 | BA103: 20462 | BB103: Yes | BC103: No | BD103: Yes | BE103: No | BF103: Yes | BG103: Yes | BH103: Yes | BI103: Yes | BJ103: Yes | BK103: Yes | BL103: No | BM103: The boards website provides a lot of information regarding the boards workings, including policies up to date financial and operational information. At board meeting member development takes place via officer briefings and external speakers who provide information of particular issues. The Annual inspection tour also provides additional opportunity for members to drill into particular issues and provides addition information via briefings and a booklet. Some members also attended the ADA conference in London and access was given to ADA training webinars. A member training day was held on Tuesday 5th December 2023 covering (Q38-42) areas. | BN103: Yes | BO103: Yes | BP103: Yes | BQ103: Yes | BR103: Yes | BS103: Yes | BT103: Yes | BU103: Yes | BV103: Yes | BW103: No | BX103: Yes | BY103: Yes | BZ103: Yes | CA103: Yes | CB103: Yes | CC103: 35 | CD103: 18 | CE103: 13 | CF103: 18 | CG103: 10 | CH103: 11 | CI103: Yes | CJ103: Yes | CK103: Yes | CL103: 1 | CM103: 0 | CN103: 0 | CO103: 0 | CP103: Yes | CQ103: No | CR103: No | CS103: Yes | CT103: No | CU103: Yes | CV103: No | CW103: No | CX103: No | CY103: Yes | CZ103: Yes | DA103: Yes | DB103: Yes | DC103: Yes | DD103: Yes
C104: 101 | D104: Upwell | E104: Yes | F104: 2019 | G104: Yes | H104: Yes | I104: 2022 | J104: No | K104: 2024-05-31 | L104: Yes | M104: No | O104: no | Q104: 0 | R104: 0 | S104: 0 | T104: 0 | U104: No | V104: No | W104: No | X104: Yes | Y104: No | Z104: No | AA104: 0 | AB104: No | AC104: No | AD104: No | AE104: No | AF104: No | AG104: No | AH104: No | AI104: No | AJ104: No | AK104: No | AL104: No | AM104: No | AN104: No | AO104: No | AP104: No | AQ104: Yes | AR104: Yes | AS104: 72.1 | AT104: 5 | AU104: 2 | AV104: 0 | AW104: 0 | AX104: 0 | AY104: 0 | AZ104: 0 | BA104: 4.51 | BB104: Yes | BC104: Yes | BD104: Yes | BE104: No | BF104: Yes | BG104: Yes | BH104: Yes | BI104: Yes | BJ104: No | BK104: No | BL104: No | BN104: Yes | BO104: Yes | BP104: Yes | BQ104: Yes | BR104: Yes | BS104: Yes | BT104: Yes | BU104: Yes | BV104: Yes | BW104: No | BX104: Yes | BY104: Yes | BZ104: Yes | CA104: Yes | CB104: Yes | CC104: 19 | CD104: 5 | CE104: 14 | CF104: 5 | CG104: 11 | CH104: 3 | CI104: Yes | CJ104: Yes | CK104: Yes | CL104: 0 | CM104: 0 | CN104: 0 | CO104: 0 | CP104: Yes | CQ104: No | CR104: No | CS104: Yes | CT104: No | CU104: Yes | CV104: No | CW104: No | CX104: No | CY104: Yes | CZ104: Yes | DA104: Yes | DB104: no | DC104: no | DD104: no
C105: 102 | D105: Vale of Pickering | E105: Yes | F105: 2021 | G105: Yes | H105: Yes | I105: 2023 | J105: No | K105: 2025-02-06 | L105: Yes | M105: No | O105: no | Q105: 0 | R105: 0 | S105: 0 | T105: 0 | U105: No | V105: No | W105: No | X105: Yes | Y105: No | Z105: No | AA105: 0 | AB105: No | AC105: No | AD105: No | AE105: No | AF105: No | AG105: No | AH105: No | AI105: No | AJ105: No | AK105: No | AL105: No | AM105: No | AN105: No | AO105: No | AP105: No | AQ105: Yes | AR105: Yes | AS105: 404 | AT105: 0 | AU105: 0 | AV105: 0 | AW105: 0 | AX105: 0 | AY105: 0 | AZ105: 0 | BA105: 0 | BB105: Yes | BC105: No | BD105: Yes | BE105: No | BF105: Yes | BG105: Yes | BH105: Yes | BI105: No | BJ105: No | BK105: No | BL105: No | BM105: Board induction/refresher training | BN105: Yes | BO105: Yes | BP105: Yes | BQ105: Yes | BR105: Yes | BS105: Yes | BT105: Yes | BU105: Yes | BV105: Yes | BW105: No | BX105: Yes | BY105: Yes | BZ105: Yes | CA105: Yes | CB105: Yes | CC105: 10 | CD105: 5 | CE105: 6 | CF105: 5 | CG105: 4.33 | CH105: 3 | CI105: Yes | CJ105: Yes | CK105: Yes | CL105: 0 | CM105: 0 | CN105: 0 | CO105: 0 | CP105: Yes | CQ105: No | CR105: Yes | CS105: No | CT105: No | CU105: Yes | CV105: No | CW105: No | CX105: No | CY105: Yes | CZ105: no | DA105: Yes | DB105: Yes | DC105: Yes | DD105: no
C106: 103 | D106: Waldersey | E106: Yes | F106: 2019 | G106: Yes | H106: Yes | I106: 2022 | J106: No | K106: 2024-06-19 | L106: Yes | M106: No | O106: no | Q106: 0 | R106: 0 | S106: 0 | T106: 0 | U106: No | V106: No | W106: No | X106: Yes | Y106: No | Z106: No | AA106: 0 | AB106: No | AC106: No | AD106: No | AE106: No | AF106: No | AG106: No | AH106: No | AI106: No | AJ106: No | AK106: No | AL106: No | AM106: No | AN106: No | AO106: No | AP106: No | AQ106: Yes | AR106: Yes | AS106: 29.5 | AT106: 2 | AU106: 5 | AV106: 0 | AW106: 0 | AX106: 0 | AY106: 0 | AZ106: 0 | BA106: 4.6 | BB106: Yes | BC106: Yes | BD106: Yes | BE106: No | BF106: Yes | BG106: Yes | BH106: Yes | BI106: Yes | BJ106: No | BK106: No | BL106: No | BN106: Yes | BO106: Yes | BP106: Yes | BQ106: Yes | BR106: Yes | BS106: Yes | BT106: Yes | BU106: Yes | BV106: Yes | BW106: No | BX106: Yes | BY106: Yes | BZ106: Yes | CA106: Yes | CB106: Yes | CC106: 12 | CD106: 2 | CE106: 10 | CF106: 2 | CG106: 4 | CH106: 2 | CI106: Yes | CJ106: Yes | CK106: Yes | CL106: 1 | CM106: 0 | CN106: 0 | CO106: 0 | CP106: Yes | CQ106: No | CR106: No | CS106: Yes | CT106: No | CU106: Yes | CV106: No | CW106: No | CX106: No | CY106: No | CZ106: Yes | DA106: Yes | DB106: no | DC106: no | DD106: no
C107: 104 | D107: Warboys, Somersham and Pidley | E107: Yes | F107: 2019 | G107: Yes | H107: Yes | I107: 2022 | J107: No | K107: 2024-06-06 | L107: Yes | M107: No | O107: no | Q107: 0 | R107: 0 | S107: 0 | T107: 0 | U107: No | V107: No | W107: No | X107: Yes | Y107: No | Z107: No | AA107: 0 | AB107: No | AC107: No | AD107: No | AE107: No | AF107: No | AG107: No | AH107: No | AI107: No | AJ107: No | AK107: No | AL107: No | AM107: No | AN107: No | AO107: No | AP107: No | AQ107: Yes | AR107: Yes | AS107: 78.4 | AT107: 6 | AU107: 12 | AV107: 1 | AW107: 0 | AX107: 0 | AY107: 0 | AZ107: 0 | BA107: 10.27 | BB107: Yes | BC107: Yes | BD107: Yes | BE107: No | BF107: Yes | BG107: Yes | BH107: Yes | BI107: Yes | BJ107: No | BK107: No | BL107: No | BN107: Yes | BO107: Yes | BP107: Yes | BQ107: Yes | BR107: Yes | BS107: Yes | BT107: Yes | BU107: Yes | BV107: Yes | BW107: No | BX107: Yes | BY107: Yes | BZ107: Yes | CA107: Yes | CB107: Yes | CC107: 22 | CD107: 3 | CE107: 20 | CF107: 3 | CG107: 16 | CH107: 1 | CI107: Yes | CJ107: Yes | CK107: Yes | CL107: 0 | CM107: 0 | CN107: 0 | CO107: 0 | CP107: Yes | CQ107: No | CR107: No | CS107: Yes | CT107: No | CU107: Yes | CV107: No | CW107: No | CX107: No | CY107: No | CZ107: Yes | DA107: no | DB107: no | DC107: no | DD107: no
C108: 105 | D108: Waterbeach Level | E108: Yes | F108: 2020 | G108: Yes | H108: Yes | I108: 2009 | J108: No | K108: 2022 | L108: Yes | M108: No | O108: no | Q108: 0 | R108: 0 | S108: 0 | T108: 0 | U108: No | V108: No | W108: No | X108: Yes | Y108: No | Z108: No | AA108: 0 | AB108: No | AC108: No | AD108: No | AE108: No | AF108: No | AG108: No | AH108: No | AI108: No | AJ108: No | AK108: No | AL108: No | AM108: No | AN108: No | AO108: No | AP108: Yes | AQ108: No | AR108: Yes | AS108: 36.3 | AT108: 3 | AU108: 5 | AV108: 2 | AW108: 0 | AX108: 0 | AY108: 0 | AZ108: 0 | BA108: 3.87 | BB108: Yes | BC108: No | BD108: Yes | BE108: No | BF108: Yes | BG108: No | BH108: No | BI108: No | BJ108: No | BK108: No | BL108: Yes | BM108: Board Members are invited to tour the District with the Engineer. | BN108: Yes | BO108: Yes | BP108: Yes | BQ108: Yes | BR108: Yes | BS108: Yes | BT108: Yes | BU108: Yes | BV108: No | BW108: No | BX108: Yes | BY108: Yes | BZ108: Yes | CA108: Yes | CB108: Yes | CC108: 11 | CD108: 3 | CE108: 8 | CF108: 3 | CG108: 5.3 | CH108: 1.3 | CI108: Yes | CJ108: Yes | CK108: Yes | CL108: 0 | CM108: 0 | CN108: 0 | CO108: 0 | CP108: Yes | CQ108: No | CR108: Yes | CS108: Yes | CT108: No | CU108: Yes | CV108: No | CW108: No | CX108: No | CY108: No | CZ108: Yes | DA108: no | DB108: no | DC108: no | DD108: No
C109: 106 | D109: Waveney, Lower Yare and Lothingland | E109: Yes | F109: 2020 | G109: Yes | H109: Yes | I109: 2022 | J109: Yes | K109: 2025-02-05 | L109: Yes | M109: Yes | N109: Limpenhoe,Barnby broads, Sprat water and Marshes, Carlton Colville, Geldeston Meadows Breydon Water | O109: no | Q109: 790.166 | R109: 0 | S109: 790.166 | T109: 0 | U109: No | V109: No | W109: Yes | X109: Yes | Y109: Yes | Z109: No | AA109: 0 | AB109: No | AC109: No | AD109: No | AE109: No | AF109: No | AG109: No | AH109: No | AI109: No | AJ109: No | AK109: No | AL109: No | AM109: No | AN109: No | AO109: No | AP109: No | AQ109: Yes | AR109: Yes | AS109: 430 | AT109: 20 | AU109: 20 | AV109: 0 | AW109: 0 | AX109: 0 | AY109: 0 | AZ109: 0 | BA109: 13.575 | BB109: Yes | BC109: No | BD109: Yes | BE109: No | BF109: Yes | BG109: Yes | BH109: No | BI109: No | BJ109: Yes | BK109: No | BL109: No | BN109: Yes | BO109: Yes | BP109: Yes | BQ109: Yes | BR109: Yes | BS109: Yes | BT109: Yes | BU109: Yes | BV109: No | BW109: Yes | BX109: Yes | BY109: Yes | BZ109: Yes | CA109: Yes | CB109: Yes | CC109: 29 | CD109: 11 | CE109: 16 | CF109: 9 | CG109: 1.2 | CH109: 0.8 | CI109: Yes | CJ109: Yes | CK109: No | CL109: 0 | CM109: 0 | CN109: 0 | CO109: 0 | CP109: Yes | CQ109: No | CR109: Yes | CS109: Yes | CT109: No | CU109: Yes | CV109: No | CW109: No | CX109: Yes | CY109: Yes | CZ109: Yes | DA109: no | DB109: Yes | DC109: no | DD109: No
C110: 107 | D110: Welland and Deepings | E110: Yes | F110: 2021 | G110: Yes | H110: Yes | I110: 2020 | J110: No | K110: 2020-10-01 | L110: No | M110: Yes | N110: Baston Fen, Cross Drain, Cowbit Wash | O110: no | Q110: 50.2 | R110: 50.2 | S110: 50.2 | T110: 50.2 | U110: Yes | V110: No | W110: Yes | X110: Yes | Y110: Yes | Z110: No | AA110: 0 | AB110: No | AC110: No | AD110: No | AE110: No | AF110: No | AG110: No | AH110: No | AI110: No | AJ110: No | AK110: No | AL110: No | AM110: No | AN110: No | AO110: No | AP110: Yes | AQ110: Yes | AR110: Yes | AS110: 656 | AT110: 14 | AU110: 27 | AV110: 3 | AW110: 0 | AX110: 4 | AY110: 0 | AZ110: 0 | BA110: 42.58 | BB110: Yes | BC110: Yes | BD110: Yes | BE110: Yes | BF110: Yes | BG110: Yes | BH110: Yes | BI110: Yes | BJ110: Yes | BK110: No | BL110: No | BN110: Yes | BO110: Yes | BP110: Yes | BQ110: Yes | BR110: Yes | BS110: Yes | BT110: Yes | BU110: Yes | BV110: Yes | BW110: No | BX110: Yes | BY110: Yes | BZ110: Yes | CA110: Yes | CB110: Yes | CC110: 25 | CD110: 13 | CE110: 12 | CF110: 13 | CG110: 0.72 | CH110: 0.57 | CI110: Yes | CJ110: Yes | CK110: Yes | CL110: 2 | CM110: 0 | CN110: 1 | CO110: 0 | CP110: Yes | CQ110: Yes | CR110: Yes | CS110: Yes | CT110: No | CU110: Yes | CV110: Yes | CW110: Yes | CX110: No | CY110: No | CZ110: Yes | DA110: Yes | DB110: Yes | DC110: Yes | DD110: No
C111: 108 | D111: Whittlsey and District | E111: Yes | F111: 2018 | G111: Yes | H111: Yes | I111: 2018 | J111: Yes | K111: 2024-02-27 | L111: Yes | M111: No | O111: No | Q111: 0 | R111: 0 | S111: 0 | T111: 0 | U111: Yes | V111: No | W111: Yes | X111: Yes | Y111: Yes | Z111: No | AA111: 0 | AB111: No | AC111: No | AD111: No | AE111: No | AF111: No | AG111: No | AH111: No | AI111: No | AJ111: No | AK111: No | AL111: No | AM111: No | AN111: No | AO111: No | AP111: No | AQ111: Yes | AR111: Yes | AS111: 128 | AT111: 14 | AU111: 22 | AV111: 8 | AW111: 0 | AX111: 3 | AY111: 0 | AZ111: 0 | BA111: 18.26 | BB111: Yes | BC111: Yes | BD111: Yes | BE111: No | BF111: Yes | BG111: No | BH111: No | BI111: Yes | BJ111: Yes | BK111: No | BL111: No | BN111: Yes | BO111: Yes | BP111: Yes | BQ111: Yes | BR111: Yes | BS111: Yes | BT111: Yes | BU111: Yes | BV111: No | BW111: Yes | BX111: Yes | BY111: Yes | BZ111: Yes | CA111: Yes | CB111: Yes | CC111: 21 | CD111: 6 | CE111: 15 | CF111: 6 | CG111: 11.4 | CH111: 3 | CI111: Yes | CJ111: Yes | CK111: Yes | CL111: 0 | CM111: 0 | CN111: 0 | CO111: 0 | CP111: Yes | CQ111: No | CR111: No | CS111: Yes | CT111: No | CU111: Yes | CV111: No | CW111: No | CX111: no | CY111: no | CZ111: no | DA111: no | DB111: no | DC111: no | DD111: no
C112: 109 | D112: Witham 1st | E112: Yes | F112: 2018 | G112: Yes | H112: Yes | I112: 2021 | J112: Yes | K112: 2024-01-30 | L112: Yes | M112: No | O112: No | Q112: 0 | R112: 0 | S112: 0 | T112: 0 | U112: No | V112: No | W112: Yes | X112: No | Y112: Yes | Z112: No | AA112: 1 | AB112: Yes | AC112: No | AD112: No | AE112: No | AF112: No | AG112: No | AH112: Yes | AI112: No | AJ112: No | AK112: Yes | AL112: Yes | AM112: No | AN112: No | AO112: No | AP112: Yes | AQ112: No | AR112: Yes | AS112: 275 | AT112: 13 | AU112: 25 | AV112: 0 | AW112: 0 | AX112: 0 | AY112: 0 | AZ112: 0 | BA112: 21381 | BB112: Yes | BC112: No | BD112: Yes | BE112: No | BF112: Yes | BG112: Yes | BH112: Yes | BI112: Yes | BJ112: Yes | BK112: No | BL112: No | BM112: The boards website provides a lot of information regarding the boards workings, including policies up to date financial and operational information. At board meeting member development takes place via officer briefings and external speakers who provide information of particular issues. The Annual inspection tour also provides additional opportunity for members to drill into particular issues and provides addition information via briefings and a booklet. Some members also attended the ADA conference in London and access was given to ADA training webinars. A member training day was held on Tuesday 5th December 2023 covering (Q38-42) areas. | BN112: Yes | BO112: Yes | BP112: Yes | BQ112: Yes | BR112: Yes | BS112: Yes | BT112: Yes | BU112: Yes | BV112: Yes | BW112: No | BX112: Yes | BY112: Yes | BZ112: Yes | CA112: Yes | CB112: Yes | CC112: 28 | CD112: 7 | CE112: 19 | CF112: 7 | CG112: 11.7 | CH112: 4.3 | CI112: Yes | CJ112: Yes | CK112: Yes | CL112: 0 | CM112: 0 | CN112: 0 | CO112: 0 | CP112: Yes | CQ112: No | CR112: No | CS112: Yes | CT112: No | CU112: Yes | CV112: No | CW112: No | CX112: no | CY112: Yes | CZ112: Yes | DA112: Yes | DB112: Yes | DC112: Yes | DD112: Yes
C113: 110 | D113: Witham 3rd | E113: Yes | F113: 2018 | G113: Yes | H113: Yes | I113: 2021 | J113: Yes | K113: 2024-01-01 | L113: Yes | M113: No | O113: No | Q113: 0 | R113: 0 | S113: 0 | T113: 0 | U113: No | V113: No | W113: Yes | X113: No | Y113: Yes | Z113: No | AA113: 1 | AB113: Yes | AC113: No | AD113: No | AE113: No | AF113: No | AG113: No | AH113: Yes | AI113: No | AJ113: No | AK113: Yes | AL113: Yes | AM113: No | AN113: No | AO113: No | AP113: Yes | AQ113: No | AR113: Yes | AS113: 230 | AT113: 17 | AU113: 28 | AV113: 4 | AW113: 0 | AX113: 4 | AY113: 0 | AZ113: 0 | BA113: 18.8 | BB113: Yes | BC113: No | BD113: Yes | BE113: No | BF113: Yes | BG113: Yes | BH113: Yes | BI113: Yes | BJ113: Yes | BK113: Yes | BL113: No | BM113: The boards website provides a lot of information regarding the boards workings, including policies up to date financial and operational information. At board meeting member development takes place via officer briefings and external speakers who provide information of particular issues. The Annual inspection tour also provides additional opportunity for members to drill into particular issues and provides addition information via briefings and a booklet. Some members also attended the ADA conference in London and access was given to ADA training webinars. A member training day was held on Tuesday 5th December 2023 covering (Q38-42) areas. | BN113: Yes | BO113: Yes | BP113: Yes | BQ113: Yes | BR113: Yes | BS113: Yes | BT113: Yes | BU113: Yes | BV113: Yes | BW113: No | BX113: Yes | BY113: Yes | BZ113: Yes | CA113: Yes | CB113: Yes | CC113: 31 | CD113: 16 | CE113: 12 | CF113: 16 | CG113: 7 | CH113: 8 | CI113: Yes | CJ113: Yes | CK113: Yes | CL113: 4 | CM113: 0 | CN113: 1 | CO113: 0 | CP113: Yes | CQ113: No | CR113: No | CS113: Yes | CT113: No | CU113: Yes | CV113: No | CW113: No | CX113: no | CY113: Yes | CZ113: Yes | DA113: Yes | DB113: Yes | DC113: no | DD113: Yes
C114: 111 | D114: Witham 4th | E114: Yes | F114: 2018 | G114: Yes | H114: Yes | I114: 2022 | J114: Yes | K114: 2024-09-01 | L114: Yes | M114: No | O114: No | Q114: 0 | R114: 0 | S114: 0 | T114: 0 | U114: Yes | V114: No | W114: Yes | X114: Yes | Y114: Yes | Z114: No | AA114: 1 | AB114: Yes | AC114: No | AD114: No | AE114: No | AF114: No | AG114: No | AH114: Yes | AI114: No | AJ114: No | AK114: No | AL114: No | AM114: No | AN114: No | AO114: No | AP114: No | AQ114: Yes | AR114: Yes | AS114: 700 | AT114: 8 | AU114: 15 | AV114: 8 | AW114: 0 | AX114: 3 | AY114: 0 | AZ114: 0 | BA114: 59.96 | BB114: Yes | BC114: Yes | BD114: Yes | BE114: Yes | BF114: Yes | BG114: Yes | BH114: Yes | BI114: Yes | BJ114: No | BK114: Yes | BL114: No | BM114: An environment day is arranged by ADA in February each year which interested members attend. An inspection tour of a new pumping station was arranged in April 2024. New Board Members get a formal introduction to the Board and our work when they are appointed | BN114: Yes | BO114: Yes | BP114: Yes | BQ114: Yes | BR114: Yes | BS114: Yes | BT114: Yes | BU114: Yes | BV114: No | BW114: Yes | BX114: Yes | BY114: Yes | BZ114: Yes | CA114: Yes | CB114: Yes | CC114: 23 | CD114: 11 | CE114: 12 | CF114: 10 | CG114: 9.4 | CH114: 6.2 | CI114: Yes | CJ114: Yes | CK114: Yes | CL114: 3 | CM114: 0 | CN114: 0 | CO114: 0 | CP114: Yes | CQ114: Yes | CR114: Yes | CS114: Yes | CT114: Yes | CU114: Yes | CV114: Yes | CW114: No | CX114: Yes | CY114: Yes | CZ114: Yes | DA114: Yes | DB114: Yes | DC114: Yes | DD114: Yes
C115: 112 | D115: Woodwalton | E115: Yes | F115: 2018 | G115: Yes | H115: Yes | I115: 2018 | J115: Yes | K115: 2023 | L115: Yes | M115: No | O115: no | Q115: 0 | R115: 0 | S115: 0 | T115: 0 | U115: Yes | V115: No | W115: No | X115: Yes | Y115: No | Z115: No | AA115: 0 | AB115: No | AC115: No | AD115: No | AE115: No | AF115: No | AG115: No | AH115: No | AI115: No | AJ115: No | AK115: No | AL115: No | AM115: No | AN115: No | AO115: No | AP115: No | AQ115: Yes | AR115: Yes | AS115: 12.25 | AT115: 1 | AU115: 1 | AV115: 0 | AW115: 0 | AX115: 0 | AY115: 0 | AZ115: 0 | BA115: 0.6 | BB115: Yes | BC115: Yes | BD115: Yes | BE115: No | BF115: Yes | BG115: No | BH115: No | BI115: No | BJ115: Yes | BK115: No | BL115: No | BN115: Yes | BO115: Yes | BP115: Yes | BQ115: Yes | BR115: Yes | BS115: Yes | BT115: Yes | BU115: Yes | BV115: No | BW115: Yes | BX115: Yes | BY115: Yes | BZ115: Yes | CA115: Yes | CB115: Yes | CC115: 7 | CD115: 6 | CE115: 5 | CF115: 1 | CG115: 4 | CH115: 1 | CI115: No | CJ115: No | CK115: Yes | CL115: 0 | CM115: 0 | CN115: 0 | CO115: 0 | CP115: Yes | CQ115: No | CR115: No | CS115: No | CT115: No | CU115: Yes | CV115: No | CW115: no | CX115: no | CY115: no | CZ115: no | DA115: no | DB115: no | DC115: no | DD115: no
D117: =COUNTA(D4:D115) -> 112
D118: Total Yes | E118: =COUNTIF(E$4:E$115,"Yes") -> 111 | G118: =COUNTIF(G$4:G$115,"Yes") -> 109 | H118: =COUNTIF(H$4:H$115,"Yes") -> 106 | J118: =COUNTIF(J$4:J$115,"Yes") -> 30 | K118: - | L118: =COUNTIF(L$4:L$115,"Yes") -> 106 | M118: =COUNTIF(M$4:M$115,"Yes") -> 26 | O118: =COUNTIF(O$4:O$115,"Yes") -> 7 | Q118: - | R118: - | U118: =COUNTIF(U$4:U$115,"Yes") -> 20 | V118: 2 | W118: 23 | X118: 105 | Y118: 32 | Z118: 8 | AB118: =COUNTIF(AB$4:AB$115,"Yes") -> 36 | AC118: 6 | AD118: 4 | AE118: 2 | AF118: 0 | AG118: 0 | AH118: 35 | AI118: 11 | AJ118: 15 | AK118: 14 | AL118: 12 | AM118: 7 | AN118: 7 | AO118: 0 | AP118: 52 | AQ118: 85 | AR118: 109 | AS118: - | AT118: - | AU118: - | AV118: - | AW118: - | AX118: - | AY118: - | BB118: =COUNTIF(BB$4:BB$115,"Yes") -> 110 | BC118: 52 | BD118: 108 | BE118: 5 | BF118: 102 | BG118: 64 | BH118: 57 | BI118: 54 | BJ118: 28 | BK118: 10 | BL118: 26 | BM118: - | BN118: =COUNTIF(BN$4:BN$115,"Yes") -> 112 | BO118: 110 | BP118: 105 | BQ118: 103 | BR118: 112 | BS118: 112 | BT118: 111 | BU118: 110 | BV118: 62 | BW118: 27 | BX118: 107 | BY118: 110 | BZ118: 111 | CA118: 112 | CC118: - | CD118: - | CE118: - | CF118: - | CG118: - | CH118: - | CI118: =COUNTIF(CI$4:CI$115,"Yes") -> 101 | CJ118: =COUNTIF(CJ$4:CJ$115,"Yes") -> 102 | CK118: =COUNTIF(CK$4:CK$115,"Yes") -> 102 | CL118: - | CM118: - | CN118: - | CO118: - | CP118: =COUNTIF(CP$4:CP$115,"Yes") -> 105 | CQ118: 14 | CR118: 59 | CS118: 104 | CT118: 19 | CU118: 111 | CV118: 3 | CW118: 9 | CX118: 14 | CY118: 35 | CZ118: 71 | DA118: 61 | DB118: 46 | DC118: 42 | DD118: 13
D119: Total No | E119: =COUNTIF(E$4:E$115,"No") -> 1 | G119: =COUNTIF(G$4:G$115,"No") -> 3 | H119: =COUNTIF(H$4:H$115,"No") -> 6 | J119: =COUNTIF(J$4:J$115,"No") -> 82 | K119: - | L119: =COUNTIF(L$4:L$115,"No") -> 6 | M119: =COUNTIF(M$4:M$115,"No") -> 86 | O119: =COUNTIF(O$4:O$115,"No") -> 105 | Q119: - | R119: - | U119: =COUNTIF(U$4:U$115,"No") -> 92 | V119: 110 | W119: 89 | X119: 7 | Y119: 80 | Z119: 104 | AB119: 76 | AC119: 106 | AD119: 108 | AE119: 110 | AF119: 112 | AG119: 112 | AH119: 77 | AI119: 101 | AJ119: 97 | AK119: 98 | AL119: 100 | AM119: 105 | AN119: 105 | AO119: 112 | AP119: 60 | AQ119: 27 | AR119: 3 | AS119: - | AT119: - | AU119: - | AV119: - | AW119: - | AX119: - | AY119: - | BB119: =COUNTIF(BB$4:BB$115,"No") -> 2 | BC119: 60 | BD119: 4 | BE119: 107 | BF119: 10 | BG119: 48 | BH119: 55 | BI119: 58 | BJ119: 84 | BK119: 102 | BL119: 86 | BM119: - | BN119: =COUNTIF(BN$4:BN$115,"No") -> 0 | BO119: 2 | BP119: 7 | BQ119: 9 | BR119: 0 | BS119: 0 | BT119: 1 | BU119: 2 | BV119: 50 | BW119: 85 | BX119: 5 | BY119: 2 | BZ119: 1 | CA119: 0 | CC119: - | CD119: - | CE119: - | CF119: - | CG119: - | CH119: - | CI119: =COUNTIF(CI$4:CI$115,"No") -> 11 | CJ119: =COUNTIF(CJ$4:CJ$115,"No") -> 10 | CK119: =COUNTIF(CK$4:CK$115,"No") -> 10 | CL119: - | CM119: - | CN119: - | CO119: - | CP119: =COUNTIF(CP$4:CP$115,"No") -> 7 | CQ119: 98 | CR119: 53 | CS119: 8 | CT119: 93 | CU119: 1 | CV119: 109 | CW119: 103 | CX119: 98 | CY119: 77 | CZ119: 41 | DA119: 51 | DB119: 66 | DC119: 70 | DD119: 99
D120: Total | E120: =SUM(E118:E119) -> 112 | G120: =SUM(G118:G119) -> 112 | H120: =SUM(H118:H119) -> 112 | J120: =SUM(J118:J119) -> 112 | K120: - | L120: =SUM(L118:L119) -> 112 | M120: =SUM(M118:M119) -> 112 | O120: =SUM(O118:O119) -> 112 | Q120: - | R120: - | U120: =SUM(U118:U119) -> 112 | V120: 112 | W120: 112 | X120: 112 | Y120: 112 | Z120: 112 | AB120: =SUM(AB118:AB119) -> 112 | AC120: 112 | AD120: 112 | AE120: 112 | AF120: 112 | AG120: 112 | AH120: 112 | AI120: 112 | AJ120: 112 | AK120: 112 | AL120: 112 | AM120: 112 | AN120: 112 | AO120: 112 | AP120: 112 | AQ120: 112 | AR120: 112 | AS120: - | AT120: - | AU120: - | AV120: - | AW120: - | AX120: - | AY120: - | BB120: =SUM(BB118:BB119) -> 112 | BC120: 112 | BD120: 112 | BE120: 112 | BF120: 112 | BG120: 112 | BH120: 112 | BI120: 112 | BJ120: 112 | BK120: 112 | BL120: 112 | BM120: - | BN120: =SUM(BN118:BN119) -> 112 | BO120: 112 | BP120: 112 | BQ120: 112 | BR120: 112 | BS120: 112 | BT120: 112 | BU120: 112 | BV120: 112 | BW120: 112 | BX120: 112 | BY120: 112 | BZ120: 112 | CA120: 112 | CC120: - | CD120: - | CE120: - | CF120: - | CG120: - | CH120: - | CI120: =SUM(CI118:CI119) -> 112 | CJ120: =SUM(CJ118:CJ119) -> 112 | CK120: =SUM(CK118:CK119) -> 112 | CL120: - | CM120: - | CN120: - | CO120: - | CP120: =SUM(CP118:CP119) -> 112 | CQ120: 112 | CR120: 112 | CS120: 112 | CT120: 112 | CU120: 112 | CV120: 112 | CW120: 112 | CX120: 112 | CY120: 112 | CZ120: 112 | DA120: 112 | DB120: 112 | DC120: 112 | DD120: 112
D121: Yes (%) | E121: =E118/$D$117 -> 0.9910714286 | G121: =G118/$D117 -> 0.9732142857 | H121: =H118/$D117 -> 0.9464285714 | J121: =J118/$D117 -> 0.2678571429 | K121: - | L121: =L118/112 -> 0.9464285714 | M121: =M118/M120 -> 0.2321428571 | O121: =O118/O120 -> 0.0625 | Q121: - | R121: - | U121: =U118/U120 -> 0.1785714286 | V121: 0.01785714286 | W121: 0.2053571429 | X121: 0.9375 | Y121: 0.2857142857 | Z121: 0.07142857143 | AB121: =AB118/AB120 -> 0.3214285714 | AC121: 0.05357142857 | AD121: 0.03571428571 | AE121: 0.01785714286 | AF121: 0 | AG121: 0 | AH121: 0.3125 | AI121: 0.09821428571 | AJ121: 0.1339285714 | AK121: 0.125 | AL121: 0.1071428571 | AM121: 0.0625 | AN121: 0.0625 | AO121: 0 | AP121: 0.4642857143 | AQ121: 0.7589285714 | AR121: 0.9732142857 | AS121: - | AT121: - | AU121: - | AV121: - | AW121: - | AX121: - | AY121: - | BB121: =BB118/BB120 -> 0.9821428571 | BC121: 0.4642857143 | BD121: 0.9642857143 | BE121: 0.04464285714 | BF121: 0.9107142857 | BG121: 0.5714285714 | BH121: 0.5089285714 | BI121: 0.4821428571 | BJ121: 0.25 | BK121: 0.08928571429 | BL121: 0.2321428571 | BM121: - | BN121: =BN118/BN120 -> 1 | BO121: 0.9821428571 | BP121: 0.9375 | BQ121: 0.9196428571 | BR121: 1 | BS121: 1 | BT121: 0.9910714286 | BU121: 0.9821428571 | BV121: 0.5535714286 | BW121: 0.2410714286 | BX121: 0.9553571429 | BY121: 0.9821428571 | BZ121: 0.9910714286 | CA121: 1 | CC121: - | CD121: - | CE121: - | CF121: - | CG121: - | CH121: - | CI121: =CI118/CI120 -> 0.9017857143 | CJ121: =CJ118/CJ120 -> 0.9107142857 | CK121: =CK118/CK120 -> 0.9107142857 | CL121: - | CM121: - | CN121: - | CO121: - | CP121: =CP118/CP120 -> 0.9375 | CQ121: 0.125 | CR121: 0.5267857143 | CS121: 0.9285714286 | CT121: 0.1696428571 | CU121: 0.9910714286 | CV121: 0.02678571429 | CW121: 0.08035714286 | CX121: 0.125 | CY121: 0.3125 | CZ121: 0.6339285714 | DA121: 0.5446428571 | DB121: 0.4107142857 | DC121: 0.375 | DD121: 0.1160714286
D122: No (%) | E122: =E119/$D$117 -> 0.008928571429 | G122: =G119/$D117 -> 0.02678571429 | H122: =H119/$D117 -> 0.05357142857 | J122: =J119/$D117 -> 0.7321428571 | K122: - | L122: =L119/112 -> 0.05357142857 | M122: =M119/M120 -> 0.7678571429 | O122: =O119/O120 -> 0.9375 | Q122: - | R122: - | U122: =U119/U120 -> 0.8214285714 | V122: 0.9821428571 | W122: 0.7946428571 | X122: 0.0625 | Y122: 0.7142857143 | Z122: 0.9285714286 | AB122: =AB119/AB120 -> 0.6785714286 | AC122: 0.9464285714 | AD122: 0.9642857143 | AE122: 0.9821428571 | AF122: 1 | AG122: 1 | AH122: 0.6875 | AI122: 0.9017857143 | AJ122: 0.8660714286 | AK122: 0.875 | AL122: 0.8928571429 | AM122: 0.9375 | AN122: 0.9375 | AO122: 1 | AP122: 0.5357142857 | AQ122: 0.2410714286 | AR122: 0.02678571429 | AS122: - | AT122: - | AU122: - | AV122: - | AW122: - | AX122: - | AY122: - | BB122: =BB119/BB120 -> 0.01785714286 | BC122: 0.5357142857 | BD122: 0.03571428571 | BE122: 0.9553571429 | BF122: 0.08928571429 | BG122: 0.4285714286 | BH122: 0.4910714286 | BI122: 0.5178571429 | BJ122: 0.75 | BK122: 0.9107142857 | BL122: 0.7678571429 | BM122: - | BN122: =BN119/BN120 -> 0 | BO122: 0.01785714286 | BP122: 0.0625 | BQ122: 0.08035714286 | BR122: 0 | BS122: 0 | BT122: 0.008928571429 | BU122: 0.01785714286 | BV122: 0.4464285714 | BW122: 0.7589285714 | BX122: 0.04464285714 | BY122: 0.01785714286 | BZ122: 0.008928571429 | CA122: 0 | CC122: - | CD122: - | CE122: - | CF122: - | CG122: - | CH122: - | CI122: =CI119/CI120 -> 0.09821428571 | CJ122: =CJ119/CJ120 -> 0.08928571429 | CK122: =CK119/CK120 -> 0.08928571429 | CL122: - | CM122: - | CN122: - | CO122: - | CP122: =CP119/CP120 -> 0.0625 | CQ122: 0.875 | CR122: 0.4732142857 | CS122: 0.07142857143 | CT122: 0.8303571429 | CU122: 0.008928571429 | CV122: 0.9732142857 | CW122: 0.9196428571 | CX122: 0.875 | CY122: 0.6875 | CZ122: 0.3660714286 | DA122: 0.4553571429 | DB122: 0.5892857143 | DC122: 0.625 | DD122: 0.8839285714
D123: Total | E123: =SUM(E121:E122) -> 1 | G123: =SUM(G121:G122) -> 1 | H123: 1 | J123: 1 | K123: - | L123: =SUM(L121:L122) -> 1 | M123: =SUM(M121:M122) -> 1 | O123: 1 | Q123: =SUM(Q4:Q115) -> 30765.016 | R123: =SUM(R4:R115) -> 20977.03 | S123: 29247.056 | T123: 1125.23 | U123: =SUM(U121:U122) -> 1 | V123: =SUM(V121:V122) -> 1 | W123: 1 | X123: 1 | Y123: 1 | Z123: 1 | AA123: =SUM(AA4:AA115) -> 63 | AB123: 1 | AC123: 1 | AD123: 1 | AE123: 1 | AF123: 1 | AG123: 1 | AH123: 1 | AI123: =SUM(AI121:AI122) -> 1 | AJ123: =SUM(AJ121:AJ122) -> 1 | AK123: 1 | AL123: =SUM(AL121:AL122) -> 1 | AM123: =SUM(AM121:AM122) -> 1 | AN123: 1 | AO123: =SUM(AO121:AO122) -> 1 | AP123: =SUM(AP121:AP122) -> 1 | AQ123: 1 | AR123: 1 | AS123: =SUM(AS4:AS115) -> 19720.58 | AT123: =SUM(AT4:AT115) -> 622 | AU123: 1110 | AV123: 75 | AW123: 0 | AX123: 42 | AY123: 7 | AZ123: 12.28 | BA123: 59663.68444 | BB123: =SUM(BB121:BB122) -> 1 | BC123: =SUM(BC121:BC122) -> 1 | BD123: =SUM(BD121:BD122) -> 1 | BE123: 1 | BF123: =SUM(BF121:BF122) -> 1 | BG123: =SUM(BG121:BG122) -> 1 | BH123: =SUM(BH121:BH122) -> 1 | BI123: =SUM(BI121:BI122) -> 1 | BJ123: =SUM(BJ121:BJ122) -> 1 | BK123: =SUM(BK121:BK122) -> 1 | BL123: =SUM(BL121:BL122) -> 1 | BM123: - | BN123: 1 | BO123: =SUM(BO121:BO122) -> 1 | BP123: =SUM(BP121:BP122) -> 1 | BQ123: =SUM(BQ121:BQ122) -> 1 | BR123: =SUM(BR121:BR122) -> 1 | BS123: =SUM(BS121:BS122) -> 1 | BT123: =SUM(BT121:BT122) -> 1 | BU123: =SUM(BU121:BU122) -> 1 | BV123: =SUM(BV121:BV122) -> 1 | BW123: =SUM(BW121:BW122) -> 1 | BX123: =SUM(BX121:BX122) -> 1 | BY123: =SUM(BY121:BY122) -> 1 | BZ123: =SUM(BZ121:BZ122) -> 1 | CA123: =SUM(CA121:CA122) -> 1 | CC123: =SUM(CC4:CC115) -> 1962 | CD123: =SUM(CD4:CD115) -> 948 | CE123: 1119 | CF123: 734 | CG123: 702.22 | CH123: 376.22 | CI123: =SUM(CI121:CI122) -> 1 | CJ123: =SUM(CJ121:CJ122) -> 1 | CK123: =SUM(CK121:CK122) -> 1 | CL123: =SUM(CL4:CL115) -> 56 | CM123: 7 | CN123: 5 | CO123: 1 | CP123: =SUM(CP121:CP122) -> 1 | CQ123: =SUM(CQ121:CQ122) -> 1 | CR123: =SUM(CR121:CR122) -> 1 | CS123: =SUM(CS121:CS122) -> 1 | CT123: =SUM(CT121:CT122) -> 1 | CU123: =SUM(CU121:CU122) -> 1 | CV123: =SUM(CV121:CV122) -> 1 | CW123: 1 | CX123: 1 | CY123: 1 | CZ123: 1 | DA123: 1 | DB123: 1 | DC123: 1 | DD123: 1
B126: 1 | C126: Policy Delivery Statement - Is an up to date statement in place and copy provided to Defra, EA, and CLG?
B127: 2 | C127: When was it updated
B128: 3 | C128: Biodiverisity - Please indicate whether your Board has a Biodiversity Action Plan?
B129: 4 | C129: If yes, is the report available to the public?
B130: 5 | C130: What year was the BAP last updated?
B131: 6 | C131: Have you reported progress on BAP implementation?
B132: 7 | C132: When was biodiversity last discussed at a Board meeting
B133: 8 | C133: Do you have a biosecurity process?
B134: 9 | C134: Responsible for any SSSI WLMPs?
B135: 10 | C135: Do you contribute to SSSI WLMPS
B136: 11 | C136: Area of SSSI with WLMP
B137: 12 | C137: Area of SSSI with contribution to WLMP
B138: 13 | C138: Area where activities contributing to recovering or favourable
B139: 14 | C139: Area required to achieve recovering or favourable condition
B140: 15 | C140: Access to environmental expertise - Does your IDB have access to environmental expertise?
B141: 16 | C141: Appropriately skilled Board Members (e.g. Board member from an Environmental Body/Authority)
B142: 17 | C142: Co-opted members
B143: 18 | C143: Directly employed staff
B144: 19 | C144: Contracted persons or consultants
B145: 20 | C145: Environmental Partners/NGOs
B146: 21 | C146: How many PCSA
B147: 22 | C147: PCSA Partner
B148: 23 | C148: Type of Work being undertaken
B149: 24 | C149: System/database to manage the assets | D149: A - ADIS
B150: 25 | D150: B - Paper Records
B151: 26 | D151: C - Other electronic system
B152: 27 | C152: Has your Board continued to undertake visual inspections and update asset databases on an annual bases?
B153: 28 | C153: Accumulative total of identified watercourses
B154: 29 | C154: Number of pumping stations
B155: 30 | C155: Pumping station by type
B156: 31 | C156: other
B157: 32 | C157: cumualtive design capacity of pumping stations
B158: 33 | C158: Does the Board have a current Health and Safety policy?
B159: 34 | C159: Does the Board have a responsible officer for H&S?
B160: 35 | C160: Have there been any reportable incidents in past year?
B161: 36 | C161: Have there been any reportable incidents in past year?
B162: 37 | C162: Has your IDB adopted a formal Scheme of Delegation?
B163: 38 | C163: Has your IDB provided training for members in the last year? | D163: Has your IDB provided training for members in the last year?
B164: 39 | D164: Governance
B165: 40 | D165: Finance
B166: 41 | D166: Environment
B167: 42 | D167: Health, safety and Welfare
B168: 43 | D168: Other
B169: 44 | C169: Is your Board's website information current for this year? (Board membership, audited accounts, programmes of works, WLMPS, etc)
B170: 45 | C170: Has your IDB adopted computerised accounting and rating systems, as specified in the IDB Review?
B171: 46 | C171: Has your Board published all minutes of meetings?
B172: 47 | C172: Does the Board publish approach to maintenance
B173: 48 | C173: Are environmental impacts taken into account?
B174: 49 | C174: Has your Board adopted following governance documents? | D174: Standing orders?
B175: 50 | D175: Have the Standing Orders been approved by Ministers?
B176: 51 | D176: Bylaws
B177: 52 | C177: If you have Bylaws, have: | D177: Adopted 2021 model
B178: 53 | D178: Adoped 2012 model
B179: 54 | D179: Been approved by Ministers
B180: 55 | C180: Code of Conduct for Board Members?
B181: 56 | C181: Adopted Financial Regulations
B182: 57 | C182: Register of Members interests
B183: 58 | C183: Anti-Fraud and corruption policy
B184: 59 | C184: How many Board members in total?
B185: 60 | C185: Seats available to appointed members?
B186: 61 | C186: Number of elected members on the board at year end?
B187: 62 | C187: Number of appointed members on the board at year end?
B188: 63 | C188: Mean average number of elected members in attendance at
B189: 64 | C189: Mean average number of appointed members in attendance
B190: 65 | C190: Have you held elections in last three years?
B191: 66 | C191: Did elections comply with requirements?
B192: 67 | C192: Is complaints procedure accessible from front page of website?
B193: 68 | C193: Number of complaints in financial year
B194: 69 | C194: Number of complaints outstanding?
B195: 70 | C195: Number of complaints referred to LGO?
B196: 71 | C196: Number of complaints upheld by LGO?
B197: 72 | C197: Have you published the IDB1 form
B198: 73 | C198: Press Releases
B199: 74 | C199: Newsletters
B200: 75 | C200: Notices
B201: 76 | C201: Public consultation
B202: 77 | C202: Updated IDB website
B203: 78 | C203: National or local media (TV, Radio etc.)
B204: 79 | C204: National or local media (newspaper magazine etc.)
... 7 more rows

Sheet Special levies 2024-2025
C1: IDB | D1: Name of local Authority | E1: Forecast | F1: Total
B2: 1 | C2: Ainsty | F2: =SUM(E3:E6) -> 368898
D4: Leeds City Council | E4: 8998
D5: North Yorkshire Council | E5: 82093
D6: City of York Council | E6: 277807
B8: 2 | C8: Airedale Drainage Commissioners | F8: =SUM(E9:E10) -> 22308
D9: Bradford Metropolitan Council | E9: 8205
D10: North Yorkshire Council | E10: 14103
B12: 3 | C12: Alconbury and Ellington | F12: =SUM('Special levies 2024-2025'!E13:E13) -> 88728
D13: Huntingdonshire District Council | E13: 88728
B15: 4 | C15: Ancholme Internal Drainage Board | F15: =SUM('Special levies 2024-2025'!E16:E17) -> 279721
D16: North Lincolnshire District Council | E16: 256195
D17: West Lindsey District Council | E17: 23526
B19: 5 | C19: Axe Brue | F19: =SUM(E20:E21) -> 1202079
D20: Somerset Council | E20: 1182729
D21: North Somerset Unitary Authority | E21: 19350
B23: 6 | C23: Axeholme & North Notts | F23: =SUM(E24:E27) -> 1190826
D24: North Lincolnshire Council | E24: 955929
D25: Bassetlaw District Council | E25: 218928
D26: Doncaster Metropolitan Borough Council | E26: 2041
D27: East Riding of Yorkshire Council | E27: 13928
B29: 7 | C29: Bedfordshire and River Ivel
D30: Bedford Borough Council | E30: 730645
D31: Central Bedfordshire Council | E31: 410971 | F31: =SUM(E29:E33) -> 1150810
D32: North Herts District Council | E32: 9014
D33: South Cambs District Council | E33: 180
B35: 8 | C35: Benwick | F35: =SUM('Special levies 2024-2025'!E36:E37) -> 43400
D36: Fenland District Council | E36: 39953
D37: Huntingdonshire District Council | E37: 3447
B39: 9 | C39: Beverley and North Holderness | F39: =SUM('Special levies 2024-2025'!E40) -> 464379
D40: East Riding of Yorkshire Council | E40: 464379
B42: 10 | C42: Black Drain Drainage Board | F42: =SUM('Special levies 2024-2025'!E43:E44) -> 117744
D43: Doncaster Metropolitan Borough Council | E43: 116922
D44: East Riding of Yorkshire Council | E44: 822
B46: 11 | C46: Black Sluice | F46: =SUM('Special levies 2024-2025'!E47:E50) -> 1657742
D47: Boston Borough Council | E47: 1232588
D48: South Holland District Council | E48: 232006
D49: North Kesteven District Council | E49: 104824
D50: South Kesteven District Council | E50: 88324
B52: 12 | C52: Bluntisham | F52: =SUM('Special levies 2024-2025'!E53) -> 15741
D53: Huntingdonshire District Council | E53: 15741
B55: 13 | C55: Braunton Marsh | F55: =SUM('Special levies 2024-2025'!E56) -> 28687
D56: North Devon Council | E56: 28687
B58: 14 | C58: Broads | F58: =SUM(E59:E62) -> 896394
D59: Broadland District Council | E59: 229299
D60: Great Yarmouth Borough Council | E60: 259321
D61: North Norfolk District Council | E61: 404199
D62: South Norfolk | E62: 3575
B64: 15 | C64: Buckingham and River Ouzel | F64: =SUM(E65:E69) -> 803425
D65: Buckinghamshire Council | E65: 41422
D66: Central Bedfordshire Council | E66: 312248
D67: Cherwell District Council | E67: 100
D68: Milton Keynes City Council | E68: 433770
D69: West Northamptonshire District Council | E69: 15885
B71: 16 | C71: Burnt Fen | F71: =SUM(E72:E73) -> 54658
D72: West Suffolk Council | E72: 20987
D73: East Cambridgeshire District Council | E73: 33671
B75: 17 | C75: Cawdle Fen | F75: =SUM('Special levies 2024-2025'!E76) -> 38613
D76: East Cambridgeshire District Council | E76: 38613
B78: 18 | C78: Churchfield and Plawfield | F78: =SUM('Special levies 2024-2025'!E79:E79) -> 38654
D79: Kings Lynn & West Norfolk DC | E79: 38654
B81: 19 | C81: Connington & Holme | F81: =SUM('Special levies 2024-2025'!E82:E82) -> 9586
D82: Huntingdonshire District Council | E82: 9586
B84: 20 | C84: Cowick and Snaith | F84: =SUM('Special levies 2024-2025'!E85) -> 81195
D85: East Riding of Yorkshire Council | E85: 81195
B87: 21 | C87: Curf and Wimblington Combined | F87: =SUM('Special levies 2024-2025'!E88:E88) -> 13168
D88: Fenland District Council | E88: 13168
B90: 22 | C90: Danvm Drainage Commissioners | F90: =SUM('Special levies 2024-2025'!E91:E96) -> 1825122
D91: Doncaster Metropolitan Borough Council | E91: 733068
D92: East Riding of Yorkshire Council | E92: 65953
D93: North Yorkshire Council | E93: 781740
D94: Wakefield Metropolitan District Council | E94: 172733
D95: Barnsley Metropolitan Borough Council | E95: 67215
D96: Rotherham Metropolitan Borough Council | E96: 4413
B98: 23 | C98: Dempster | F98: =SUM('Special levies 2024-2025'!E99) -> 45354
D99: East Riding of Yorkshire Council | E99: 45354
B101: 24 | C101: Doncaster East | F101: =SUM(E102:E104) -> 1128747
D102: Doncaster Metropolitan Borough Council | E102: 1092040
D103: North Lincolnshire Council | E103: 20521
D104: Bassetlaw District Council | E104: 16186
B106: 25 | C106: Downham & Stow Bardolph | F106: =SUM('Special levies 2024-2025'!E107) -> 63434
D107: Borough council of king's Lynn and West Norfolk | E107: 63434
B109: 26 | C109: Earby & Salterforth | F109: =SUM('Special levies 2024-2025'!E110) -> 11375
D110: Pendle | E110: 11375
B112: 27 | C112: East Harling | F112: =SUM(E112:E113) -> 23278
D113: Breckland Council | E113: 23278
B115: 28 | C115: East Suffolk | F115: =SUM('Special levies 2024-2025'!E116:E119) -> 229527
D116: Babergh District Council | E116: 2082
D117: Ipswich Borough Council | E117: 44097
D118: Mid-Suffolk District Council | E118: 47072
D119: East Suffolk Council | E119: 136276
B121: 29 | C121: East of the Ouse, Polver and Nar | F121: =SUM('Special levies 2024-2025'!E122:E122) -> 369854
D122: Borough of Kings Lynn & West Norfolk | E122: 369854
B124: 30 | C124: Euixmoor | F124: =SUM('Special levies 2024-2025'!E125) -> 3935
D125: Fenland District Council | E125: 3935
B127: 31 | C127: Feldale | F127: =E128 -> 15492.18
D128: Fenland District Council | E128: 15492.18
B130: 32 | C130: Foss | F130: =SUM(E131:E133) -> 368326
D131: City of York Council | E131: 343479
D132: East Riding of Yorkshire | E132: 19016
D133: North Yorkshire Council | E133: 5831
B135: 33 | C135: Goole Fields | F135: =SUM(E136) -> 6395
D136: East Riding of Yorkshire Council | E136: 6395
B138: 34 | C138: Goole & Airmyn | F138: =SUM('Special levies 2024-2025'!E139) -> 309948
D139: East Riding of Yorkshire Council | E139: 309948
B141: 35 | C141: Haddenham Level | F141: =SUM('Special levies 2024-2025'!E142) -> 90441
D142: East Cambridgeshire District Council | E142: 90441
B144: 36 | C144: Holmewood and District | F144: =SUM(E144:E145) -> 3795
D145: Huntingdonshire | E145: 3795
B147: 37 | C147: Hundred Foot Washes | F147: =SUM(E148:E149) -> 193
D148: Borough Council Kings Lynn & West Norfolk | E148: 182
D149: East Cambridgeshire District Council | E149: 11
B151: 38 | C151: Hundred of Wisbech | F151: =SUM(E152:E153) -> 270781
D152: Fenland District Council | E152: 269203
D153: Kings Lynn & West Norfolk District Council | E153: 1578
B155: 39 | C155: Kings Lynn | F155: =SUM(E156:E158) -> 2432680
D156: Kings Lynn & West Norfolk Borough Council | E156: 2295150
D157: Fenland District Council | E157: 108270
D158: South Holland District Council | E158: 29260
B160: 40 | C160: Kyle and Upper Ouse | F160: =SUM(E161:E162) -> 175760
D161: North Yorkshire Council | E161: 20291
D162: City of York Council | E162: 155469
B164: 41 | C164: Lakenheath | F164: =SUM(E164:E165) -> 33962
D165: West Suffolk Council | E165: 33962
B167: 42 | C167: Lindsey Marsh | F167: =SUM('Special levies 2024-2025'!E168:E169) -> 4241098
D168: East Lindsey District Council | E168: 4228287
D169: North East Lincolnshire Council | E169: 12811
B171: 43 | C171: Littleport and Downham | F171: =SUM(E172:E173) -> 268709
D172: East Cambridgeshire District Council | E172: 236025
D173: King's Lynn and West Norfolk Borough Council | E173: 32684
B175: 44 | C175: Lower Medway | F175: =SUM(E176:E179) -> 1696199
D176: Canterbury City Council | E176: 12219
D177: Medway Council | E177: 445538
D178: Swale Borough Council | E178: 1000030
D179: Tonbridge and Malling Borough Council | E179: 238412
B181: 45 | C181: Lower Severn IDB (2005) | F181: =SUM('Special levies 2024-2025'!E182:E189) -> 1751536
D182: Bristol City Council | E182: 948676
D183: South Gloucestershire Council | E183: 426283
D184: Stroud District Council | E184: 201920
D185: Gloucester City Council | E185: 91505
D186: Forest of Dean Council | E186: 56313
D187: Herefordshire Council | E187: 15487
D188: Tewkesbury Borough Council | E188: 9242
D189: Malvern Hills Council | E189: 2110
B191: 46 | C191: Manea & Welney | F191: =SUM('Special levies 2024-2025'!E192:E193) -> 67427
D192: Fenland District Council | E192: 42723
D193: Borough Council of Kings Lynn & West Norfolk | E193: 24704
B195: 47 | C195: March West and White Fen | F195: =SUM('Special levies 2024-2025'!E196:E196) -> 70480
D196: Fenland District Council | E196: 70480
B198: 48 | C198: March 3rd | F198: =SUM('Special levies 2024-2025'!E199) -> 6307
D199: Fenland District Council | E199: 6307
B201: 49 | C201: March 5th | F201: =SUM('Special levies 2024-2025'!E202:E202) -> 32251
D202: Fenland District Council | E202: 32251
B204: 50 | C204: March 6th | F204: =SUM('Special levies 2024-2025'!E205:E205) -> 7144
D205: Fenland District Council | E205: 7144
B207: 51 | C207: March East | F207: =SUM('Special levies 2024-2025'!E208:E208) -> 81780
D208: Fenland District Council | E208: 81780
B210: 52 | C210: Melverley | F210: =SUM('Special levies 2024-2025'!E211:E211) -> 9646
D211: Shropshire Council | E211: 9646
B213: 53 | C213: Middle Fen and Mere | F213: =SUM('Special levies 2024-2025'!E214:E214) -> 179594
D214: East Cambridgeshire District Council | E214: 179594
B216: 54 | C216: Middle Level Commissioners | F216: =SUM(E217:E219) -> 1191010
D217: Borough Council of Kings Lynn & West Norfolk | E217: 265525
D218: Fenland District Council | E218: 656294
D219: Huntingdonshire District Council | E219: 269191
B221: 55 | C221: Mildenhall | F221: =SUM('Special levies 2024-2025'!E222:E222) -> 139980
D222: West Suffolk Council | E222: 139980
B224: 56 | C224: Needham and Laddus | F224: =SUM('Special levies 2024-2025'!E225:E226) -> 31579
D225: Fenland District Council | E225: 4416
D226: Borough Council of Kings Lynn & West Norfolk | E226: 27163
B228: 57 | C228: Nightlayers | F228: =SUM('Special levies 2024-2025'!E229:E229) -> 59299
D229: Fenland District Council | E229: 59299
B231: 58 | C231: Nordelph | F231: =SUM('Special levies 2024-2025'!E232) -> 1883
D232: Borough Council Kings Lynn & West Norfolk | E232: 1883
B234: 59 | C234: Norfolk Rivers
D235: Breckland District Council | E235: 62364
D236: Broadland District Council | E236: 93037
D237: Kings Lynn & West Norfolk Borough Council | E237: 23618
D238: North Norfolk District Council | E238: 123910 | F238: =SUM('Special levies 2024-2025'!E235:E240) -> 388735
D239: Norwich City Council | E239: 6934
D240: South Norfolk District Council | E240: 78872
B242: 60 | C242: North East Lindsey | F242: =SUM(E243:E245) -> 842410
D243: North Lincolnshire Council | E243: 222282
D244: North East Lincolnshire Council | E244: 615468
D245: West Lindsey District Council | E245: 4660
B247: 61 | C247: North Kent Marshes | F247: =SUM(E247:E249) -> 103314
D248: Medway Council | E248: 54516
D249: Gravesham BC | E249: 48798
B251: 62 | C251: North Level District | F251: =SUM('Special levies 2024-2025'!E252:E254) -> 1153706
D252: Fenland District Council | E252: 507177
D253: Peterborough City Council | E253: 448820
D254: South Holland District Council | E254: 197709
B256: 63 | C256: North Somerset Levels | F256: =SUM(E257:E257) -> 647656
D257: North Somerset District Council | E257: 647656
B259: 64 | C259: Northwold | F259: =SUM('Special levies 2024-2025'!E260:E260) -> 287
D260: Kings Lynn & West Norfolk Borough Council | E260: 287
B262: 65 | C262: Old West | F262: =SUM('Special levies 2024-2025'!E263:E263) -> 58078
D263: South Cambridgeshire District Council | E263: 58078
B265: 66 | C265: Ouse and Derwent | F265: =SUM(E266:E267) -> 479685
D266: North Yorkshire Council | E266: 311363
... 143 more rows
